﻿Directorate,Service,Division,Responsible Unit,Expense Type,Payment Date,Trans No,Net Amount,Supplier Name
Childrens Services,No Service Specified,No Division Specified,Capital-Minor Works (SC),Building Works - Main Works,01/10/2018,5100372,"3,500.00",JC Coster (Metalworks) Ltd
Childrens Services,Children's Social Care,Support Service and Management Costs,Sch. Meals A/c - Central Production Unit,Kitchen Supplies - Food and Beverages,01/10/2018,5100473,932.17,Thomas Ridley & Son Ltd
Childrens Services,Children's Social Care,Support Service and Management Costs,Schools Catering,Kitchen Supplies - Food and Beverages,01/10/2018,5100474,614.63,Thomas Ridley & Son Ltd
Childrens Services,Children's Social Care,Support Service and Management Costs,Schools Catering,Kitchen Supplies - Food and Beverages,01/10/2018,5100476,389.99,Thomas Ridley & Son Ltd
Childrens Services,Children's Social Care,Support Service and Management Costs,Schools Catering,Kitchen Supplies - Food and Beverages,01/10/2018,5100477,"1,268.91",Thomas Ridley & Son Ltd
Childrens Services,Children's Social Care,Support Service and Management Costs,Schools Catering,Kitchen Supplies - Food and Beverages,01/10/2018,5100478,331.62,Thomas Ridley & Son Ltd
Childrens Services,Children's Social Care,Support Service and Management Costs,Schools Catering,Kitchen Supplies - Food and Beverages,01/10/2018,5100480,742.02,Thomas Ridley & Son Ltd
Childrens Services,Children's Social Care,Support Service and Management Costs,Schools Catering,Kitchen Supplies - Food and Beverages,01/10/2018,5100481,831.67,Thomas Ridley & Son Ltd
Childrens Services,Children's Social Care,Support Service and Management Costs,Schools Catering,Kitchen Supplies - Food and Beverages,01/10/2018,5100482,327.60,Thomas Ridley & Son Ltd
Childrens Services,Children's Social Care,Support Service and Management Costs,Schools Catering,Kitchen Supplies - Food and Beverages,01/10/2018,5100483,"1,584.32",Thomas Ridley & Son Ltd
Childrens Services,Children's Social Care,Support Service and Management Costs,Schools Catering,Kitchen Supplies - Food and Beverages,01/10/2018,5100484,323.07,Thomas Ridley & Son Ltd
Childrens Services,Children's Social Care,Support Service and Management Costs,Schools Catering,Kitchen Supplies - Food and Beverages,01/10/2018,5100485,538.85,Thomas Ridley & Son Ltd
Childrens Services,Children's Social Care,Support Service and Management Costs,Schools Catering,Kitchen Supplies - Food and Beverages,01/10/2018,5100511,500.94,Prescott-Thomas LTD.
Childrens Services,Children's Social Care,Support Service and Management Costs,Swanlea,Kitchen Supplies - Food and Beverages,01/10/2018,5100542,291.05,Prescott-Thomas LTD.
Childrens Services,Education Services,Other Education and Community Budget,Community Languages,Stationery,01/10/2018,5100571,"3,885.00",Office Depot (Catalogue)
Childrens Services,Education Services,Early Years,John Smith CC,Stationery,01/10/2018,5100572,372.00,Office Depot (Catalogue)
Childrens Services,Education Services,Early Years,John Smith CC,Stationery,01/10/2018,5100572,372.00,Office Depot (Catalogue)
Childrens Services,Education Services,Early Years,Mowlem CC,Stationery,01/10/2018,5100577,384.24,Office Depot (Catalogue)
Childrens Services,Education Services,Early Years,Meath Gardens CC,Repairs and Maintenance - Responsive - Repair & Maintenance,01/10/2018,5101060,920.00,JC Coster (Metalworks) Ltd
Childrens Services,Cultural and Related Services,Open Spaces,P & OS income,Payments to Private Contractors - Fees-Road Closures,01/10/2018,5101061,"1,000.00",JC Coster (Metalworks) Ltd
Childrens Services,Education Services,Early Years,Overland CC,Repairs and Maintenance - Responsive - Repair & Maintenance,01/10/2018,5101063,320.00,JC Coster (Metalworks) Ltd
Childrens Services,Education Services,Early Years,Overland CC,Repairs and Maintenance - Responsive - Repair & Maintenance,01/10/2018,5101063,370.00,JC Coster (Metalworks) Ltd
Childrens Services,Education Services,Early Years,Overland CC,Repairs and Maintenance - Responsive - Repair & Maintenance,01/10/2018,5101063,550.00,JC Coster (Metalworks) Ltd
Childrens Services,Education Services,Early Years,Overland CC,Repairs and Maintenance - Responsive - Repair & Maintenance,01/10/2018,5101063,340.00,JC Coster (Metalworks) Ltd
Childrens Services,No Service Specified,No Division Specified,Capital-Minor Works (SC),Other External Fees - Other External Fees,01/10/2018,5101132,"1,000.00",Architype
Childrens Services,Children's Social Care,Services for young people,Positive Activities Young Pple,Educational/Training Supplies - Curriculum Visits/Activities,01/10/2018,5101337,"3,200.00",Community Music
Childrens Services,Children's Social Care,Children Looked After,S23-Other-Mother & Baby Unit,Childrens Act Section 23 - Placement Fee,01/10/2018,5101346,"2,000.00",Real Life
Childrens Services,Children's Social Care,Children Looked After,S23-Other-Mother & Baby Unit,Childrens Act Section 23 - Placement Fee,01/10/2018,5101347,354.00,Real Life
Childrens Services,Children's Social Care,Children Looked After,S23-Other-Semi-Ind. Unit,Childrens Act Section 23 - Placement Fee,01/10/2018,5101348,925.00,Real Life
Childrens Services,Children's Social Care,Support Service and Management Costs,Schools Catering,Kitchen Supplies - Food and Beverages,01/10/2018,5101366,690.62,Thomas Ridley & Son Ltd
Childrens Services,Children's Social Care,Support Service and Management Costs,Schools Catering,Kitchen Supplies - Food and Beverages,01/10/2018,5101367,263.70,Thomas Ridley & Son Ltd
Childrens Services,Children's Social Care,Support Service and Management Costs,Schools Catering,Kitchen Supplies - Food and Beverages,01/10/2018,5101368,787.30,Thomas Ridley & Son Ltd
Childrens Services,Children's Social Care,Support Service and Management Costs,Schools Catering,Kitchen Supplies - Food and Beverages,01/10/2018,5101370,460.26,Thomas Ridley & Son Ltd
Childrens Services,Children's Social Care,Support Service and Management Costs,Schools Catering,Kitchen Supplies - Food and Beverages,01/10/2018,5101371,355.00,Thomas Ridley & Son Ltd
Childrens Services,Children's Social Care,Support Service and Management Costs,Schools Catering,Kitchen Supplies - Food and Beverages,01/10/2018,5101373,774.94,Thomas Ridley & Son Ltd
Childrens Services,Children's Social Care,Support Service and Management Costs,Schools Catering,Kitchen Supplies - Food and Beverages,01/10/2018,5101375,405.52,Thomas Ridley & Son Ltd
Childrens Services,Children's Social Care,Support Service and Management Costs,Schools Catering,Kitchen Supplies - Food and Beverages,01/10/2018,5101376,451.10,Thomas Ridley & Son Ltd
Childrens Services,Children's Social Care,Support Service and Management Costs,Schools Catering,Kitchen Supplies - Food and Beverages,01/10/2018,5101379,963.28,Thomas Ridley & Son Ltd
Childrens Services,Children's Social Care,Support Service and Management Costs,Schools Catering,Kitchen Supplies - Food and Beverages,01/10/2018,5101380,495.25,Thomas Ridley & Son Ltd
Childrens Services,Children's Social Care,Support Service and Management Costs,Sch. Meals A/c - Central Production Unit,Kitchen Supplies - Food and Beverages,01/10/2018,5101381,322.18,Thomas Ridley & Son Ltd
Childrens Services,Children's Social Care,Support Service and Management Costs,Welfare Catering,Kitchen Supplies - Food and Beverages,01/10/2018,5101382,636.06,Thomas Ridley & Son Ltd
Childrens Services,Children's Social Care,Support Service and Management Costs,Schools Catering,Kitchen Supplies - Food and Beverages,01/10/2018,5101385,507.75,Thomas Ridley & Son Ltd
Childrens Services,Children's Social Care,Support Service and Management Costs,Schools Catering,Kitchen Supplies - Food and Beverages,01/10/2018,5101386,"1,315.09",Thomas Ridley & Son Ltd
Childrens Services,Children's Social Care,Support Service and Management Costs,Schools Catering,Kitchen Supplies - Food and Beverages,01/10/2018,5101388,503.41,Thomas Ridley & Son Ltd
Childrens Services,Children's Social Care,Support Service and Management Costs,Schools Catering,Kitchen Supplies - Food and Beverages,01/10/2018,5101389,690.78,Thomas Ridley & Son Ltd
Childrens Services,Children's Social Care,Support Service and Management Costs,Schools Catering,Kitchen Supplies - Food and Beverages,01/10/2018,5101390,252.20,Thomas Ridley & Son Ltd
Childrens Services,Children's Social Care,Support Service and Management Costs,Schools Catering,Kitchen Supplies - Food and Beverages,01/10/2018,5101391,546.90,Thomas Ridley & Son Ltd
Childrens Services,Children's Social Care,Support Service and Management Costs,Schools Catering,Kitchen Supplies - Food and Beverages,01/10/2018,5101392,669.05,Thomas Ridley & Son Ltd
Childrens Services,Children's Social Care,Support Service and Management Costs,Schools Catering,Kitchen Supplies - Food and Beverages,01/10/2018,5101393,692.13,Thomas Ridley & Son Ltd
Childrens Services,Children's Social Care,Support Service and Management Costs,Schools Catering,Kitchen Supplies - Food and Beverages,01/10/2018,5101397,361.25,Thomas Ridley & Son Ltd
Childrens Services,Children's Social Care,Support Service and Management Costs,Schools Catering,Kitchen Supplies - Food and Beverages,01/10/2018,5101398,266.42,Thomas Ridley & Son Ltd
Childrens Services,Children's Social Care,Support Service and Management Costs,Schools Catering,Kitchen Supplies - Food and Beverages,01/10/2018,5101399,572.71,Thomas Ridley & Son Ltd
Childrens Services,Children's Social Care,Support Service and Management Costs,Schools Catering,Kitchen Supplies - Food and Beverages,01/10/2018,5101445,291.74,Prescott-Thomas LTD.
Childrens Services,Children's Social Care,Support Service and Management Costs,Schools Catering,Kitchen Supplies - Food and Beverages,01/10/2018,5101451,254.38,Prescott-Thomas LTD.
Childrens Services,Children's Social Care,Support Service and Management Costs,Sch. Meals A/c - Central Production Unit,Kitchen Supplies - Food and Beverages,01/10/2018,5101460,259.40,Prescott-Thomas LTD.
Childrens Services,Children's Social Care,Children Looked After,S23-Other-Semi-Ind. Unit,Childrens Act Section 23 - Placement Fee,01/10/2018,5102205,"5,814.70",Transforming Lives Co
Childrens Services,Cultural and Related Services,Recreation & Sport,"Poplar Baths		",Payments to Private Contractors - Other Contractors,01/10/2018,5102518,"134,250.13",Folera Ltd
Childrens Services,Education Services,Other Strategic Functions,Special Education Needs DSG,Third Party Payments - Payments to Schools,01/10/2018,5102551,"13,989.75",Transitional Care LTD
Childrens Services,Children's Social Care,Children Looked After,S23 Family Placements P&V,Childrens Act Section 23 - Placement Fee,01/10/2018,5103220,"4,000.00",Credo Care ltd
Childrens Services,Children's Social Care,Support Service and Management Costs,Schools Catering,Kitchen Supplies - Food and Beverages,01/10/2018,5103440,293.25,William White Meats Ltd
Childrens Services,Children's Social Care,Support Service and Management Costs,Schools Catering,Kitchen Supplies - Food and Beverages,01/10/2018,5103470,474.06,William White Meats Ltd
Childrens Services,Children's Social Care,Support Service and Management Costs,Schools Catering,Kitchen Supplies - Food and Beverages,01/10/2018,5103477,370.40,William White Meats Ltd
Childrens Services,Children's Social Care,Support Service and Management Costs,Schools Catering,Kitchen Supplies - Food and Beverages,01/10/2018,5103481,269.15,William White Meats Ltd
Childrens Services,Children's Social Care,Support Service and Management Costs,Schools Catering,Kitchen Supplies - Food and Beverages,01/10/2018,5103494,470.43,William White Meats Ltd
Childrens Services,Children's Social Care,Support Service and Management Costs,Schools Catering,Kitchen Supplies - Food and Beverages,01/10/2018,5103500,250.20,William White Meats Ltd
Childrens Services,Children's Social Care,Support Service and Management Costs,Schools Catering,Kitchen Supplies - Food and Beverages,01/10/2018,5103521,290.94,William White Meats Ltd
Childrens Services,Children's Social Care,Children Looked After,S23 Fam Pl P&V-F/Care,Childrens Act Section 23 - Placement Fee,01/10/2018,5103589,"3,805.99",COMPASS FOSTERING LONDON LIMITED
Childrens Services,Children's Social Care,Children Looked After,S23 Family Placements P&V,Childrens Act Section 23 - Placement Fee,01/10/2018,5103590,"4,977.60",COMPASS FOSTERING LONDON LIMITED
Childrens Services,Children's Social Care,Children Looked After,S23 Fam Pl P&V-F/Care,Childrens Act Section 23 - Placement Fee,01/10/2018,5103591,"3,167.10",COMPASS FOSTERING LONDON LIMITED
Childrens Services,Education Services,Early Years,Isle of Dogs. CC,Educational/Training Supplies - Curriculum Visits/Activities,01/10/2018,5103662,435.10,ESPO
Childrens Services,Education Services,Other Strategic Functions,Special Education Needs DSG,Third Party Payments - Payments to Schools,01/10/2018,5104688,"7,000.00",The Complete Works Ltd
Childrens Services,Education Services,Other Strategic Functions,Special Education Needs DSG,Third Party Payments - Payments to Schools,01/10/2018,5104689,"7,000.00",The Complete Works Ltd
Childrens Services,Education Services,Other Strategic Functions,Special Education Needs DSG,Third Party Payments - Payments to Schools,01/10/2018,5104690,"7,000.00",The Complete Works Ltd
Childrens Services,Education Services,Other Strategic Functions,Special Education Needs DSG,Third Party Payments - Payments to Schools,01/10/2018,5104691,"7,000.00",The Complete Works Ltd
Childrens Services,Education Services,Other Strategic Functions,Special Education Needs DSG,Third Party Payments - Payments to Schools,01/10/2018,5104692,"7,000.00",The Complete Works Ltd
Childrens Services,Education Services,Other Strategic Functions,Special Education Needs DSG,Third Party Payments - Payments to Schools,01/10/2018,5104693,"7,000.00",The Complete Works Ltd
Childrens Services,Education Services,Other Strategic Functions,Special Education Needs DSG,Third Party Payments - Payments to Schools,01/10/2018,5104694,"7,000.00",The Complete Works Ltd
Childrens Services,Education Services,Other Strategic Functions,Special Education Needs DSG,Third Party Payments - Payments to Schools,01/10/2018,5104695,"7,000.00",The Complete Works Ltd
Childrens Services,Education Services,Other Strategic Functions,Special Education Needs DSG,Third Party Payments - Payments to Schools,01/10/2018,5104696,"7,000.00",The Complete Works Ltd
Childrens Services,Education Services,Other Strategic Functions,Special Education Needs DSG,Third Party Payments - Payments to Schools,01/10/2018,5104697,"11,875.00",The Complete Works Ltd
Childrens Services,Education Services,Other Strategic Functions,Special Education Needs DSG,Third Party Payments - Payments to Schools,01/10/2018,5104698,"7,000.00",The Complete Works Ltd
Childrens Services,Education Services,Other Strategic Functions,Special Education Needs DSG,Third Party Payments - Payments to Schools,01/10/2018,5104699,"7,000.00",The Complete Works Ltd
Childrens Services,Education Services,Other Strategic Functions,Education Psychologists GF,Training Expenses - Staff External Training (UK Based),01/10/2018,5104772,"1,500.00",Video Interaction Guidance hk
Childrens Services,Children's Social Care,Support Service and Management Costs,Schools Catering,Materials - Cleaning Materials,01/10/2018,5105447,259.04,The Maintenance Supply Co Ltd
Childrens Services,Children's Social Care,Support Service and Management Costs,Schools Catering,Materials - Cleaning Materials,01/10/2018,5105453,313.23,The Maintenance Supply Co Ltd
Childrens Services,Children's Social Care,Support Service and Management Costs,Schools Catering,Materials - Cleaning Materials,01/10/2018,5105465,250.30,The Maintenance Supply Co Ltd
Childrens Services,Children's Social Care,Children Looked After,S23-Resi-P&V/OLA-Child Home,Childrens Act Section 23 - Placement Fee,01/10/2018,5105569,"8,857.14",CARE Ltd
Childrens Services,Children's Social Care,Children Looked After,S23-Resi-P&V/OLA-Child Home,Childrens Act Section 23 - Placement Fee,01/10/2018,5105570,"11,071.43",CARE Ltd
Childrens Services,Education Services,Other Strategic Functions,Special Education Needs DSG,Third Party Payments - Payments to Schools,01/10/2018,5105571,"17,050.00",CARE Ltd
Childrens Services,Children's Social Care,Children Looked After,S23-Resi-P&V/OLA-Child Home,Childrens Act Section 23 - Placement Fee,01/10/2018,5105571,"17,050.00",CARE Ltd
Childrens Services,Children's Social Care,Children Looked After,S23-Other-Mother & Baby Unit,Childrens Act Section 23 - Placement Fee,01/10/2018,5106703,"2,742.86",OneOneCoCo
Childrens Services,Education Services,Other Strategic Functions,CS Prem Retirement (Non-School,Services - Professional Fees - Financial Services Fees,01/10/2018,5107565,"270,942.09",Teachers Pensions
Childrens Services,Children's Social Care,Support Service and Management Costs,Sch. Meals A/c - Stebon,Kitchen Supplies - Catering Equipment,01/10/2018,5107579,"2,056.66",W V Howe LTD
Childrens Services,Education Services,Early Years,Chrisp St,Community Equipment  Supplies - Store Items,01/10/2018,5110484,"1,034.30",Eastside Books Ltd
Childrens Services,Children's Social Care,Family Support Services,Short Breaks and Family Support,Third Party Payments - Voluntary Associations,01/10/2018,5110515,"24,181.50",QALB Centre Short Break Services
Childrens Services,Children's Social Care,Children Looked After,S23 Fam Pl P&V-F/Care,Childrens Act Section 23 - Placement Fee,01/10/2018,5110599,"4,445.80",Welcome Foster Care
Childrens Services,Children's Social Care,Children Looked After,S23 Fam Pl P&V-F/Care,Childrens Act Section 23 - Placement Fee,01/10/2018,5110600,"3,514.20",Welcome Foster Care
Childrens Services,Children's Social Care,Children Looked After,S23 Fam Pl P&V-F/Care,Childrens Act Section 23 - Placement Fee,01/10/2018,5110601,"3,514.20",Welcome Foster Care
Childrens Services,Children's Social Care,Children Looked After,S23 Fam Pl P&V-F/Care,Childrens Act Section 23 - Placement Fee,01/10/2018,5110602,"3,642.90",Welcome Foster Care
Childrens Services,Children's Social Care,Children Looked After,S23 Fam Pl P&V-F/Care,Childrens Act Section 23 - Placement Fee,01/10/2018,5110603,"2,952.90",Welcome Foster Care
Childrens Services,Children's Social Care,Children Looked After,S23 Fam Pl P&V-F/Care,Childrens Act Section 23 - Placement Fee,01/10/2018,5110604,"2,952.90",Welcome Foster Care
Childrens Services,Children's Social Care,Children Looked After,Staying Put,Childrens Act Section 23 - Placement Fee,01/10/2018,5110605,"1,735.80",Welcome Foster Care
Childrens Services,Children's Social Care,Support Service and Management Costs,Sch. Meals A/c - Old Palace,Kitchen Supplies - Catering Equipment,01/10/2018,5110810,412.24,W V Howe LTD
Childrens Services,Children's Social Care,Children Looked After,S23 Family Placements P&V,Childrens Act Section 23 - Placement Fee,01/10/2018,5110873,"3,122.40",CAPSTONE VISION FOSTER CARE LTD
Childrens Services,Children's Social Care,Children Looked After,S23 Fam Pl P&V-F/Care,Childrens Act Section 23 - Placement Fee,01/10/2018,5110874,"3,291.60",CAPSTONE VISION FOSTER CARE LTD
Childrens Services,Education Services,Other Strategic Functions,Auxilary Aids,Training Expenses - Staff External Training (UK Based),01/10/2018,5112982,413.20,Ewing Foundation
Childrens Services,Education Services,Other Strategic Functions,Special Education Needs DSG,Third Party Payments - Payments to Schools,01/10/2018,5112999,"18,340.28",Ambitious about Autism
Childrens Services,Education Services,Other Strategic Functions,SLS - SEN Training SLA,Educational/Training Supplies - Resources,01/10/2018,5113000,530.00,OCR
Childrens Services,Education Services,Other Strategic Functions,SLS - SEN Training SLA,Subscriptions - Subscriptions to Associations,01/10/2018,5113215,250.00,Kent County Council
Childrens Services,Children's Social Care,Children Looked After,Leaving Care-UASC,Leaving Care Financial Assistance - Supp Accom/Hous Rents,01/10/2018,5114059,"1,265.70",Newhaven 16 Plus
Childrens Services,Children's Social Care,Children Looked After,LCS/Allowances-Accom,Leaving Care Financial Assistance - Supp Accom/Hous Rents,01/10/2018,5114060,929.10,Newhaven 16 Plus
Childrens Services,Children's Social Care,Children Looked After,LCS/Allowances-Accom,Leaving Care Financial Assistance - Supp Accom/Hous Rents,01/10/2018,5114074,"1,071.30",Newhaven 16 Plus
Childrens Services,Children's Social Care,Children Looked After,Virtual School PPG,Training Expenses - Staff External Training (UK Based),01/10/2018,5114170,"3,800.00",Kate Cairns Associates Ltd
Childrens Services,Cultural and Related Services,Recreation & Sport,Mayors Cup,Recreational Activities,01/10/2018,5114646,"4,730.00",BANGLADESH FOOTBALL ASSOCIATION
Childrens Services,Children's Social Care,Service Strategy,FSP Sect 17 - Team 4,Childrens Act Section 17 - Other Placements Bed & Breakfast,01/10/2018,5114751,360.00,Metro Properties Ltd
Childrens Services,Children's Social Care,Service Strategy,FSP Sect 17 - Team 4,Childrens Act Section 17 - Other Placements Bed & Breakfast,01/10/2018,5114754,360.00,Metro Properties Ltd
Childrens Services,Children's Social Care,Children Looked After,S23-Resi-P&V/OLA-Child Home,Childrens Act Section 23 - Placement Fee,01/10/2018,5114790,"-5,965.68",Kingdom Care Childrens Homes
Childrens Services,Children's Social Care,Children Looked After,S23-Resi-P&V/OLA-Child Home,Childrens Act Section 23 - Placement Fee,01/10/2018,5114791,"14,914.20",Kingdom Care Childrens Homes
Childrens Services,Children's Social Care,Children Looked After,S23 Fam Pl P&V-F/Care,Childrens Act Section 23 - Placement Fee,01/10/2018,5114820,784.00,Swiis Foster Care Limited
Childrens Services,Children's Social Care,Children Looked After,S23-Other-Mother & Baby Unit,Childrens Act Section 23 - Interpreting/Translation,01/10/2018,5114913,"5,260.00",UBIQUS (UK) LTD
Childrens Services,Children's Social Care,Children Looked After,S23-Other-Mother & Baby Unit,Childrens Act Section 23 - Interpreting/Translation,01/10/2018,5114914,552.00,UBIQUS (UK) LTD
Childrens Services,Education Services,Early Years,Chrisp St,Events & Exhibition Supplies,03/10/2018,5101095,250.00,JS Entertainments Ltd
Childrens Services,Children's Social Care,Services for young people,Youth Service Management,Educational/Training Supplies - Curriculum Visits/Activities,03/10/2018,5101096,"1,328.50",JS Entertainments Ltd
Childrens Services,Children's Social Care,Support Service and Management Costs,Schools Catering,Kitchen Supplies - Food and Beverages,03/10/2018,5101400,669.07,Thomas Ridley & Son Ltd
Childrens Services,Children's Social Care,Support Service and Management Costs,Schools Catering,Kitchen Supplies - Food and Beverages,03/10/2018,5101401,616.32,Thomas Ridley & Son Ltd
Childrens Services,Children's Social Care,Support Service and Management Costs,Schools Catering,Kitchen Supplies - Food and Beverages,03/10/2018,5101402,592.04,Thomas Ridley & Son Ltd
Childrens Services,Children's Social Care,Support Service and Management Costs,Swanlea,Kitchen Supplies - Food and Beverages,03/10/2018,5101404,869.59,Thomas Ridley & Son Ltd
Childrens Services,Children's Social Care,Support Service and Management Costs,Schools Catering,Kitchen Supplies - Food and Beverages,03/10/2018,5101405,412.16,Thomas Ridley & Son Ltd
Childrens Services,Children's Social Care,Support Service and Management Costs,Schools Catering,Kitchen Supplies - Food and Beverages,03/10/2018,5101407,274.26,Thomas Ridley & Son Ltd
Childrens Services,Children's Social Care,Support Service and Management Costs,Schools Catering,Kitchen Supplies - Food and Beverages,03/10/2018,5101409,306.96,Thomas Ridley & Son Ltd
Childrens Services,Children's Social Care,Support Service and Management Costs,Schools Catering,Kitchen Supplies - Food and Beverages,03/10/2018,5101410,456.90,Thomas Ridley & Son Ltd
Childrens Services,Children's Social Care,Support Service and Management Costs,Schools Catering,Kitchen Supplies - Food and Beverages,03/10/2018,5101411,459.84,Thomas Ridley & Son Ltd
Childrens Services,Children's Social Care,Support Service and Management Costs,Schools Catering,Kitchen Supplies - Food and Beverages,03/10/2018,5101412,484.10,Thomas Ridley & Son Ltd
Childrens Services,Cultural and Related Services,Recreation & Sport,Recreational Services Central,Repairs and Maintenance - Responsive - Buildings,03/10/2018,5102180,"5,100.00",JC Coster (Metalworks) Ltd
Childrens Services,Education Services,Early Years,John Smith CC,Services - Professional Fees - Translation Fees,03/10/2018,5102256,954.00,Oncall Interpreters LTD
Childrens Services,Children's Social Care,Commissioning and Social Work,Advice and Assessment Section 17,Childrens Act Section 17 - Interpreting/Translation,03/10/2018,5102258,"2,484.25",Oncall Interpreters LTD
Childrens Services,Children's Social Care,Family Support Services,CNN Pool: Joint Family Support,Services - Professional Fees - Translation Fees,03/10/2018,5102259,621.50,Oncall Interpreters LTD
Childrens Services,Children's Social Care,Children's and Young People's Safety,Child Protection Mgt & Admin,Services - Professional Fees - Translation Fees,03/10/2018,5102261,251.00,Oncall Interpreters LTD
Childrens Services,Children's Social Care,Service Strategy,FSP Sect 17 - Team 5,Childrens Act Section 17 - Interpreting/Translation,03/10/2018,5102271,"1,354.35",Oncall Interpreters LTD
Childrens Services,Children's Social Care,Service Strategy,FSP Sect 17 - Team 4,Childrens Act Section 17 - Interpreting/Translation,03/10/2018,5102272,946.00,Oncall Interpreters LTD
Childrens Services,Children's Social Care,Children's and Young People's Safety,FSP Sect 17 - Team 10,Childrens Act Section 17 - Interpreting/Translation,03/10/2018,5102274,572.60,Oncall Interpreters LTD
Childrens Services,Children's Social Care,Children Looked After,S23-Other-Semi-Ind. Unit,Childrens Act Section 23 - Interpreting/Translation,03/10/2018,5102285,"1,135.40",Oncall Interpreters LTD
Childrens Services,Children's Social Care,Support Service and Management Costs,Schools Catering,Kitchen Supplies - Food and Beverages,03/10/2018,5102324,428.36,Thomas Ridley & Son Ltd
Childrens Services,Children's Social Care,Support Service and Management Costs,Schools Catering,Kitchen Supplies - Food and Beverages,03/10/2018,5102326,671.27,Thomas Ridley & Son Ltd
Childrens Services,Children's Social Care,Support Service and Management Costs,Schools Catering,Kitchen Supplies - Food and Beverages,03/10/2018,5102327,932.53,Thomas Ridley & Son Ltd
Childrens Services,Children's Social Care,Support Service and Management Costs,Schools Catering,Kitchen Supplies - Food and Beverages,03/10/2018,5102329,589.36,Thomas Ridley & Son Ltd
Childrens Services,Children's Social Care,Support Service and Management Costs,Schools Catering,Kitchen Supplies - Food and Beverages,03/10/2018,5102333,393.55,Thomas Ridley & Son Ltd
Childrens Services,Children's Social Care,Support Service and Management Costs,Schools Catering,Kitchen Supplies - Food and Beverages,03/10/2018,5102335,364.94,Thomas Ridley & Son Ltd
Childrens Services,Children's Social Care,Support Service and Management Costs,Schools Catering,Kitchen Supplies - Food and Beverages,03/10/2018,5102336,505.80,Thomas Ridley & Son Ltd
Childrens Services,Children's Social Care,Support Service and Management Costs,Schools Catering,Kitchen Supplies - Food and Beverages,03/10/2018,5102337,347.59,Thomas Ridley & Son Ltd
Childrens Services,Children's Social Care,Support Service and Management Costs,Schools Catering,Kitchen Supplies - Food and Beverages,03/10/2018,5102338,276.01,Thomas Ridley & Son Ltd
Childrens Services,Children's Social Care,Support Service and Management Costs,Schools Catering,Kitchen Supplies - Food and Beverages,03/10/2018,5102339,496.27,Thomas Ridley & Son Ltd
Childrens Services,Children's Social Care,Support Service and Management Costs,Schools Catering,Kitchen Supplies - Food and Beverages,03/10/2018,5102341,"1,124.92",Thomas Ridley & Son Ltd
Childrens Services,Children's Social Care,Support Service and Management Costs,Schools Catering,Kitchen Supplies - Food and Beverages,03/10/2018,5102342,758.14,Thomas Ridley & Son Ltd
Childrens Services,Children's Social Care,Support Service and Management Costs,Schools Catering,Kitchen Supplies - Food and Beverages,03/10/2018,5102343,452.16,Thomas Ridley & Son Ltd
Childrens Services,Children's Social Care,Support Service and Management Costs,Schools Catering,Kitchen Supplies - Food and Beverages,03/10/2018,5102344,379.28,Thomas Ridley & Son Ltd
Childrens Services,Children's Social Care,Support Service and Management Costs,Schools Catering,Kitchen Supplies - Food and Beverages,03/10/2018,5102345,321.23,Thomas Ridley & Son Ltd
Childrens Services,Children's Social Care,Support Service and Management Costs,Schools Catering,Kitchen Supplies - Food and Beverages,03/10/2018,5102346,779.00,Thomas Ridley & Son Ltd
Childrens Services,Children's Social Care,Support Service and Management Costs,Schools Catering,Kitchen Supplies - Food and Beverages,03/10/2018,5102348,397.11,Thomas Ridley & Son Ltd
Childrens Services,Children's Social Care,Support Service and Management Costs,Schools Catering,Kitchen Supplies - Food and Beverages,03/10/2018,5102349,511.27,Thomas Ridley & Son Ltd
Childrens Services,Children's Social Care,Support Service and Management Costs,Schools Catering,Kitchen Supplies - Food and Beverages,03/10/2018,5102354,802.25,Thomas Ridley & Son Ltd
Childrens Services,Children's Social Care,Support Service and Management Costs,Schools Catering,Kitchen Supplies - Food and Beverages,03/10/2018,5102355,365.22,Thomas Ridley & Son Ltd
Childrens Services,Children's Social Care,Support Service and Management Costs,Schools Catering,Kitchen Supplies - Food and Beverages,03/10/2018,5102357,341.29,Thomas Ridley & Son Ltd
Childrens Services,Children's Social Care,Support Service and Management Costs,Sch. Meals A/c - Central Production Unit,Kitchen Supplies - Food and Beverages,03/10/2018,5102358,"1,206.18",Thomas Ridley & Son Ltd
Childrens Services,Children's Social Care,Support Service and Management Costs,Welfare Catering,Kitchen Supplies - Food and Beverages,03/10/2018,5102359,365.66,Thomas Ridley & Son Ltd
Childrens Services,Children's Social Care,Support Service and Management Costs,Schools Catering,Kitchen Supplies - Food and Beverages,03/10/2018,5102360,501.17,Thomas Ridley & Son Ltd
Childrens Services,Children's Social Care,Support Service and Management Costs,Schools Catering,Kitchen Supplies - Food and Beverages,03/10/2018,5102361,350.37,Thomas Ridley & Son Ltd
Childrens Services,Children's Social Care,Support Service and Management Costs,Schools Catering,Kitchen Supplies - Food and Beverages,03/10/2018,5102362,802.17,Thomas Ridley & Son Ltd
Childrens Services,Children's Social Care,Support Service and Management Costs,Schools Catering,Kitchen Supplies - Food and Beverages,03/10/2018,5102363,695.22,Thomas Ridley & Son Ltd
Childrens Services,Children's Social Care,Support Service and Management Costs,Schools Catering,Kitchen Supplies - Food and Beverages,03/10/2018,5102365,324.52,Thomas Ridley & Son Ltd
Childrens Services,Children's Social Care,Support Service and Management Costs,Schools Catering,Kitchen Supplies - Food and Beverages,03/10/2018,5102367,669.88,Thomas Ridley & Son Ltd
Childrens Services,Children's Social Care,Support Service and Management Costs,Schools Catering,Kitchen Supplies - Food and Beverages,03/10/2018,5102370,453.45,Thomas Ridley & Son Ltd
Childrens Services,Cultural and Related Services,Open Spaces,Mile End Park,Repairs and Maintenance - Responsive - Repair & Maintenance,03/10/2018,5102455,375.00,JC Coster (Metalworks) Ltd
Childrens Services,Education Services,Other Strategic Functions,Central Pupil Database Project,Computing - Purchase of Software,03/10/2018,5102523,"2,250.00",Serverlec Synergy Ltd
Childrens Services,Education Services,Other Strategic Functions,Special Education Needs DSG,Third Party Payments - Payments to Schools,03/10/2018,5102552,"29,333.33",Transitional Care LTD
Childrens Services,Education Services,Other Strategic Functions,Special Education Needs DSG,Third Party Payments - Payments to Schools,03/10/2018,5102553,"2,550.00",Transitional Care LTD
Childrens Services,Education Services,Early Years,Overland CC,Repairs and Maintenance - Responsive - Electrical,03/10/2018,5102561,350.00,surelock security systems ltd
Childrens Services,Children's Social Care,Children Looked After,Virtual School PPG,Agency Staff - Associations,03/10/2018,5102584,757.35,Academics ltd
Childrens Services,Children's Social Care,Support Service and Management Costs,Schools Catering,Kitchen Supplies - Food and Beverages,03/10/2018,5103460,416.25,William White Meats Ltd
Childrens Services,Children's Social Care,Support Service and Management Costs,Schools Catering,Kitchen Supplies - Food and Beverages,03/10/2018,5103462,340.50,William White Meats Ltd
Childrens Services,Children's Social Care,Support Service and Management Costs,Schools Catering,Kitchen Supplies - Food and Beverages,03/10/2018,5103482,427.50,William White Meats Ltd
Childrens Services,Children's Social Care,Support Service and Management Costs,Schools Catering,Kitchen Supplies - Food and Beverages,03/10/2018,5103485,290.53,William White Meats Ltd
Childrens Services,Children's Social Care,Support Service and Management Costs,Schools Catering,Kitchen Supplies - Food and Beverages,03/10/2018,5103493,338.08,William White Meats Ltd
Childrens Services,Children's Social Care,Support Service and Management Costs,Schools Catering,Kitchen Supplies - Food and Beverages,03/10/2018,5103507,"1,228.39",William White Meats Ltd
Childrens Services,Children's Social Care,Support Service and Management Costs,Schools Catering,Kitchen Supplies - Food and Beverages,03/10/2018,5103531,427.07,William White Meats Ltd
Childrens Services,Children's Social Care,Children Looked After,Virtual School PPG,Third Party Payments - Payments to Schools,03/10/2018,5103607,500.00,Wimbledon Chase Primary School - LBM
Childrens Services,Children's Social Care,Children Looked After,Virtual School PPG,Third Party Payments - Payments to Schools,03/10/2018,5103608,500.00,Wimbledon Chase Primary School - LBM
Childrens Services,Children's Social Care,Service Strategy,"FSP Sect 17 - Team 7		",Services - Professional Fees - Translation Fees,03/10/2018,5104635,852.50,Oncall Interpreters LTD
Childrens Services,Children's Social Care,Children Looked After,S23-Other-Semi-Ind. Unit,Childrens Act Section 23 - Placement Fee,03/10/2018,5104659,"3,600.00",Aegis Home Ltd
Childrens Services,Cultural and Related Services,Open Spaces,Mile End Park,Materials - Cleaning Materials,03/10/2018,5105431,"1,044.41",The Maintenance Supply Co Ltd
Childrens Services,Children's Social Care,Support Service and Management Costs,Schools Catering,Materials - Cleaning Materials,03/10/2018,5105476,284.30,The Maintenance Supply Co Ltd
Childrens Services,Children's Social Care,Children Looked After,LCS/Allowances-Accom,Leaving Care Financial Assistance - Supp Accom/Hous Rents,03/10/2018,5106704,"1,569.53",Heartwood Outreach Services Ltd
Childrens Services,Children's Social Care,Children Looked After,LCS/Allowances-Accom,Leaving Care Financial Assistance - Supported Living,03/10/2018,5106704,530.41,Heartwood Outreach Services Ltd
Childrens Services,Cultural and Related Services,Recreation & Sport,Sports Development,Recreational Activities,03/10/2018,5106713,"1,152.00",Apollo Event Medical Ltd
Childrens Services,Children's Social Care,Children Looked After,LCS/Allowances-Accom,Leaving Care Financial Assistance - Supp Accom/Hous Rents,03/10/2018,5107265,"1,028.57",TSS Ltd
Childrens Services,Children's Social Care,Children Looked After,LCS/Allowances-Accom,Leaving Care Financial Assistance - Supported Living,03/10/2018,5107265,342.85,TSS Ltd
Childrens Services,Education Services,Early Years,Mowlem CC,Educational/Training Supplies - Arts & Crafts,03/10/2018,5107292,253.80,Wesco UK
Childrens Services,Education Services,Services to Young People and Other Community Learners,Further and Higher Education,Education Trust - Grant,03/10/2018,5107368,"2,400.00",ISLAND ADVICE CENTRE
Childrens Services,Cultural and Related Services,Open Spaces,Mile End Park,Recreational Activities,03/10/2018,5107678,"3,047.60",Community Link Trading Ltd
Childrens Services,Education Services,Early Years,Isle of Dogs. CC,Educational/Training Supplies - Curriculum Visits/Activities,03/10/2018,5107715,405.00,ESPO
Childrens Services,Education Services,Other Strategic Functions,Empty Properties,Services - Professional Fees - Security Fees,03/10/2018,5108907,"5,760.00",Manpower Direct UK
Childrens Services,Education Services,Other Strategic Functions,Empty Properties,Services - Professional Fees - Security Fees,03/10/2018,5108908,"5,026.56",Manpower Direct UK
Childrens Services,Cultural and Related Services,Open Spaces,Stepney Green,Services - Professional Fees - Security Fees,03/10/2018,5108918,"4,005.54",Manpower Direct UK
Childrens Services,Cultural and Related Services,Open Spaces,Victoria Park,Services - Professional Fees - Security Fees,03/10/2018,5108922,"4,987.29",Manpower Direct UK
Childrens Services,Children's Social Care,Services for young people,Youth Service Management,Third Party Payments - Voluntary Associations,03/10/2018,5108985,"6,666.00",Society Links
Childrens Services,Children's Social Care,Children Looked After,S23 Fam Pl Fost/Adop Advert,Childrens Act Section 23 - Spec Pymnts Advertising,03/10/2018,5109048,"4,600.00",Natives Online Ltd
Childrens Services,Education Services,Early Years,Central Nursery LSAs,Third Party Payments - Payments to Schools,03/10/2018,5109742,"3,250.00",SELECT LEARNING LONDON LTD
Childrens Services,Children's Social Care,Support Service and Management Costs,Welfare Catering,Kitchen Supplies - Food and Beverages,03/10/2018,5110479,399.65,William White Meats Ltd
Childrens Services,Education Services,Other Strategic Functions,Special Education Needs DSG,Third Party Payments - Payments to Schools,03/10/2018,5110616,"6,216.00",Parayhouse School
Childrens Services,Education Services,Other Strategic Functions,Special Education Needs DSG,Third Party Payments - Payments to Schools,03/10/2018,5110617,"6,216.00",Parayhouse School
Childrens Services,Education Services,Other Strategic Functions,Special Education Needs DSG,Third Party Payments - Payments to Schools,03/10/2018,5110618,"6,216.00",Parayhouse School
Childrens Services,Children's Social Care,Support Service and Management Costs,Sch. Meals A/c - George Green,Kitchen Supplies - Catering Equipment,03/10/2018,5110811,889.54,W V Howe LTD
Childrens Services,Children's Social Care,Support Service and Management Costs,Sch. Meals A/c - Central Production Unit,Kitchen Supplies - Catering Equipment,03/10/2018,5110812,"3,883.21",W V Howe LTD
Childrens Services,Children's Social Care,Support Service and Management Costs,Sch. Meals A/c - Chisenhale,Kitchen Supplies - Catering Equipment,03/10/2018,5110813,367.32,W V Howe LTD
Childrens Services,Children's Social Care,Support Service and Management Costs,Sch. Meals A/c - Arnhem Wharf,Kitchen Supplies - Catering Equipment,03/10/2018,5110815,778.18,W V Howe LTD
Childrens Services,Children's Social Care,Support Service and Management Costs,Professional Dev Centre,Grounds Maintenance - Contract - Arboriculture Works,03/10/2018,5110871,"1,997.35",Figurehead Studios
Childrens Services,Education Services,Other Strategic Functions,Special Education Needs DSG,Third Party Payments - Payments to Schools,03/10/2018,5111507,"5,003.00",St Johns School
Childrens Services,Education Services,Other Strategic Functions,Special Education Needs DSG,Third Party Payments - Payments to Schools,03/10/2018,5111508,"7,782.00",St Johns School
Childrens Services,Education Services,Other Strategic Functions,Special Education Needs DSG,Third Party Payments - Payments to Schools,03/10/2018,5111509,"7,782.00",St Johns School
Childrens Services,Education Services,Other Strategic Functions,Special Education Needs DSG,Third Party Payments - Payments to Schools,03/10/2018,5111510,"6,261.00",St Johns School
Childrens Services,Education Services,Other Strategic Functions,Special Education Needs DSG,Third Party Payments - Payments to Schools,03/10/2018,5111511,"6,261.00",St Johns School
Childrens Services,Education Services,Other Strategic Functions,Special Education Needs DSG,Third Party Payments - Payments to Schools,03/10/2018,5111512,"11,115.67",St Johns School
Childrens Services,Education Services,Other Strategic Functions,Special Education Needs DSG,Third Party Payments - Payments to Schools,03/10/2018,5111514,"6,261.00",St Johns School
Childrens Services,Education Services,Other Strategic Functions,Special Education Needs DSG,Third Party Payments - Payments to Schools,03/10/2018,5111515,"7,782.00",St Johns School
Childrens Services,Education Services,Other Strategic Functions,Special Education Needs DSG,Third Party Payments - Payments to Schools,03/10/2018,5111516,"5,003.00",St Johns School
Childrens Services,Education Services,Other Strategic Functions,Special Education Needs DSG,Third Party Payments - Payments to Schools,03/10/2018,5111517,"15,564.00",St Johns School
Childrens Services,Education Services,Other Strategic Functions,Special Education Needs DSG,Third Party Payments - Payments to Schools,03/10/2018,5111521,"8,631.75",Blackheath High School
Childrens Services,Children's Social Care,Service Strategy,FSP Sect 17 - Team 9,Services - Professional Fees - Translation Fees,03/10/2018,5111537,941.50,Oncall Interpreters LTD
Childrens Services,Cultural and Related Services,Culture & Heritage,Arts-Park Events,Events & Exhibition Supplies,03/10/2018,5111586,"7,422.51",DC Site Services
Childrens Services,Children's Social Care,Children Looked After,S23-Other-Semi-Ind. Unit,Childrens Act Section 23 - Placement Fee,03/10/2018,5113025,"6,895.00",The Way Care Services Ltd
Childrens Services,No Service Specified,No Division Specified,Capital-Minor Works (SC),Building Works - Main Works,03/10/2018,5114592,"6,039.86",Poplar HARCA LTD
Childrens Services,Cultural and Related Services,Culture & Heritage,Arts-Park Events,Events & Exhibition Supplies,03/10/2018,5114604,"3,998.52",Christain Faversham Ltd
Childrens Services,Children's Social Care,Children Looked After,S23-Other-Semi-Ind. Unit,Childrens Act Section 23 - Interpreting/Translation,03/10/2018,5114607,994.20,Oncall Interpreters LTD
Childrens Services,Education Services,Other Strategic Functions,Central Pupil Database Project,Services - Professional Fees - Consultants Fees,03/10/2018,5114649,"4,508.00",Agilisys Professional Services
Childrens Services,Cultural and Related Services,Culture & Heritage,Arts-Park Events,Events & Exhibition Supplies,03/10/2018,5114766,"2,545.00",Exhibition Traffic Management Services
Childrens Services,Cultural and Related Services,Culture & Heritage,Arts-Park Events,Events & Exhibition Supplies,03/10/2018,5114767,"-1,050.00",Exhibition Traffic Management Services
Childrens Services,No Service Specified,No Division Specified,Capital-Minor Works (SC),Building Works - Main Works,03/10/2018,5114805,"8,697.13",Arcus Consulting LLP
Childrens Services,Children's Social Care,Services for young people,Outdoor,Educational/Training Supplies - Curriculum Visits/Activities,03/10/2018,5114809,"3,200.00",Award Scheme LTD
Childrens Services,Children's Social Care,Children Looked After,LCS/Allowances-Accom,Leaving Care Financial Assistance - Reg Plan Maint L-Allow,03/10/2018,5114968,406.00,SOCIAL SERVICES LEAVING CARE SERVICE
Childrens Services,Children's Social Care,Children Looked After,S23 Fam Pl In-Hse-S/Term F/C,Childrens Act Section 23 - All Contact Expenses,03/10/2018,5115135,765.00,Mile End Car Hire Limited
Childrens Services,Children's Social Care,Family Support Services,CNN Pool: Joint Family Support,Childrens Act Section 17 - Non-Contact Taxi Costs,03/10/2018,5115136,"2,320.00",Mile End Car Hire Limited
Childrens Services,Children's Social Care,Service Strategy,"FSP Sect 17 - Team 7		",Environmental Health Supplies - Samples for Testing,03/10/2018,5115164,363.00,E4 Law Limited T/A Lextox
Childrens Services,Children's Social Care,Service Strategy,FSP Sect 17 - Team 4,Childrens Act Section 17 - Other Placements Bed & Breakfast,03/10/2018,5115172,"1,140.00",Apolonia Property Services (Exodus Housing)
Childrens Services,Children's Social Care,Youth Justice,Youth Justice Team,Services - Professional Fees - Partnership Arrangement,03/10/2018,5115196,911.25,The Appropriate Adult Service Ltd
Childrens Services,Education Services,Other Strategic Functions,Ofsted Improvement Plan,Agency Staff - Staff External Training (UK Based),03/10/2018,5115198,"6,644.40",Sanctuary Personnel Ltd
Childrens Services,Children's Social Care,Children Looked After,S23 Fam Pl P&V-F/Care,Childrens Act Section 23 - Placement Fee,03/10/2018,5115204,350.00,Compass Fostering East Limited
Childrens Services,Children's Social Care,Children Looked After,S23 Fam Pl P&V-F/Care,Childrens Act Section 23 - Placement Fee,03/10/2018,5115204,"2,950.00",Compass Fostering East Limited
Childrens Services,Children's Social Care,Children Looked After,S23 Fam Pl P&V-F/Care,Childrens Act Section 23 - Placement Fee,03/10/2018,5115209,"5,580.60",Compass Fostering South East Limited
Childrens Services,Children's Social Care,Children Looked After,S23 Fam Pl P&V-F/Care,Childrens Act Section 23 - Placement Fee,03/10/2018,5115210,"5,766.62",Compass Fostering South East Limited
Childrens Services,Children's Social Care,Children Looked After,S23 Fam Pl P&V-F/Care,Childrens Act Section 23 - Placement Fee,03/10/2018,5115211,"5,580.60",Compass Fostering South East Limited
Childrens Services,Children's Social Care,Children Looked After,S23 Fam Pl P&V-F/Care,Childrens Act Section 23 - Placement Fee,03/10/2018,5115212,"5,766.62",Compass Fostering South East Limited
Childrens Services,Cultural and Related Services,Culture & Heritage,Event Fund,Third Party Payments - Voluntary Associations,03/10/2018,5115306,480.00,Paracarnival CIC
Childrens Services,Cultural and Related Services,Culture & Heritage,Event Fund,Third Party Payments - Voluntary Associations,03/10/2018,5115311,640.00,Pollyanna Training Centre
Childrens Services,Education Services,Other Strategic Functions,Out Of School Support,Water Services - Metered,03/10/2018,5115323,"3,641.31",CASTLE WATER
Childrens Services,Education Services,Other Strategic Functions,SLS - SEN Training SLA,Education & Training - Non Staff Tuition Fees,03/10/2018,5116133,280.00,Signature (was CACDP)
Childrens Services,Education Services,Other Strategic Functions,Parental Engagement,Meeting Expenses,03/10/2018,5116150,"1,402.83",the royal foundation of st katharine
Childrens Services,Education Services,Other Strategic Functions,Parental Engagement,Meeting Expenses,03/10/2018,5116151,"1,566.83",the royal foundation of st katharine
Childrens Services,Children's Social Care,Service Strategy,FSP Sect 17 - Team 3,Social Care - Day Care,03/10/2018,5116164,"3,913.60",Heartwood Outreach Services Ltd
Childrens Services,Children's Social Care,Service Strategy,FSP Sect 17 - Team 3,Social Care - Day Care,03/10/2018,5116165,"3,913.60",Heartwood Outreach Services Ltd
Childrens Services,Children's Social Care,Service Strategy,FSP Sect 17 - Team 3,Social Care - Day Care,03/10/2018,5116166,"4,094.32",Heartwood Outreach Services Ltd
Childrens Services,Children's Social Care,Service Strategy,FSP Sect 17 - Team 3,Social Care - Day Care,03/10/2018,5116167,"4,036.32",Heartwood Outreach Services Ltd
Childrens Services,Children's Social Care,Service Strategy,FSP Sect 17 - Team 3,Social Care - Day Care,03/10/2018,5116168,"4,094.32",Heartwood Outreach Services Ltd
Childrens Services,Education Services,Other Strategic Functions,Ofsted Improvement Plan,Training Expenses - Staff External Training (UK Based),03/10/2018,5116179,"18,074.05",Mark Finnis Training and Consultancy Ltd
Childrens Services,Children's Social Care,Children Looked After,S23 Fam Pl P&V-F/Care,Childrens Act Section 23 - Placement Fee,03/10/2018,5116186,"5,766.62",Compass Fostering South East Limited
Childrens Services,Education Services,Other Strategic Functions,Empty Properties,Water Services - Metered,03/10/2018,5116497,"3,211.02",CASTLE WATER
Childrens Services,Cultural and Related Services,Open Spaces,Parks & Open Spaces Man&Admin,Water Services - Metered,03/10/2018,5116557,290.05,CASTLE WATER
Childrens Services,Cultural and Related Services,Open Spaces,Parks & Open Spaces Man&Admin,Repairs and Maintenance - Responsive - Buildings,05/10/2018,5098509,"6,382.00",JC Coster (Metalworks) Ltd
Childrens Services,Children's Social Care,Support Service and Management Costs,Schools Catering,Kitchen Supplies - Food and Beverages,05/10/2018,5102619,328.02,Thomas Ridley & Son Ltd
Childrens Services,Children's Social Care,Support Service and Management Costs,Schools Catering,Kitchen Supplies - Food and Beverages,05/10/2018,5102620,264.45,Thomas Ridley & Son Ltd
Childrens Services,Children's Social Care,Support Service and Management Costs,Schools Catering,Kitchen Supplies - Food and Beverages,05/10/2018,5102622,419.90,Thomas Ridley & Son Ltd
Childrens Services,Children's Social Care,Support Service and Management Costs,Schools Catering,Kitchen Supplies - Food and Beverages,05/10/2018,5102623,848.32,Thomas Ridley & Son Ltd
Childrens Services,Children's Social Care,Support Service and Management Costs,Schools Catering,Kitchen Supplies - Food and Beverages,05/10/2018,5102624,736.40,Thomas Ridley & Son Ltd
Childrens Services,Children's Social Care,Support Service and Management Costs,Schools Catering,Kitchen Supplies - Food and Beverages,05/10/2018,5102625,475.14,Thomas Ridley & Son Ltd
Childrens Services,Children's Social Care,Support Service and Management Costs,Schools Catering,Kitchen Supplies - Food and Beverages,05/10/2018,5102626,"1,084.38",Thomas Ridley & Son Ltd
Childrens Services,Children's Social Care,Support Service and Management Costs,Sch. Meals A/c - Central Production Unit,Kitchen Supplies - Food and Beverages,05/10/2018,5102627,"1,039.16",Thomas Ridley & Son Ltd
Childrens Services,Children's Social Care,Support Service and Management Costs,Schools Catering,Kitchen Supplies - Food and Beverages,05/10/2018,5102628,395.17,Thomas Ridley & Son Ltd
Childrens Services,Children's Social Care,Support Service and Management Costs,Schools Catering,Kitchen Supplies - Food and Beverages,05/10/2018,5102629,430.19,Thomas Ridley & Son Ltd
Childrens Services,Children's Social Care,Support Service and Management Costs,Schools Catering,Kitchen Supplies - Food and Beverages,05/10/2018,5102631,522.70,Thomas Ridley & Son Ltd
Childrens Services,Children's Social Care,Support Service and Management Costs,Swanlea,Kitchen Supplies - Food and Beverages,05/10/2018,5102632,424.82,Thomas Ridley & Son Ltd
Childrens Services,Children's Social Care,Support Service and Management Costs,Schools Catering,Kitchen Supplies - Food and Beverages,05/10/2018,5102634,340.78,Thomas Ridley & Son Ltd
Childrens Services,Education Services,Early Years,Meath Gardens CC,Stationery,05/10/2018,5103164,482.04,Supplies Team Ltd
Childrens Services,Education Services,Early Years,Meath Gardens CC,Stationery,05/10/2018,5103164,482.04,Supplies Team Ltd
Childrens Services,Education Services,Early Years,Meath Gardens CC,Stationery,05/10/2018,5103164,351.60,Supplies Team Ltd
Childrens Services,Children's Social Care,Family Support Services,IPST S17 NRPF,Childrens Act Section 17 - Other Placements Bed & Breakfast,05/10/2018,5103222,"1,554.00",REFUGE
Childrens Services,Children's Social Care,Family Support Services,IPST S17 NRPF,Childrens Act Section 17 - Other Placements Bed & Breakfast,05/10/2018,5103223,428.57,REFUGE
Childrens Services,Children's Social Care,Support Service and Management Costs,Schools Catering,Kitchen Supplies - Food and Beverages,05/10/2018,5103238,573.96,Thomas Ridley & Son Ltd
Childrens Services,Children's Social Care,Support Service and Management Costs,Schools Catering,Kitchen Supplies - Food and Beverages,05/10/2018,5103239,328.26,Thomas Ridley & Son Ltd
Childrens Services,Children's Social Care,Support Service and Management Costs,Schools Catering,Kitchen Supplies - Food and Beverages,05/10/2018,5103240,331.55,Thomas Ridley & Son Ltd
Childrens Services,Children's Social Care,Support Service and Management Costs,Welfare Catering,Kitchen Supplies - Food and Beverages,05/10/2018,5103241,406.37,Thomas Ridley & Son Ltd
Childrens Services,Children's Social Care,Support Service and Management Costs,Sch. Meals A/c - Central Production Unit,Kitchen Supplies - Food and Beverages,05/10/2018,5103242,718.16,Thomas Ridley & Son Ltd
Childrens Services,Children's Social Care,Support Service and Management Costs,Toby Lane Function,Kitchen Supplies - Food and Beverages,05/10/2018,5103244,280.04,Thomas Ridley & Son Ltd
Childrens Services,Children's Social Care,Support Service and Management Costs,Schools Catering,Kitchen Supplies - Food and Beverages,05/10/2018,5103245,638.28,Thomas Ridley & Son Ltd
Childrens Services,Children's Social Care,Support Service and Management Costs,Schools Catering,Kitchen Supplies - Food and Beverages,05/10/2018,5103247,446.13,Thomas Ridley & Son Ltd
Childrens Services,Children's Social Care,Support Service and Management Costs,Schools Catering,Kitchen Supplies - Food and Beverages,05/10/2018,5103249,308.64,Thomas Ridley & Son Ltd
Childrens Services,Children's Social Care,Support Service and Management Costs,Schools Catering,Kitchen Supplies - Food and Beverages,05/10/2018,5103250,460.28,Thomas Ridley & Son Ltd
Childrens Services,Children's Social Care,Support Service and Management Costs,Schools Catering,Kitchen Supplies - Food and Beverages,05/10/2018,5103252,671.63,Thomas Ridley & Son Ltd
Childrens Services,Children's Social Care,Support Service and Management Costs,Schools Catering,Kitchen Supplies - Food and Beverages,05/10/2018,5103253,277.79,Thomas Ridley & Son Ltd
Childrens Services,Children's Social Care,Support Service and Management Costs,Schools Catering,Kitchen Supplies - Food and Beverages,05/10/2018,5103254,319.97,Thomas Ridley & Son Ltd
Childrens Services,Children's Social Care,Support Service and Management Costs,Schools Catering,Kitchen Supplies - Food and Beverages,05/10/2018,5103258,445.40,Thomas Ridley & Son Ltd
Childrens Services,Children's Social Care,Support Service and Management Costs,Schools Catering,Kitchen Supplies - Food and Beverages,05/10/2018,5103260,307.14,Thomas Ridley & Son Ltd
Childrens Services,Children's Social Care,Support Service and Management Costs,Schools Catering,Kitchen Supplies - Food and Beverages,05/10/2018,5103265,500.75,Thomas Ridley & Son Ltd
Childrens Services,Children's Social Care,Support Service and Management Costs,Schools Catering,Kitchen Supplies - Food and Beverages,05/10/2018,5103267,332.80,Thomas Ridley & Son Ltd
Childrens Services,Children's Social Care,Support Service and Management Costs,Schools Catering,Kitchen Supplies - Food and Beverages,05/10/2018,5103268,282.90,Thomas Ridley & Son Ltd
Childrens Services,Children's Social Care,Support Service and Management Costs,Schools Catering,Kitchen Supplies - Food and Beverages,05/10/2018,5103269,489.50,Thomas Ridley & Son Ltd
Childrens Services,Children's Social Care,Support Service and Management Costs,Sch. Meals A/c - P.D.C. Cateen,Kitchen Supplies - Food and Beverages,05/10/2018,5103274,288.36,Thomas Ridley & Son Ltd
Childrens Services,Children's Social Care,Support Service and Management Costs,Schools Catering,Kitchen Supplies - Food and Beverages,05/10/2018,5103275,400.38,Thomas Ridley & Son Ltd
Childrens Services,Children's Social Care,Support Service and Management Costs,Schools Catering,Kitchen Supplies - Food and Beverages,05/10/2018,5103276,471.83,Thomas Ridley & Son Ltd
Childrens Services,Children's Social Care,Support Service and Management Costs,Schools Catering,Kitchen Supplies - Food and Beverages,05/10/2018,5103277,361.20,Thomas Ridley & Son Ltd
Childrens Services,Children's Social Care,Support Service and Management Costs,Schools Catering,Kitchen Supplies - Food and Beverages,05/10/2018,5103278,401.16,Thomas Ridley & Son Ltd
Childrens Services,Children's Social Care,Support Service and Management Costs,Schools Catering,Kitchen Supplies - Food and Beverages,05/10/2018,5103279,298.82,Thomas Ridley & Son Ltd
Childrens Services,Children's Social Care,Support Service and Management Costs,Swanlea,Kitchen Supplies - Food and Beverages,05/10/2018,5103281,760.85,Thomas Ridley & Son Ltd
Childrens Services,Children's Social Care,Support Service and Management Costs,Schools Catering,Kitchen Supplies - Food and Beverages,05/10/2018,5103282,383.50,Thomas Ridley & Son Ltd
Childrens Services,Children's Social Care,Support Service and Management Costs,Schools Catering,Kitchen Supplies - Food and Beverages,05/10/2018,5103283,386.15,Thomas Ridley & Son Ltd
Childrens Services,Children's Social Care,Support Service and Management Costs,Schools Catering,Kitchen Supplies - Food and Beverages,05/10/2018,5103288,382.22,Thomas Ridley & Son Ltd
Childrens Services,Children's Social Care,Support Service and Management Costs,Schools Catering,Kitchen Supplies - Food and Beverages,05/10/2018,5103289,874.59,Thomas Ridley & Son Ltd
Childrens Services,Children's Social Care,Support Service and Management Costs,Schools Catering,Kitchen Supplies - Food and Beverages,05/10/2018,5103292,876.49,Thomas Ridley & Son Ltd
Childrens Services,Children's Social Care,Support Service and Management Costs,Schools Catering,Kitchen Supplies - Food and Beverages,05/10/2018,5103293,261.85,Thomas Ridley & Son Ltd
Childrens Services,Children's Social Care,Support Service and Management Costs,Schools Catering,Kitchen Supplies - Food and Beverages,05/10/2018,5103294,401.96,Thomas Ridley & Son Ltd
Childrens Services,Children's Social Care,Support Service and Management Costs,Schools Catering,Kitchen Supplies - Food and Beverages,05/10/2018,5103297,352.53,Thomas Ridley & Son Ltd
Childrens Services,Children's Social Care,Support Service and Management Costs,Schools Catering,Kitchen Supplies - Food and Beverages,05/10/2018,5103298,324.43,Thomas Ridley & Son Ltd
Childrens Services,Children's Social Care,Support Service and Management Costs,Schools Catering,Kitchen Supplies - Food and Beverages,05/10/2018,5103299,399.70,Thomas Ridley & Son Ltd
Childrens Services,Children's Social Care,Support Service and Management Costs,Schools Catering,Kitchen Supplies - Food and Beverages,05/10/2018,5103300,798.39,Thomas Ridley & Son Ltd
Childrens Services,Children's Social Care,Support Service and Management Costs,Schools Catering,Kitchen Supplies - Food and Beverages,05/10/2018,5103302,658.11,Thomas Ridley & Son Ltd
Childrens Services,Children's Social Care,Support Service and Management Costs,Schools Catering,Kitchen Supplies - Food and Beverages,05/10/2018,5103304,322.44,Thomas Ridley & Son Ltd
Childrens Services,Children's Social Care,Support Service and Management Costs,Schools Catering,Kitchen Supplies - Food and Beverages,05/10/2018,5103305,613.80,Thomas Ridley & Son Ltd
Childrens Services,Children's Social Care,Support Service and Management Costs,Schools Catering,Kitchen Supplies - Food and Beverages,05/10/2018,5103306,673.62,Thomas Ridley & Son Ltd
Childrens Services,Children's Social Care,Support Service and Management Costs,Schools Catering,Kitchen Supplies - Food and Beverages,05/10/2018,5103308,617.19,Thomas Ridley & Son Ltd
Childrens Services,Children's Social Care,Support Service and Management Costs,Schools Catering,Kitchen Supplies - Food and Beverages,05/10/2018,5103309,356.68,Thomas Ridley & Son Ltd
Childrens Services,Children's Social Care,Support Service and Management Costs,Schools Catering,Kitchen Supplies - Food and Beverages,05/10/2018,5103310,276.50,Thomas Ridley & Son Ltd
Childrens Services,Children's Social Care,Support Service and Management Costs,Schools Catering,Kitchen Supplies - Food and Beverages,05/10/2018,5103311,626.46,Thomas Ridley & Son Ltd
Childrens Services,Children's Social Care,Support Service and Management Costs,Schools Catering,Kitchen Supplies - Food and Beverages,05/10/2018,5103312,265.94,Thomas Ridley & Son Ltd
Childrens Services,Children's Social Care,Support Service and Management Costs,Schools Catering,Kitchen Supplies - Food and Beverages,05/10/2018,5103314,341.65,Thomas Ridley & Son Ltd
Childrens Services,Children's Social Care,Support Service and Management Costs,"Mulberry Caf�		",Kitchen Supplies - Food and Beverages,05/10/2018,5103315,375.53,Thomas Ridley & Son Ltd
Childrens Services,Children's Social Care,Support Service and Management Costs,Schools Catering,Kitchen Supplies - Food and Beverages,05/10/2018,5103316,419.85,Thomas Ridley & Son Ltd
Childrens Services,Children's Social Care,Support Service and Management Costs,Schools Catering,Kitchen Supplies - Food and Beverages,05/10/2018,5103317,527.21,Thomas Ridley & Son Ltd
Childrens Services,Children's Social Care,Support Service and Management Costs,Schools Catering,Kitchen Supplies - Food and Beverages,05/10/2018,5103318,267.07,Thomas Ridley & Son Ltd
Childrens Services,Children's Social Care,Support Service and Management Costs,Schools Catering,Kitchen Supplies - Food and Beverages,05/10/2018,5103319,364.59,Thomas Ridley & Son Ltd
Childrens Services,Children's Social Care,Support Service and Management Costs,Schools Catering,Kitchen Supplies - Food and Beverages,05/10/2018,5103322,307.93,Thomas Ridley & Son Ltd
Childrens Services,Children's Social Care,Support Service and Management Costs,Schools Catering,Kitchen Supplies - Food and Beverages,05/10/2018,5103323,527.00,Thomas Ridley & Son Ltd
Childrens Services,Children's Social Care,Support Service and Management Costs,Schools Catering,Kitchen Supplies - Food and Beverages,05/10/2018,5103324,"1,126.00",Thomas Ridley & Son Ltd
Childrens Services,Children's Social Care,Support Service and Management Costs,Schools Catering,Kitchen Supplies - Food and Beverages,05/10/2018,5103325,312.85,Thomas Ridley & Son Ltd
Childrens Services,Children's Social Care,Support Service and Management Costs,Schools Catering,Kitchen Supplies - Food and Beverages,05/10/2018,5103326,492.95,Thomas Ridley & Son Ltd
Childrens Services,Children's Social Care,Support Service and Management Costs,Schools Catering,Kitchen Supplies - Food and Beverages,05/10/2018,5103327,313.87,Thomas Ridley & Son Ltd
Childrens Services,Children's Social Care,Support Service and Management Costs,Schools Catering,Kitchen Supplies - Food and Beverages,05/10/2018,5103328,354.26,Thomas Ridley & Son Ltd
Childrens Services,Children's Social Care,Support Service and Management Costs,Schools Catering,Kitchen Supplies - Food and Beverages,05/10/2018,5103453,310.24,William White Meats Ltd
Childrens Services,Children's Social Care,Support Service and Management Costs,Schools Catering,Kitchen Supplies - Food and Beverages,05/10/2018,5103458,341.10,William White Meats Ltd
Childrens Services,Children's Social Care,Support Service and Management Costs,Schools Catering,Kitchen Supplies - Food and Beverages,05/10/2018,5103464,359.30,William White Meats Ltd
Childrens Services,Children's Social Care,Support Service and Management Costs,Schools Catering,Kitchen Supplies - Food and Beverages,05/10/2018,5103476,811.28,William White Meats Ltd
Childrens Services,Children's Social Care,Support Service and Management Costs,Schools Catering,Kitchen Supplies - Food and Beverages,05/10/2018,5103495,370.50,William White Meats Ltd
Childrens Services,Children's Social Care,Support Service and Management Costs,Schools Catering,Kitchen Supplies - Food and Beverages,05/10/2018,5103516,287.14,William White Meats Ltd
Childrens Services,Children's Social Care,Support Service and Management Costs,Schools Catering,Kitchen Supplies - Food and Beverages,05/10/2018,5103525,330.80,William White Meats Ltd
Childrens Services,Children's Social Care,Support Service and Management Costs,Schools Catering,Kitchen Supplies - Food and Beverages,05/10/2018,5103528,261.18,William White Meats Ltd
Childrens Services,Children's Social Care,Support Service and Management Costs,Schools Catering,Kitchen Supplies - Food and Beverages,05/10/2018,5103532,514.89,William White Meats Ltd
Childrens Services,Children's Social Care,Support Service and Management Costs,Schools Catering,Kitchen Supplies - Food and Beverages,05/10/2018,5103537,369.58,William White Meats Ltd
Childrens Services,Children's Social Care,Support Service and Management Costs,Schools Catering,Kitchen Supplies - Food and Beverages,05/10/2018,5103538,429.34,William White Meats Ltd
Childrens Services,Children's Social Care,Support Service and Management Costs,Schools Catering,Kitchen Supplies - Food and Beverages,05/10/2018,5103539,330.80,William White Meats Ltd
Childrens Services,Children's Social Care,Support Service and Management Costs,Schools Catering,Kitchen Supplies - Food and Beverages,05/10/2018,5103547,255.19,William White Meats Ltd
Childrens Services,Children's Social Care,Support Service and Management Costs,Schools Catering,Kitchen Supplies - Food and Beverages,05/10/2018,5103548,256.50,William White Meats Ltd
Childrens Services,Children's Social Care,Support Service and Management Costs,Schools Catering,Kitchen Supplies - Food and Beverages,05/10/2018,5103549,416.58,William White Meats Ltd
Childrens Services,Children's Social Care,Support Service and Management Costs,Schools Catering,Kitchen Supplies - Food and Beverages,05/10/2018,5103550,410.23,William White Meats Ltd
Childrens Services,Children's Social Care,Support Service and Management Costs,Schools Catering,Kitchen Supplies - Food and Beverages,05/10/2018,5103551,286.88,William White Meats Ltd
Childrens Services,Children's Social Care,Support Service and Management Costs,Schools Catering,Kitchen Supplies - Food and Beverages,05/10/2018,5103552,451.82,William White Meats Ltd
Childrens Services,Children's Social Care,Support Service and Management Costs,Schools Catering,Kitchen Supplies - Food and Beverages,05/10/2018,5103553,303.02,William White Meats Ltd
Childrens Services,Children's Social Care,Support Service and Management Costs,Sch. Meals A/c - Central Production Unit,Kitchen Supplies - Food and Beverages,05/10/2018,5103556,989.20,William White Meats Ltd
Childrens Services,Children's Social Care,Support Service and Management Costs,Schools Catering,Kitchen Supplies - Food and Beverages,05/10/2018,5103557,806.87,William White Meats Ltd
Childrens Services,Children's Social Care,Support Service and Management Costs,Schools Catering,Kitchen Supplies - Food and Beverages,05/10/2018,5103558,551.49,William White Meats Ltd
Childrens Services,Children's Social Care,Support Service and Management Costs,Schools Catering,Kitchen Supplies - Food and Beverages,05/10/2018,5103560,313.50,William White Meats Ltd
Childrens Services,Children's Social Care,Support Service and Management Costs,Schools Catering,Kitchen Supplies - Food and Beverages,05/10/2018,5103563,342.00,William White Meats Ltd
Childrens Services,Children's Social Care,Support Service and Management Costs,Schools Catering,Kitchen Supplies - Food and Beverages,05/10/2018,5103565,416.30,William White Meats Ltd
Childrens Services,Education Services,Other Strategic Functions,High Needs Academies & Free Schs,Third Party Payments - Payments to Schools,05/10/2018,5103599,"1,310.00",THE BRIT SCHOOL
Childrens Services,Children's Social Care,Children Looked After,Virtual School PPG,Third Party Payments - Payments to Schools,05/10/2018,5105412,400.00,Thamesview School
Childrens Services,Education Services,Early Years,Children Centre Central Team,Medical Requisites,05/10/2018,5106710,555.00,NHS SUPPLY CHAIN
Childrens Services,Education Services,Early Years,Children Centre Central Team,Medical Requisites,05/10/2018,5106711,433.83,NHS SUPPLY CHAIN
Childrens Services,Education Services,Early Years,Children Centre Central Team,Medical Requisites,05/10/2018,5106712,417.42,NHS SUPPLY CHAIN
Childrens Services,Cultural and Related Services,Culture & Heritage,Arts-Park Events,Events & Exhibition Supplies,05/10/2018,5107241,"1,996.50",Beta Distribution (South) Ltd t/a London Letterbox Marketing
Childrens Services,Education Services,Other Strategic Functions,High Needs Academies & Free Schs,Third Party Payments - Payments to Schools,05/10/2018,5107266,"12,947.63",Cheam Fields Primary Academy
Childrens Services,Children's Social Care,Support Service and Management Costs,Schools Catering,Kitchen Supplies - Food and Beverages,05/10/2018,5107413,269.48,William White Meats Ltd
Childrens Services,Children's Social Care,Support Service and Management Costs,Schools Catering,Kitchen Supplies - Food and Beverages,05/10/2018,5107417,259.09,William White Meats Ltd
Childrens Services,Children's Social Care,Support Service and Management Costs,Schools Catering,Kitchen Supplies - Food and Beverages,05/10/2018,5107419,566.38,William White Meats Ltd
Childrens Services,Children's Social Care,Support Service and Management Costs,Schools Catering,Kitchen Supplies - Food and Beverages,05/10/2018,5107421,264.54,William White Meats Ltd
Childrens Services,Children's Social Care,Support Service and Management Costs,Schools Catering,Kitchen Supplies - Food and Beverages,05/10/2018,5107422,500.49,William White Meats Ltd
Childrens Services,Children's Social Care,Support Service and Management Costs,Schools Catering,Kitchen Supplies - Food and Beverages,05/10/2018,5107423,269.19,William White Meats Ltd
Childrens Services,Children's Social Care,Support Service and Management Costs,Schools Catering,Kitchen Supplies - Food and Beverages,05/10/2018,5107425,358.55,William White Meats Ltd
Childrens Services,Children's Social Care,Support Service and Management Costs,Schools Catering,Kitchen Supplies - Food and Beverages,05/10/2018,5107426,526.34,William White Meats Ltd
Childrens Services,Children's Social Care,Support Service and Management Costs,Schools Catering,Kitchen Supplies - Food and Beverages,05/10/2018,5107429,300.33,William White Meats Ltd
Childrens Services,Children's Social Care,Support Service and Management Costs,Schools Catering,Kitchen Supplies - Food and Beverages,05/10/2018,5107430,328.07,William White Meats Ltd
Childrens Services,Children's Social Care,Support Service and Management Costs,Schools Catering,Kitchen Supplies - Food and Beverages,05/10/2018,5107433,507.55,William White Meats Ltd
Childrens Services,Children's Social Care,Support Service and Management Costs,Swanlea,Kitchen Supplies - Food and Beverages,05/10/2018,5107440,672.85,William White Meats Ltd
Childrens Services,Children's Social Care,Support Service and Management Costs,Schools Catering,Kitchen Supplies - Food and Beverages,05/10/2018,5107445,287.79,William White Meats Ltd
Childrens Services,Children's Social Care,Support Service and Management Costs,Schools Catering,Kitchen Supplies - Food and Beverages,05/10/2018,5107446,284.03,William White Meats Ltd
Childrens Services,Children's Social Care,Support Service and Management Costs,Schools Catering,Kitchen Supplies - Food and Beverages,05/10/2018,5107447,256.09,William White Meats Ltd
Childrens Services,Children's Social Care,Support Service and Management Costs,Schools Catering,Kitchen Supplies - Food and Beverages,05/10/2018,5107451,519.71,William White Meats Ltd
Childrens Services,Children's Social Care,Support Service and Management Costs,Schools Catering,Kitchen Supplies - Food and Beverages,05/10/2018,5107453,360.84,William White Meats Ltd
Childrens Services,Children's Social Care,Support Service and Management Costs,Schools Catering,Kitchen Supplies - Food and Beverages,05/10/2018,5107455,324.17,William White Meats Ltd
Childrens Services,Children's Social Care,Support Service and Management Costs,Schools Catering,Kitchen Supplies - Food and Beverages,05/10/2018,5107457,869.21,William White Meats Ltd
Childrens Services,Children's Social Care,Support Service and Management Costs,Schools Catering,Kitchen Supplies - Food and Beverages,05/10/2018,5107458,250.57,William White Meats Ltd
Childrens Services,Education Services,Other Strategic Functions,Special Education Needs DSG,Third Party Payments - Payments to Schools,05/10/2018,5107593,"50,691.34",St Elizabeth's Centre
Childrens Services,Children's Social Care,Children Looked After,S23-Resi-P&V/OLA-Boarding Sch,Childrens Act Section 23 - Placement Fee,05/10/2018,5107593,"50,691.34",St Elizabeth's Centre
Childrens Services,Education Services,Early Years,Overland CC,Grounds Maintenance - Contract - Horticultural Maintenance,05/10/2018,5107710,296.75,Yorkshire Purchasing Organisation
Childrens Services,Education Services,Early Years,Chrisp St,Community Equipment  Supplies - Aids and Appliances,05/10/2018,5107712,276.75,Yorkshire Purchasing Organisation
Childrens Services,Cultural and Related Services,Recreation & Sport,Mayors Cup,Events & Exhibition Supplies,05/10/2018,5107746,524.17,Neils Sports Trophies
Childrens Services,Children's Social Care,Support Service and Management Costs,Sch. Meals A/c - Bow School,Kitchen Supplies - Food and Beverages,05/10/2018,5109789,413.10,Tiffin Sandwiches
Childrens Services,Children's Social Care,Support Service and Management Costs,Sch. Meals A/c - C.F.S. Upper (Harley Grove),Catering - Hospitality,05/10/2018,5109790,437.40,Tiffin Sandwiches
Childrens Services,Children's Social Care,Support Service and Management Costs,Sch. Meals A/c - Langdon Park,Kitchen Supplies - Food and Beverages,05/10/2018,5109791,337.77,Tiffin Sandwiches
Childrens Services,Children's Social Care,Support Service and Management Costs,Sch. Meals A/c - Morpeth,Kitchen Supplies - Food and Beverages,05/10/2018,5109792,648.00,Tiffin Sandwiches
Childrens Services,Children's Social Care,Support Service and Management Costs,Sch. Meals A/c - Oaklands,Kitchen Supplies - Food and Beverages,05/10/2018,5109793,336.15,Tiffin Sandwiches
Childrens Services,Children's Social Care,Support Service and Management Costs,Sch. Meals A/c - Stepney Green,Kitchen Supplies - Food and Beverages,05/10/2018,5109795,283.50,Tiffin Sandwiches
Childrens Services,Children's Social Care,Support Service and Management Costs,"Mulberry Caf�		",Kitchen Supplies - Food and Beverages,05/10/2018,5109796,284.29,Tiffin Sandwiches
Childrens Services,Children's Social Care,Support Service and Management Costs,Sch. Meals A/c - George Green,Kitchen Supplies - Food and Beverages,05/10/2018,5109799,340.20,Tiffin Sandwiches
Childrens Services,Children's Social Care,Children Looked After,LCS/Allowances-Accom,Leaving Care Financial Assistance - Supp Accom/Hous Rents,05/10/2018,5110497,"3,470.90",Outward Housing
Childrens Services,Cultural and Related Services,Recreation & Sport,Summer Time Out Recreation,Recreational Activities,05/10/2018,5110594,360.00,Victoria Park Harriers & THAC
Childrens Services,Cultural and Related Services,Recreation & Sport,Sports Development,Recreational Activities,05/10/2018,5110595,"1,800.00",Victoria Park Harriers & THAC
Childrens Services,Children's Social Care,Services for young people,LAPS 1 - 8,Educational/Training Supplies - Curriculum Visits/Activities,05/10/2018,5110776,-434.17,AVON TYRRELL YOUTH CLUBS UK
Childrens Services,Children's Social Care,Services for young people,LAPS 1 - 8,Educational/Training Supplies - Curriculum Visits/Activities,05/10/2018,5110776,790.82,AVON TYRRELL YOUTH CLUBS UK
Childrens Services,Children's Social Care,Support Service and Management Costs,Sch. Meals A/c - Old Palace,Kitchen Supplies - Catering Equipment,05/10/2018,5110818,696.96,W V Howe LTD
Childrens Services,Education Services,Other Strategic Functions,Music Trading Account,Third Party Payments - Other Establishments,05/10/2018,5111505,923.00,Voces Cantabiles Music
Childrens Services,Education Services,Other Strategic Functions,Special Education Needs DSG,Third Party Payments - Payments to Schools,05/10/2018,5113898,"35,259.13",St Elizabeth's Centre
Childrens Services,Children's Social Care,Children Looked After,S23 18+ & Relevnt Young People,Childrens Act Section 23 - Placement Fee,05/10/2018,5113898,"35,259.13",St Elizabeth's Centre
Childrens Services,Education Services,Other Strategic Functions,Special Education Needs DSG,Third Party Payments - Payments to Schools,05/10/2018,5113899,"37,407.18",St Elizabeth's Centre
Childrens Services,Children's Social Care,Children Looked After,S23-Resi-P&V/OLA-Boarding Sch,Childrens Act Section 23 - Placement Fee,05/10/2018,5113899,"37,407.18",St Elizabeth's Centre
Childrens Services,Children's Social Care,Children Looked After,LCS/Allowances-Accom,Leaving Care Financial Assistance - Supp Accom/Hous Rents,05/10/2018,5113920,968.00,Youth reality homes
Childrens Services,Children's Social Care,Children Looked After,LCS/Allowances-Accom,Leaving Care Financial Assistance - Supported Living,05/10/2018,5113920,"2,132.00",Youth reality homes
Childrens Services,Children's Social Care,Children Looked After,LCS/Allowances-Accom,Leaving Care Financial Assistance - Supported Living,05/10/2018,5114064,"3,570.60",Newhaven 16 Plus
Childrens Services,Children's Social Care,Children Looked After,Leaving Care-UASC,Leaving Care Financial Assistance - Supp Accom/Hous Rents,05/10/2018,5114066,929.10,Newhaven 16 Plus
Childrens Services,Children's Social Care,Children Looked After,LCS/Allowances-Accom,Leaving Care Financial Assistance - Supported Living,05/10/2018,5114069,"3,570.60",Newhaven 16 Plus
Childrens Services,Children's Social Care,Children Looked After,LCS/Allowances-Accom,Leaving Care Financial Assistance - Supp Accom/Hous Rents,05/10/2018,5114070,-727.20,Newhaven 16 Plus
Childrens Services,Children's Social Care,Children Looked After,LCS/Allowances-Accom,Leaving Care Financial Assistance - Supp Accom/Hous Rents,05/10/2018,5114071,929.10,Newhaven 16 Plus
Childrens Services,Children's Social Care,Children Looked After,LCS/Allowances-Accom,Leaving Care Financial Assistance - Supported Living,05/10/2018,5114072,"3,570.60",Newhaven 16 Plus
Childrens Services,Children's Social Care,Children Looked After,LCS/Allowances-Accom,Leaving Care Financial Assistance - Supp Accom/Hous Rents,05/10/2018,5114073,-324.92,Newhaven 16 Plus
Childrens Services,Children's Social Care,Children Looked After,LCS/Allowances-Accom,Leaving Care Financial Assistance - Supp Accom/Hous Rents,05/10/2018,5114075,428.52,Newhaven 16 Plus
Childrens Services,Children's Social Care,Children Looked After,LCS/Allowances-Accom,Leaving Care Financial Assistance - Supp Accom/Hous Rents,05/10/2018,5114077,"1,071.30",Newhaven 16 Plus
Childrens Services,Children's Social Care,Children Looked After,LCS/Allowances-Accom,Leaving Care Financial Assistance - Supported Living,05/10/2018,5114078,428.40,Newhaven 16 Plus
Childrens Services,Children's Social Care,Children Looked After,LCS/Allowances-Accom,Leaving Care Financial Assistance - Supp Accom/Hous Rents,05/10/2018,5114618,887.14,EMPOWERHOUSE ltd
Childrens Services,Children's Social Care,Children Looked After,LCS/Allowances-Accom,Leaving Care Financial Assistance - Supported Living,05/10/2018,5114618,"2,970.00",EMPOWERHOUSE ltd
Childrens Services,Education Services,Other Strategic Functions,Schools Library,Comms - Courier,05/10/2018,5114639,"1,211.00",Figurehead Studios
Childrens Services,Education Services,Other Strategic Functions,Schools Library,Comms - Courier,05/10/2018,5114640,"2,121.00",Figurehead Studios
Childrens Services,Children's Social Care,Family Support Services,IPST S17 NRPF,Childrens Act Section 17 - Other Placements Bed & Breakfast,05/10/2018,5115169,"1,110.00",Apolonia Property Services (Exodus Housing)
Childrens Services,Children's Social Care,Family Support Services,IPST S17 NRPF,Childrens Act Section 17 - Other Placements Bed & Breakfast,05/10/2018,5115170,"1,020.00",Apolonia Property Services (Exodus Housing)
Childrens Services,Children's Social Care,Family Support Services,IPST S17 NRPF,Childrens Act Section 17 - Other Placements Bed & Breakfast,05/10/2018,5115173,"1,140.00",Apolonia Property Services (Exodus Housing)
Childrens Services,Children's Social Care,Family Support Services,IPST S17 NRPF,Childrens Act Section 17 - Other Placements Bed & Breakfast,05/10/2018,5115174,960.00,Apolonia Property Services (Exodus Housing)
Childrens Services,Children's Social Care,Family Support Services,IPST S17 NRPF,Childrens Act Section 17 - Other Placements Bed & Breakfast,05/10/2018,5115175,896.00,Apolonia Property Services (Exodus Housing)
Childrens Services,Children's Social Care,Service Strategy,FSP Sect 17 - Team 9,Childrens Act Section 17 - Expert Assessmt/Witness Costs,05/10/2018,5115334,371.30,The Priory Hospital
Childrens Services,No Service Specified,No Division Specified,Capital-Minor Works (SC),Building Works - Main Works,05/10/2018,5116499,"14,137.50",St Matthias Conservation Trust LTD
Childrens Services,Children's Social Care,Family Support Services,CNN Pool: Joint Family Support,Social Care - Homecare,05/10/2018,5117163,558.00,Medstar Domiciliary Care Servies Ltd
Childrens Services,Children's Social Care,Children Looked After,S23-Other-Semi-Ind. Unit,Childrens Act Section 23 - Placement Fee,05/10/2018,5117298,571.71,Silver Birch Care LTD
Childrens Services,Children's Social Care,Family Support Services,IPST S17 NRPF,Childrens Act Section 17 - Other Placements Bed & Breakfast,05/10/2018,5117300,936.00,METROPOLITAN & CROWN
Childrens Services,Children's Social Care,Children Looked After,C.B.C & Fam.Prev/Support-Mgmnt,Third Party Payments - Other Agencies,05/10/2018,5117947,"45,593.00",TCS SERVICES LTD
Childrens Services,Cultural and Related Services,Open Spaces,Victoria Park,Events & Exhibition Supplies,05/10/2018,5118158,300.00,REDACTED SECTION 40 FOI ACT
Childrens Services,Education Services,Other Strategic Functions,Governors Services,Services - Professional Fees - Consultants Fees,05/10/2018,5118161,500.00,ACFM
Childrens Services,Cultural and Related Services,Open Spaces,Victoria Park,Uniforms & Clothing,08/10/2018,5100420,596.86,SMI Group
Childrens Services,Cultural and Related Services,Open Spaces,Mile End Park,Repairs and Maintenance - Responsive - Buildings,08/10/2018,5103575,"2,320.00",JC Coster (Metalworks) Ltd
Childrens Services,Children's Social Care,Children Looked After,S23-Resi-P&V/OLA-Child Home,Childrens Act Section 23 - Placement Fee,08/10/2018,5103650,"10,407.12",Care 2 Share 2
Childrens Services,Children's Social Care,Support Service and Management Costs,Sch. Meals A/c - Central Production Unit,Kitchen Supplies - Food and Beverages,08/10/2018,5103669,"1,764.79",Thomas Ridley & Son Ltd
Childrens Services,Children's Social Care,Support Service and Management Costs,Schools Catering,Kitchen Supplies - Food and Beverages,08/10/2018,5103671,769.29,Thomas Ridley & Son Ltd
Childrens Services,Children's Social Care,Support Service and Management Costs,Schools Catering,Kitchen Supplies - Food and Beverages,08/10/2018,5103675,404.20,Thomas Ridley & Son Ltd
Childrens Services,Children's Social Care,Support Service and Management Costs,Schools Catering,Kitchen Supplies - Food and Beverages,08/10/2018,5103676,443.95,Thomas Ridley & Son Ltd
Childrens Services,Children's Social Care,Support Service and Management Costs,Schools Catering,Kitchen Supplies - Food and Beverages,08/10/2018,5103678,267.13,Thomas Ridley & Son Ltd
Childrens Services,Children's Social Care,Support Service and Management Costs,Schools Catering,Kitchen Supplies - Food and Beverages,08/10/2018,5103680,437.74,Thomas Ridley & Son Ltd
Childrens Services,Children's Social Care,Support Service and Management Costs,Schools Catering,Kitchen Supplies - Food and Beverages,08/10/2018,5103708,320.98,Prescott-Thomas LTD.
Childrens Services,Children's Social Care,Support Service and Management Costs,Swanlea,Kitchen Supplies - Food and Beverages,08/10/2018,5103761,253.41,Prescott-Thomas LTD.
Childrens Services,Children's Social Care,Support Service and Management Costs,Schools Catering,Kitchen Supplies - Food and Beverages,08/10/2018,5104717,943.44,Thomas Ridley & Son Ltd
Childrens Services,Children's Social Care,Support Service and Management Costs,Schools Catering,Kitchen Supplies - Food and Beverages,08/10/2018,5104719,294.91,Thomas Ridley & Son Ltd
Childrens Services,Children's Social Care,Support Service and Management Costs,Schools Catering,Kitchen Supplies - Food and Beverages,08/10/2018,5104720,541.89,Thomas Ridley & Son Ltd
Childrens Services,Children's Social Care,Support Service and Management Costs,Schools Catering,Kitchen Supplies - Food and Beverages,08/10/2018,5104722,254.81,Thomas Ridley & Son Ltd
Childrens Services,Children's Social Care,Support Service and Management Costs,Schools Catering,Kitchen Supplies - Food and Beverages,08/10/2018,5104723,398.53,Thomas Ridley & Son Ltd
Childrens Services,Children's Social Care,Support Service and Management Costs,Schools Catering,Kitchen Supplies - Food and Beverages,08/10/2018,5104728,484.31,Thomas Ridley & Son Ltd
Childrens Services,Children's Social Care,Support Service and Management Costs,Schools Catering,Kitchen Supplies - Food and Beverages,08/10/2018,5104729,607.20,Thomas Ridley & Son Ltd
Childrens Services,Children's Social Care,Support Service and Management Costs,Schools Catering,Kitchen Supplies - Food and Beverages,08/10/2018,5104731,324.28,Thomas Ridley & Son Ltd
Childrens Services,Children's Social Care,Support Service and Management Costs,Schools Catering,Kitchen Supplies - Food and Beverages,08/10/2018,5104732,564.32,Thomas Ridley & Son Ltd
Childrens Services,Children's Social Care,Support Service and Management Costs,Schools Catering,Kitchen Supplies - Food and Beverages,08/10/2018,5104733,367.64,Thomas Ridley & Son Ltd
Childrens Services,Children's Social Care,Support Service and Management Costs,Schools Catering,Kitchen Supplies - Food and Beverages,08/10/2018,5104734,506.10,Thomas Ridley & Son Ltd
Childrens Services,Children's Social Care,Support Service and Management Costs,Schools Catering,Kitchen Supplies - Food and Beverages,08/10/2018,5104735,621.91,Thomas Ridley & Son Ltd
Childrens Services,Children's Social Care,Support Service and Management Costs,Welfare Catering,Kitchen Supplies - Food and Beverages,08/10/2018,5104736,560.91,Thomas Ridley & Son Ltd
Childrens Services,Children's Social Care,Support Service and Management Costs,Schools Catering,Kitchen Supplies - Food and Beverages,08/10/2018,5104737,563.16,Thomas Ridley & Son Ltd
Childrens Services,Children's Social Care,Support Service and Management Costs,Schools Catering,Kitchen Supplies - Food and Beverages,08/10/2018,5104739,888.58,Thomas Ridley & Son Ltd
Childrens Services,Children's Social Care,Support Service and Management Costs,Schools Catering,Kitchen Supplies - Food and Beverages,08/10/2018,5104740,360.35,Thomas Ridley & Son Ltd
Childrens Services,Children's Social Care,Support Service and Management Costs,Schools Catering,Kitchen Supplies - Food and Beverages,08/10/2018,5104742,406.49,Thomas Ridley & Son Ltd
Childrens Services,Children's Social Care,Support Service and Management Costs,Schools Catering,Kitchen Supplies - Food and Beverages,08/10/2018,5104743,432.79,Thomas Ridley & Son Ltd
Childrens Services,Children's Social Care,Support Service and Management Costs,Schools Catering,Kitchen Supplies - Food and Beverages,08/10/2018,5104746,628.88,Thomas Ridley & Son Ltd
Childrens Services,Children's Social Care,Support Service and Management Costs,Schools Catering,Kitchen Supplies - Food and Beverages,08/10/2018,5104747,512.62,Thomas Ridley & Son Ltd
Childrens Services,Children's Social Care,Support Service and Management Costs,Schools Catering,Kitchen Supplies - Food and Beverages,08/10/2018,5104748,576.88,Thomas Ridley & Son Ltd
Childrens Services,Children's Social Care,Support Service and Management Costs,Schools Catering,Kitchen Supplies - Food and Beverages,08/10/2018,5104749,252.61,Thomas Ridley & Son Ltd
Childrens Services,Children's Social Care,Support Service and Management Costs,Schools Catering,Kitchen Supplies - Food and Beverages,08/10/2018,5104751,326.41,Thomas Ridley & Son Ltd
Childrens Services,Children's Social Care,Support Service and Management Costs,Schools Catering,Kitchen Supplies - Food and Beverages,08/10/2018,5104752,611.93,Thomas Ridley & Son Ltd
Childrens Services,Children's Social Care,Support Service and Management Costs,Schools Catering,Kitchen Supplies - Food and Beverages,08/10/2018,5104753,429.17,Thomas Ridley & Son Ltd
Childrens Services,Children's Social Care,Support Service and Management Costs,Schools Catering,Kitchen Supplies - Food and Beverages,08/10/2018,5104754,389.58,Thomas Ridley & Son Ltd
Childrens Services,Children's Social Care,Support Service and Management Costs,Schools Catering,Kitchen Supplies - Food and Beverages,08/10/2018,5104756,409.81,Thomas Ridley & Son Ltd
Childrens Services,Children's Social Care,Support Service and Management Costs,Schools Catering,Kitchen Supplies - Food and Beverages,08/10/2018,5104757,451.52,Thomas Ridley & Son Ltd
Childrens Services,Children's Social Care,Support Service and Management Costs,Swanlea,Kitchen Supplies - Food and Beverages,08/10/2018,5104758,916.97,Thomas Ridley & Son Ltd
Childrens Services,Children's Social Care,Support Service and Management Costs,Schools Catering,Kitchen Supplies - Food and Beverages,08/10/2018,5104760,422.31,Thomas Ridley & Son Ltd
Childrens Services,Children's Social Care,Support Service and Management Costs,Schools Catering,Kitchen Supplies - Food and Beverages,08/10/2018,5104764,402.88,Thomas Ridley & Son Ltd
Childrens Services,Children's Social Care,Support Service and Management Costs,Schools Catering,Kitchen Supplies - Food and Beverages,08/10/2018,5104765,579.58,Thomas Ridley & Son Ltd
Childrens Services,Children's Social Care,Support Service and Management Costs,Schools Catering,Kitchen Supplies - Food and Beverages,08/10/2018,5104766,357.21,Thomas Ridley & Son Ltd
Childrens Services,Children's Social Care,Support Service and Management Costs,Schools Catering,Kitchen Supplies - Food and Beverages,08/10/2018,5104767,439.61,Thomas Ridley & Son Ltd
Childrens Services,Children's Social Care,Support Service and Management Costs,Sch. Meals A/c - Central Production Unit,Kitchen Supplies - Food and Beverages,08/10/2018,5104782,259.40,Prescott-Thomas LTD.
Childrens Services,Children's Social Care,Support Service and Management Costs,Schools Catering,Kitchen Supplies - Food and Beverages,08/10/2018,5104785,258.20,Prescott-Thomas LTD.
Childrens Services,Children's Social Care,Support Service and Management Costs,Schools Catering,Kitchen Supplies - Food and Beverages,08/10/2018,5104786,268.49,Prescott-Thomas LTD.
Childrens Services,Education Services,Early Years,Mowlem CC,Stationery,08/10/2018,5104821,511.35,Office Depot (Catalogue)
Childrens Services,Children's Social Care,Support Service and Management Costs,Sch. Meals A/c - Central Production Unit,Kitchen Supplies - Food and Beverages,08/10/2018,5107441,411.50,William White Meats Ltd
Childrens Services,Education Services,Early Years,Mowlem CC,Computing - Purchase of Software,08/10/2018,5108969,"1,613.40",Specialist Computer Centres PLC
Childrens Services,Children's Social Care,Children Looked After,S23-Other-Mother & Baby Unit,Childrens Act Section 23 - Placement Fee,08/10/2018,5108976,"2,000.00",Real Life
Childrens Services,Children's Social Care,Children Looked After,S23-Other-Mother & Baby Unit,Childrens Act Section 23 - Placement Fee,08/10/2018,5108977,504.00,Real Life
Childrens Services,Children's Social Care,Children Looked After,S23-Other-Semi-Ind. Unit,Childrens Act Section 23 - Placement Fee,08/10/2018,5108978,925.00,Real Life
Childrens Services,Children's Social Care,Support Service and Management Costs,Sch. Meals A/c - Stepney Green,Kitchen Supplies - Catering Equipment,08/10/2018,5110822,549.00,W V Howe LTD
Childrens Services,Children's Social Care,Children Looked After,Leaving Care-UASC,Leaving Care Financial Assistance - Supp Accom/Hous Rents,08/10/2018,5110877,929.10,Newhaven 16 Plus
Childrens Services,Cultural and Related Services,Culture & Heritage,Arts-Park Events,Events & Exhibition Supplies,08/10/2018,5111491,"4,999.80",Greenwich & Docklands Festival
Childrens Services,Cultural and Related Services,Culture & Heritage,Arts-Park Events,Events & Exhibition Supplies,08/10/2018,5111492,"1,000.00",Greenwich & Docklands Festival
Childrens Services,Children's Social Care,Children Looked After,LCS/Allowances-Accom,Leaving Care Financial Assistance - Supp Accom/Hous Rents,08/10/2018,5114061,929.10,Newhaven 16 Plus
Childrens Services,Children's Social Care,Children Looked After,LCS/Allowances-Accom,Leaving Care Financial Assistance - Supported Living,08/10/2018,5114062,"3,570.60",Newhaven 16 Plus
Childrens Services,Children's Social Care,Children Looked After,S23-Other-Semi-Ind. Unit,Childrens Act Section 23 - Placement Fee,08/10/2018,5117273,"3,835.50",Cura Living Limited
Childrens Services,Children's Social Care,Services for young people,Youth Service Management,Catering - Hospitality,08/10/2018,5117972,"1,060.00",LIMONCELLO (CATERING & DELICATESSEN) LTD
Childrens Services,Children's Social Care,Support Service and Management Costs,Professional Dev Centre,Computing - Purchase of Software,08/10/2018,5118216,839.92,RM Education PLC
Childrens Services,Children's Social Care,Children Looked After,S23 Fam Pl P&V-F/Care,Childrens Act Section 23 - Placement Fee,08/10/2018,5118500,784.00,Swiis Foster Care Limited
Childrens Services,Children's Social Care,Children Looked After,S23-Resi-P&V/OLA-Child Home,Childrens Act Section 23 - Commissioned Services,08/10/2018,5118511,440.00,MPCT
Childrens Services,Children's Social Care,Children Looked After,Enrichment Projects,Educational/Training Supplies - Resources,09/10/2018,5121796,608.50,Love2Reward
Childrens Services,Cultural and Related Services,Open Spaces,Mile End Park,Events & Exhibition Supplies,10/10/2018,5101326,285.12,A P Security (North) LTD
Childrens Services,Cultural and Related Services,Open Spaces,Mile End Park,Events & Exhibition Supplies,10/10/2018,5101327,320.88,A P Security (North) LTD
Childrens Services,Cultural and Related Services,Open Spaces,Mile End Park,Events & Exhibition Supplies,10/10/2018,5101328,397.28,A P Security (North) LTD
Childrens Services,Cultural and Related Services,Open Spaces,Mile End Park,Events & Exhibition Supplies,10/10/2018,5101330,336.16,A P Security (North) LTD
Childrens Services,Children's Social Care,Children Looked After,Leaving Care-UASC,Leaving Care Financial Assistance - Reg Plan Maint Travel A,10/10/2018,5103624,256.86,Pangea Support Services
Childrens Services,Children's Social Care,Children Looked After,Leaving Care-UASC,Leaving Care Financial Assistance - Supp Accom/Hous Rents,10/10/2018,5103624,"4,406.43",Pangea Support Services
Childrens Services,Children's Social Care,Children Looked After,Leaving Care-UASC,Leaving Care Financial Assistance - Supported Living,10/10/2018,5103628,"4,406.43",Pangea Support Services
Childrens Services,Children's Social Care,Children Looked After,Leaving Care-UASC,Leaving Care Financial Assistance - Supp Accom/Hous Rents,10/10/2018,5103631,"1,107.14",Pangea Support Services
Childrens Services,Children's Social Care,Children Looked After,Leaving Care-UASC,Leaving Care Financial Assistance - Grant Pay Special Needs,10/10/2018,5103634,353.74,Pangea Support Services
Childrens Services,Children's Social Care,Children Looked After,Leaving Care-UASC,Leaving Care Financial Assistance - Supp Accom/Hous Rents,10/10/2018,5103637,"1,107.14",Pangea Support Services
Childrens Services,Children's Social Care,Children Looked After,Leaving Care-UASC,Leaving Care Financial Assistance - Supported Living,10/10/2018,5103637,256.86,Pangea Support Services
Childrens Services,Children's Social Care,Children Looked After,Leaving Care-UASC,Leaving Care Financial Assistance - Reg Plan Maint Travel A,10/10/2018,5103638,256.86,Pangea Support Services
Childrens Services,Children's Social Care,Children Looked After,Leaving Care-UASC,Leaving Care Financial Assistance - Supp Accom/Hous Rents,10/10/2018,5103638,"1,107.14",Pangea Support Services
Childrens Services,Children's Social Care,Children Looked After,LCS/Allowances-Accom,Leaving Care Financial Assistance - Supported Living,10/10/2018,5103643,"1,935.14",Pangea Support Services
Childrens Services,Children's Social Care,Children Looked After,LCS/Allowances-Accom,Leaving Care Financial Assistance - Supp Accom/Hous Rents,10/10/2018,5103644,"4,317.86",Pangea Support Services
Childrens Services,Cultural and Related Services,Open Spaces,Parks & Open Spaces Man&Admin,Repairs and Maintenance - Responsive - Buildings,10/10/2018,5105410,"7,200.00",JC Coster (Metalworks) Ltd
Childrens Services,Cultural and Related Services,Recreation & Sport,Recreational Services Central,Audio/Video Supplies,10/10/2018,5105509,770.00,Creative Events
Childrens Services,Children's Social Care,Support Service and Management Costs,Schools Catering,Kitchen Supplies - Food and Beverages,10/10/2018,5105621,354.94,Thomas Ridley & Son Ltd
Childrens Services,Children's Social Care,Support Service and Management Costs,Schools Catering,Kitchen Supplies - Food and Beverages,10/10/2018,5105623,484.62,Thomas Ridley & Son Ltd
Childrens Services,Children's Social Care,Support Service and Management Costs,Schools Catering,Kitchen Supplies - Food and Beverages,10/10/2018,5105624,599.33,Thomas Ridley & Son Ltd
Childrens Services,Children's Social Care,Support Service and Management Costs,Schools Catering,Kitchen Supplies - Food and Beverages,10/10/2018,5105625,760.95,Thomas Ridley & Son Ltd
Childrens Services,Children's Social Care,Support Service and Management Costs,Schools Catering,Kitchen Supplies - Food and Beverages,10/10/2018,5105627,729.49,Thomas Ridley & Son Ltd
Childrens Services,Children's Social Care,Support Service and Management Costs,Schools Catering,Kitchen Supplies - Food and Beverages,10/10/2018,5105629,924.83,Thomas Ridley & Son Ltd
Childrens Services,Children's Social Care,Support Service and Management Costs,Schools Catering,Kitchen Supplies - Food and Beverages,10/10/2018,5105631,330.24,Thomas Ridley & Son Ltd
Childrens Services,Children's Social Care,Support Service and Management Costs,Schools Catering,Kitchen Supplies - Food and Beverages,10/10/2018,5105632,287.28,Thomas Ridley & Son Ltd
Childrens Services,Children's Social Care,Support Service and Management Costs,Schools Catering,Kitchen Supplies - Food and Beverages,10/10/2018,5105633,266.78,Thomas Ridley & Son Ltd
Childrens Services,Children's Social Care,Support Service and Management Costs,Schools Catering,Kitchen Supplies - Food and Beverages,10/10/2018,5105635,335.44,Thomas Ridley & Son Ltd
Childrens Services,Children's Social Care,Support Service and Management Costs,Schools Catering,Kitchen Supplies - Food and Beverages,10/10/2018,5105636,877.11,Thomas Ridley & Son Ltd
Childrens Services,Children's Social Care,Support Service and Management Costs,Schools Catering,Kitchen Supplies - Food and Beverages,10/10/2018,5105637,974.41,Thomas Ridley & Son Ltd
Childrens Services,Children's Social Care,Support Service and Management Costs,Schools Catering,Kitchen Supplies - Food and Beverages,10/10/2018,5105638,487.61,Thomas Ridley & Son Ltd
Childrens Services,Children's Social Care,Support Service and Management Costs,Schools Catering,Kitchen Supplies - Food and Beverages,10/10/2018,5105639,332.74,Thomas Ridley & Son Ltd
Childrens Services,Children's Social Care,Support Service and Management Costs,Schools Catering,Kitchen Supplies - Food and Beverages,10/10/2018,5105641,653.40,Thomas Ridley & Son Ltd
Childrens Services,Children's Social Care,Support Service and Management Costs,Schools Catering,Kitchen Supplies - Food and Beverages,10/10/2018,5105642,"1,280.75",Thomas Ridley & Son Ltd
Childrens Services,Children's Social Care,Support Service and Management Costs,Schools Catering,Kitchen Supplies - Food and Beverages,10/10/2018,5105643,365.89,Thomas Ridley & Son Ltd
Childrens Services,Children's Social Care,Support Service and Management Costs,Schools Catering,Kitchen Supplies - Food and Beverages,10/10/2018,5105645,413.21,Thomas Ridley & Son Ltd
Childrens Services,Children's Social Care,Support Service and Management Costs,Schools Catering,Kitchen Supplies - Food and Beverages,10/10/2018,5105646,376.27,Thomas Ridley & Son Ltd
Childrens Services,Children's Social Care,Support Service and Management Costs,Schools Catering,Kitchen Supplies - Food and Beverages,10/10/2018,5105647,687.72,Thomas Ridley & Son Ltd
Childrens Services,Children's Social Care,Support Service and Management Costs,Schools Catering,Kitchen Supplies - Food and Beverages,10/10/2018,5105648,418.00,Thomas Ridley & Son Ltd
Childrens Services,Children's Social Care,Support Service and Management Costs,Schools Catering,Kitchen Supplies - Food and Beverages,10/10/2018,5105652,350.58,Thomas Ridley & Son Ltd
Childrens Services,Children's Social Care,Support Service and Management Costs,Sch. Meals A/c - Central Production Unit,Kitchen Supplies - Food and Beverages,10/10/2018,5105653,"1,381.79",Thomas Ridley & Son Ltd
Childrens Services,Children's Social Care,Support Service and Management Costs,Welfare Catering,Kitchen Supplies - Food and Beverages,10/10/2018,5105654,325.09,Thomas Ridley & Son Ltd
Childrens Services,Children's Social Care,Support Service and Management Costs,Schools Catering,Kitchen Supplies - Food and Beverages,10/10/2018,5105655,757.69,Thomas Ridley & Son Ltd
Childrens Services,Children's Social Care,Support Service and Management Costs,Schools Catering,Kitchen Supplies - Food and Beverages,10/10/2018,5105657,731.41,Thomas Ridley & Son Ltd
Childrens Services,Children's Social Care,Support Service and Management Costs,Schools Catering,Kitchen Supplies - Food and Beverages,10/10/2018,5105659,443.19,Thomas Ridley & Son Ltd
Childrens Services,Children's Social Care,Support Service and Management Costs,Schools Catering,Kitchen Supplies - Food and Beverages,10/10/2018,5105663,613.66,Thomas Ridley & Son Ltd
Childrens Services,Children's Social Care,Support Service and Management Costs,Schools Catering,Kitchen Supplies - Food and Beverages,10/10/2018,5105665,496.40,Thomas Ridley & Son Ltd
Childrens Services,Children's Social Care,Support Service and Management Costs,Schools Catering,Kitchen Supplies - Food and Beverages,10/10/2018,5105704,262.62,Prescott-Thomas LTD.
Childrens Services,Education Services,Other Strategic Functions,Special Education Needs DSG,Third Party Payments - Payments to Schools,10/10/2018,5107232,"21,052.46",Woodcroft School Ltd
Childrens Services,Cultural and Related Services,Recreation & Sport,Recreational Services Central,Repairs and Maintenance - Responsive - Buildings,10/10/2018,5107234,"4,700.00",JC Coster (Metalworks) Ltd
Childrens Services,Children's Social Care,Children Looked After,Virtual School PPG,Agency Staff - Associations,10/10/2018,5107298,"1,009.80",Academics ltd
Childrens Services,Children's Social Care,Children Looked After,Virtual School PPG,Agency Staff - Associations,10/10/2018,5107299,"1,262.25",Academics ltd
Childrens Services,Children's Social Care,Children Looked After,Virtual School PPG,Agency Staff - Associations,10/10/2018,5107300,252.45,Academics ltd
Childrens Services,Children's Social Care,Children Looked After,Virtual School PPG,Agency Staff - Associations,10/10/2018,5107301,757.35,Academics ltd
Childrens Services,Children's Social Care,Children Looked After,Virtual School PPG,Agency Staff - Associations,10/10/2018,5107302,"1,514.70",Academics ltd
Childrens Services,Children's Social Care,Children Looked After,Virtual School PPG,Agency Staff - Associations,10/10/2018,5107303,757.35,Academics ltd
Childrens Services,Education Services,Other Strategic Functions,Music Trading Account,Payments to Private Contractors - General Contractors,10/10/2018,5107307,"1,000.00",REDACTED SECTION 40 FOI ACT
Childrens Services,Children's Social Care,Support Service and Management Costs,Schools Catering,Kitchen Supplies - Food and Beverages,10/10/2018,5107313,323.36,Thomas Ridley & Son Ltd
Childrens Services,Children's Social Care,Support Service and Management Costs,Schools Catering,Kitchen Supplies - Food and Beverages,10/10/2018,5107314,437.26,Thomas Ridley & Son Ltd
Childrens Services,Children's Social Care,Support Service and Management Costs,Schools Catering,Kitchen Supplies - Food and Beverages,10/10/2018,5107315,299.50,Thomas Ridley & Son Ltd
Childrens Services,Children's Social Care,Support Service and Management Costs,Schools Catering,Kitchen Supplies - Food and Beverages,10/10/2018,5107317,495.03,Thomas Ridley & Son Ltd
Childrens Services,Children's Social Care,Support Service and Management Costs,Schools Catering,Kitchen Supplies - Food and Beverages,10/10/2018,5107318,768.76,Thomas Ridley & Son Ltd
Childrens Services,Children's Social Care,Support Service and Management Costs,Schools Catering,Kitchen Supplies - Food and Beverages,10/10/2018,5107319,733.12,Thomas Ridley & Son Ltd
Childrens Services,Children's Social Care,Support Service and Management Costs,Schools Catering,Kitchen Supplies - Food and Beverages,10/10/2018,5107320,453.01,Thomas Ridley & Son Ltd
Childrens Services,Children's Social Care,Support Service and Management Costs,Schools Catering,Kitchen Supplies - Food and Beverages,10/10/2018,5107321,633.83,Thomas Ridley & Son Ltd
Childrens Services,Children's Social Care,Support Service and Management Costs,Professional Dev Centre,Stationery,10/10/2018,5107371,389.40,Office Depot (Catalogue)
Childrens Services,Children's Social Care,Support Service and Management Costs,Schools Catering,Kitchen Supplies - Food and Beverages,10/10/2018,5107467,327.68,William White Meats Ltd
Childrens Services,Children's Social Care,Support Service and Management Costs,Schools Catering,Kitchen Supplies - Food and Beverages,10/10/2018,5107470,266.70,William White Meats Ltd
Childrens Services,Children's Social Care,Support Service and Management Costs,Schools Catering,Kitchen Supplies - Food and Beverages,10/10/2018,5107488,310.86,William White Meats Ltd
Childrens Services,Children's Social Care,Support Service and Management Costs,Schools Catering,Kitchen Supplies - Food and Beverages,10/10/2018,5107491,673.80,William White Meats Ltd
Childrens Services,Children's Social Care,Support Service and Management Costs,Schools Catering,Kitchen Supplies - Food and Beverages,10/10/2018,5107506,616.02,William White Meats Ltd
Childrens Services,Children's Social Care,Support Service and Management Costs,Schools Catering,Kitchen Supplies - Food and Beverages,10/10/2018,5107519,264.60,William White Meats Ltd
Childrens Services,Children's Social Care,Support Service and Management Costs,Swanlea,Kitchen Supplies - Food and Beverages,10/10/2018,5107526,582.16,William White Meats Ltd
Childrens Services,Children's Social Care,Children Looked After,S23 Fam Pl P&V-F/Care,Childrens Act Section 23 - Placement Fee,10/10/2018,5107568,"4,756.50",Kent Homefinding and Fostering
Childrens Services,Cultural and Related Services,Open Spaces,Victoria Park,Events & Exhibition Supplies,10/10/2018,5110499,"1,400.00",Westways Carriage Horses
Childrens Services,Children's Social Care,Services for young people,Youth Service Management,Computing - Purchase of Hardware,10/10/2018,5110800,"1,851.00",Hands Free Computing
Childrens Services,Education Services,Early Years,EYS Mangt & Admin GF,Events & Exhibition Supplies,10/10/2018,5113939,300.00,Kois Miah Photography
Childrens Services,Education Services,Early Years,Ocean CC,Catering - Hospitality,10/10/2018,5114645,360.00,All Seasons Foods
Childrens Services,Cultural and Related Services,Culture & Heritage,Arts-Park Events,Events & Exhibition Supplies,10/10/2018,5114752,"-2,835.50",A P Security (North) LTD
Childrens Services,Education Services,Other Strategic Functions,Schools Library,Computing - Purchase of Software,10/10/2018,5114783,723.29,IS Oxford Ltd
Childrens Services,Education Services,Other Strategic Functions,Parents Advice Centre,Meeting Expenses,10/10/2018,5116153,707.63,the royal foundation of st katharine
Childrens Services,No Service Specified,No Division Specified,Capital-Minor Works (SC),Other External Fees - Other External Fees,10/10/2018,5116189,"11,059.73",Tower Hamlets Schools LTD
Childrens Services,Education Services,Secondary Schools,PFI Hldg Account-Grouped Schoo,Repairs and Maintenance - Responsive - Buildings,10/10/2018,5116190,"9,097.00",Tower Hamlets Schools LTD
Childrens Services,Education Services,Secondary Schools,PFI Hldg Account-Grouped Schoo,Repairs and Maintenance - Responsive - Buildings,10/10/2018,5116191,"7,545.50",Tower Hamlets Schools LTD
Childrens Services,Cultural and Related Services,Culture & Heritage,Kobi Nazrul Centre,Events & Exhibition Supplies,10/10/2018,5116199,"1,000.00",The Filim Company
Childrens Services,Children's Social Care,Children Looked After,LCS/Allowances-Accom,Leaving Care Financial Assistance - Reg Plan Maint L-Allow,10/10/2018,5118666,309.00,SOCIAL SERVICES LEAVING CARE SERVICE
Childrens Services,Education Services,Other Strategic Functions,SEN External Travel,Non Staff Transport Costs - Reimbursement,10/10/2018,5119066,"155,920.00",Lindel Services LTD - T/A Fox Transport
Childrens Services,Children's Social Care,Family Support Services,CNN Pool: Joint Family Support,Social Care - Homecare,10/10/2018,5119093,635.25,QALB Centre Short Break Services
Childrens Services,Children's Social Care,Family Support Services,CNN Pool: Joint Family Support,Social Care - Homecare,10/10/2018,5119094,"1,848.00",QALB Centre Short Break Services
Childrens Services,Children's Social Care,Family Support Services,CNN Pool: Joint Family Support,Social Care - Homecare,10/10/2018,5119095,816.00,QALB Centre Short Break Services
Childrens Services,Children's Social Care,Family Support Services,CNN Pool: Joint Family Support,Social Care - Homecare,10/10/2018,5119096,396.00,QALB Centre Short Break Services
Childrens Services,Cultural and Related Services,Culture & Heritage,Filming,Events & Exhibition Supplies,10/10/2018,5119107,"2,000.00",RAINBOW FILM SOCIETY
Childrens Services,Children's Social Care,Support Service and Management Costs,Sch. Meals A/c - P.D.C. Cateen,Kitchen Supplies - Food and Beverages,10/10/2018,5119458,516.21,Selecta Uk Limited
Childrens Services,Children's Social Care,Children Looked After,Virtual School PPG,Agency Staff - Associations,10/10/2018,5119599,929.77,Academics ltd
Childrens Services,Children's Social Care,Children Looked After,Virtual School PPG,Agency Staff - Associations,10/10/2018,5119600,697.35,Academics ltd
Childrens Services,Education Services,Early Years,Queen Mary,Water Services - Metered,10/10/2018,5120437,308.02,CASTLE WATER
Childrens Services,Children's Social Care,Children Looked After,LCS/Allowances-Accom,Leaving Care Financial Assistance - Supported Living,10/10/2018,5122695,"4,620.80",Sanctuary Housing
Childrens Services,Children's Social Care,Services for young people,Youth Service Management,Third Party Payments - Voluntary Associations,12/10/2018,5085333,"20,000.00",Ocean Youth Connexions
Childrens Services,Children's Social Care,Support Service and Management Costs,Schools Catering,Kitchen Supplies - Food and Beverages,12/10/2018,5106764,401.13,Thomas Ridley & Son Ltd
Childrens Services,Children's Social Care,Support Service and Management Costs,Welfare Catering,Kitchen Supplies - Food and Beverages,12/10/2018,5106765,429.42,Thomas Ridley & Son Ltd
Childrens Services,Children's Social Care,Support Service and Management Costs,Sch. Meals A/c - Central Production Unit,Kitchen Supplies - Food and Beverages,12/10/2018,5106766,"1,418.22",Thomas Ridley & Son Ltd
Childrens Services,Children's Social Care,Support Service and Management Costs,Toby Lane Function,Kitchen Supplies - Food and Beverages,12/10/2018,5106767,289.80,Thomas Ridley & Son Ltd
Childrens Services,Children's Social Care,Support Service and Management Costs,Schools Catering,Kitchen Supplies - Food and Beverages,12/10/2018,5106768,767.93,Thomas Ridley & Son Ltd
Childrens Services,Children's Social Care,Support Service and Management Costs,Schools Catering,Kitchen Supplies - Food and Beverages,12/10/2018,5106770,257.01,Thomas Ridley & Son Ltd
Childrens Services,Children's Social Care,Support Service and Management Costs,Schools Catering,Kitchen Supplies - Food and Beverages,12/10/2018,5106771,282.66,Thomas Ridley & Son Ltd
Childrens Services,Children's Social Care,Support Service and Management Costs,Schools Catering,Kitchen Supplies - Food and Beverages,12/10/2018,5106772,429.04,Thomas Ridley & Son Ltd
Childrens Services,Children's Social Care,Support Service and Management Costs,Schools Catering,Kitchen Supplies - Food and Beverages,12/10/2018,5106773,630.30,Thomas Ridley & Son Ltd
Childrens Services,Children's Social Care,Support Service and Management Costs,Schools Catering,Kitchen Supplies - Food and Beverages,12/10/2018,5106774,445.93,Thomas Ridley & Son Ltd
Childrens Services,Children's Social Care,Support Service and Management Costs,Schools Catering,Kitchen Supplies - Food and Beverages,12/10/2018,5106775,549.37,Thomas Ridley & Son Ltd
Childrens Services,Children's Social Care,Support Service and Management Costs,Schools Catering,Kitchen Supplies - Food and Beverages,12/10/2018,5106776,343.55,Thomas Ridley & Son Ltd
Childrens Services,Children's Social Care,Support Service and Management Costs,Schools Catering,Kitchen Supplies - Food and Beverages,12/10/2018,5106777,767.65,Thomas Ridley & Son Ltd
Childrens Services,Children's Social Care,Support Service and Management Costs,Schools Catering,Kitchen Supplies - Food and Beverages,12/10/2018,5106778,357.46,Thomas Ridley & Son Ltd
Childrens Services,Children's Social Care,Support Service and Management Costs,Schools Catering,Kitchen Supplies - Food and Beverages,12/10/2018,5106779,394.07,Thomas Ridley & Son Ltd
Childrens Services,Children's Social Care,Support Service and Management Costs,Schools Catering,Kitchen Supplies - Food and Beverages,12/10/2018,5106781,456.40,Thomas Ridley & Son Ltd
Childrens Services,Children's Social Care,Support Service and Management Costs,Schools Catering,Kitchen Supplies - Food and Beverages,12/10/2018,5106782,677.48,Thomas Ridley & Son Ltd
Childrens Services,Children's Social Care,Support Service and Management Costs,Schools Catering,Kitchen Supplies - Food and Beverages,12/10/2018,5106784,564.11,Thomas Ridley & Son Ltd
Childrens Services,Children's Social Care,Support Service and Management Costs,Schools Catering,Kitchen Supplies - Food and Beverages,12/10/2018,5106786,420.44,Thomas Ridley & Son Ltd
Childrens Services,Children's Social Care,Support Service and Management Costs,Schools Catering,Kitchen Supplies - Food and Beverages,12/10/2018,5106788,390.73,Thomas Ridley & Son Ltd
Childrens Services,Children's Social Care,Support Service and Management Costs,Schools Catering,Kitchen Supplies - Food and Beverages,12/10/2018,5106789,499.59,Thomas Ridley & Son Ltd
Childrens Services,Children's Social Care,Support Service and Management Costs,Schools Catering,Kitchen Supplies - Food and Beverages,12/10/2018,5106791,470.22,Thomas Ridley & Son Ltd
Childrens Services,Children's Social Care,Support Service and Management Costs,Schools Catering,Kitchen Supplies - Food and Beverages,12/10/2018,5106793,326.52,Thomas Ridley & Son Ltd
Childrens Services,Children's Social Care,Support Service and Management Costs,Schools Catering,Kitchen Supplies - Food and Beverages,12/10/2018,5106795,319.73,Thomas Ridley & Son Ltd
Childrens Services,Children's Social Care,Support Service and Management Costs,Schools Catering,Kitchen Supplies - Food and Beverages,12/10/2018,5106798,358.33,Thomas Ridley & Son Ltd
Childrens Services,Children's Social Care,Support Service and Management Costs,Schools Catering,Kitchen Supplies - Food and Beverages,12/10/2018,5106800,757.15,Thomas Ridley & Son Ltd
Childrens Services,Children's Social Care,Support Service and Management Costs,Schools Catering,Kitchen Supplies - Food and Beverages,12/10/2018,5106801,352.09,Thomas Ridley & Son Ltd
Childrens Services,Children's Social Care,Support Service and Management Costs,Schools Catering,Kitchen Supplies - Food and Beverages,12/10/2018,5106802,428.25,Thomas Ridley & Son Ltd
Childrens Services,Children's Social Care,Support Service and Management Costs,Schools Catering,Kitchen Supplies - Food and Beverages,12/10/2018,5106803,422.04,Thomas Ridley & Son Ltd
Childrens Services,Children's Social Care,Support Service and Management Costs,Schools Catering,Kitchen Supplies - Food and Beverages,12/10/2018,5106804,259.30,Thomas Ridley & Son Ltd
Childrens Services,Children's Social Care,Support Service and Management Costs,Swanlea,Kitchen Supplies - Food and Beverages,12/10/2018,5106805,798.83,Thomas Ridley & Son Ltd
Childrens Services,Children's Social Care,Support Service and Management Costs,Schools Catering,Kitchen Supplies - Food and Beverages,12/10/2018,5106806,345.37,Thomas Ridley & Son Ltd
Childrens Services,Children's Social Care,Support Service and Management Costs,Schools Catering,Kitchen Supplies - Food and Beverages,12/10/2018,5106809,311.26,Thomas Ridley & Son Ltd
Childrens Services,Children's Social Care,Support Service and Management Costs,Schools Catering,Kitchen Supplies - Food and Beverages,12/10/2018,5106810,911.40,Thomas Ridley & Son Ltd
Childrens Services,Children's Social Care,Support Service and Management Costs,Schools Catering,Kitchen Supplies - Food and Beverages,12/10/2018,5106811,"1,071.59",Thomas Ridley & Son Ltd
Childrens Services,Children's Social Care,Support Service and Management Costs,Schools Catering,Kitchen Supplies - Food and Beverages,12/10/2018,5106812,564.99,Thomas Ridley & Son Ltd
Childrens Services,Children's Social Care,Support Service and Management Costs,Schools Catering,Kitchen Supplies - Food and Beverages,12/10/2018,5106813,533.54,Thomas Ridley & Son Ltd
Childrens Services,Children's Social Care,Support Service and Management Costs,Schools Catering,Kitchen Supplies - Food and Beverages,12/10/2018,5106815,825.84,Thomas Ridley & Son Ltd
Childrens Services,Children's Social Care,Support Service and Management Costs,Schools Catering,Kitchen Supplies - Food and Beverages,12/10/2018,5106816,436.08,Thomas Ridley & Son Ltd
Childrens Services,Children's Social Care,Support Service and Management Costs,Schools Catering,Kitchen Supplies - Food and Beverages,12/10/2018,5106819,471.34,Thomas Ridley & Son Ltd
Childrens Services,Children's Social Care,Support Service and Management Costs,"Mulberry Caf�		",Kitchen Supplies - Food and Beverages,12/10/2018,5106821,385.23,Thomas Ridley & Son Ltd
Childrens Services,Children's Social Care,Support Service and Management Costs,Schools Catering,Kitchen Supplies - Food and Beverages,12/10/2018,5106822,575.19,Thomas Ridley & Son Ltd
Childrens Services,Children's Social Care,Support Service and Management Costs,Schools Catering,Kitchen Supplies - Food and Beverages,12/10/2018,5106823,280.81,Thomas Ridley & Son Ltd
Childrens Services,Children's Social Care,Support Service and Management Costs,Schools Catering,Kitchen Supplies - Food and Beverages,12/10/2018,5106824,345.76,Thomas Ridley & Son Ltd
Childrens Services,Children's Social Care,Support Service and Management Costs,Schools Catering,Kitchen Supplies - Food and Beverages,12/10/2018,5106825,270.87,Thomas Ridley & Son Ltd
Childrens Services,Children's Social Care,Support Service and Management Costs,Schools Catering,Kitchen Supplies - Food and Beverages,12/10/2018,5106827,442.18,Thomas Ridley & Son Ltd
Childrens Services,Children's Social Care,Support Service and Management Costs,Schools Catering,Kitchen Supplies - Food and Beverages,12/10/2018,5106828,742.51,Thomas Ridley & Son Ltd
Childrens Services,Children's Social Care,Support Service and Management Costs,Schools Catering,Kitchen Supplies - Food and Beverages,12/10/2018,5106829,"1,071.93",Thomas Ridley & Son Ltd
Childrens Services,Children's Social Care,Support Service and Management Costs,Schools Catering,Kitchen Supplies - Food and Beverages,12/10/2018,5106830,919.92,Thomas Ridley & Son Ltd
Childrens Services,Children's Social Care,Support Service and Management Costs,Schools Catering,Kitchen Supplies - Food and Beverages,12/10/2018,5106832,408.44,Thomas Ridley & Son Ltd
Childrens Services,Children's Social Care,Support Service and Management Costs,Schools Catering,Kitchen Supplies - Food and Beverages,12/10/2018,5106834,252.19,Thomas Ridley & Son Ltd
Childrens Services,Children's Social Care,Support Service and Management Costs,Schools Catering,Kitchen Supplies - Food and Beverages,12/10/2018,5107322,529.13,Thomas Ridley & Son Ltd
Childrens Services,Children's Social Care,Support Service and Management Costs,Schools Catering,Kitchen Supplies - Food and Beverages,12/10/2018,5107323,500.58,Thomas Ridley & Son Ltd
Childrens Services,Children's Social Care,Support Service and Management Costs,Schools Catering,Kitchen Supplies - Food and Beverages,12/10/2018,5107324,362.30,Thomas Ridley & Son Ltd
Childrens Services,Children's Social Care,Support Service and Management Costs,Schools Catering,Kitchen Supplies - Food and Beverages,12/10/2018,5107503,359.01,William White Meats Ltd
Childrens Services,Children's Social Care,Support Service and Management Costs,Schools Catering,Kitchen Supplies - Food and Beverages,12/10/2018,5107505,522.48,William White Meats Ltd
Childrens Services,Children's Social Care,Support Service and Management Costs,Schools Catering,Kitchen Supplies - Food and Beverages,12/10/2018,5107520,256.70,William White Meats Ltd
Childrens Services,Children's Social Care,Support Service and Management Costs,Schools Catering,Kitchen Supplies - Food and Beverages,12/10/2018,5107523,682.79,William White Meats Ltd
Childrens Services,Children's Social Care,Support Service and Management Costs,Schools Catering,Kitchen Supplies - Food and Beverages,12/10/2018,5107524,363.16,William White Meats Ltd
Childrens Services,Children's Social Care,Support Service and Management Costs,Schools Catering,Kitchen Supplies - Food and Beverages,12/10/2018,5107525,284.10,William White Meats Ltd
Childrens Services,Children's Social Care,Support Service and Management Costs,Schools Catering,Kitchen Supplies - Food and Beverages,12/10/2018,5107538,282.10,William White Meats Ltd
Childrens Services,Children's Social Care,Support Service and Management Costs,Schools Catering,Kitchen Supplies - Food and Beverages,12/10/2018,5107541,557.25,William White Meats Ltd
Childrens Services,Children's Social Care,Support Service and Management Costs,Sch. Meals A/c - Central Production Unit,Kitchen Supplies - Food and Beverages,12/10/2018,5107543,"1,209.68",William White Meats Ltd
Childrens Services,Children's Social Care,Support Service and Management Costs,Schools Catering,Kitchen Supplies - Food and Beverages,12/10/2018,5107546,298.67,William White Meats Ltd
Childrens Services,Children's Social Care,Children's and Young People's Safety,CLA Reviewing Service,Non Staff Transport Costs - Reimbursement,12/10/2018,5109106,314.40,RSP Rail Travel (Rail Settlement Plan)
Childrens Services,Children's Social Care,Youth Justice,Partnerships,Communications,12/10/2018,5109897,597.00,Ignite Service Provider Ltd
Childrens Services,Children's Social Care,Support Service and Management Costs,Welfare Catering,Kitchen Supplies - Food and Beverages,12/10/2018,5110481,359.36,William White Meats Ltd
Childrens Services,Children's Social Care,Family Support Services,Short Breaks and Family Support,Third Party Payments - Voluntary Associations,12/10/2018,5110487,"17,500.00",NAS Services Ltd
Childrens Services,Children's Social Care,Children Looked After,S23 Fam Pl P&V-F/Care,Childrens Act Section 23 - Placement Fee,12/10/2018,5110584,"3,750.00",Ryancare Fostering Ltd
Childrens Services,Children's Social Care,Support Service and Management Costs,"Mulberry Caf�		",Kitchen Supplies - Food and Beverages,12/10/2018,5110855,357.58,Tiffin Sandwiches
Childrens Services,Children's Social Care,Services for young people,Youth Service Management,Third Party Payments - Voluntary Associations,12/10/2018,5110880,"19,502.00",Osmani Trust
Childrens Services,Children's Social Care,Support Service and Management Costs,Schools Catering,Kitchen Supplies - Food and Beverages,12/10/2018,5111339,256.37,William White Meats Ltd
Childrens Services,Children's Social Care,Support Service and Management Costs,Schools Catering,Kitchen Supplies - Food and Beverages,12/10/2018,5111345,250.54,William White Meats Ltd
Childrens Services,Children's Social Care,Support Service and Management Costs,Schools Catering,Kitchen Supplies - Food and Beverages,12/10/2018,5111346,273.84,William White Meats Ltd
Childrens Services,Children's Social Care,Support Service and Management Costs,Schools Catering,Kitchen Supplies - Food and Beverages,12/10/2018,5111348,284.96,William White Meats Ltd
Childrens Services,Children's Social Care,Support Service and Management Costs,Schools Catering,Kitchen Supplies - Food and Beverages,12/10/2018,5111355,608.38,William White Meats Ltd
Childrens Services,Children's Social Care,Support Service and Management Costs,Schools Catering,Kitchen Supplies - Food and Beverages,12/10/2018,5111356,284.49,William White Meats Ltd
Childrens Services,Children's Social Care,Support Service and Management Costs,Schools Catering,Kitchen Supplies - Food and Beverages,12/10/2018,5111357,387.16,William White Meats Ltd
Childrens Services,Children's Social Care,Support Service and Management Costs,Schools Catering,Kitchen Supplies - Food and Beverages,12/10/2018,5111359,332.20,William White Meats Ltd
Childrens Services,Children's Social Care,Support Service and Management Costs,Schools Catering,Kitchen Supplies - Food and Beverages,12/10/2018,5111362,605.53,William White Meats Ltd
Childrens Services,Children's Social Care,Support Service and Management Costs,Schools Catering,Kitchen Supplies - Food and Beverages,12/10/2018,5111369,292.23,William White Meats Ltd
Childrens Services,Children's Social Care,Support Service and Management Costs,Schools Catering,Kitchen Supplies - Food and Beverages,12/10/2018,5111375,763.25,William White Meats Ltd
Childrens Services,Children's Social Care,Support Service and Management Costs,Schools Catering,Kitchen Supplies - Food and Beverages,12/10/2018,5111377,310.08,William White Meats Ltd
Childrens Services,Children's Social Care,Support Service and Management Costs,Schools Catering,Kitchen Supplies - Food and Beverages,12/10/2018,5111379,656.28,William White Meats Ltd
Childrens Services,Children's Social Care,Support Service and Management Costs,Schools Catering,Kitchen Supplies - Food and Beverages,12/10/2018,5111380,325.26,William White Meats Ltd
Childrens Services,Children's Social Care,Support Service and Management Costs,Schools Catering,Kitchen Supplies - Food and Beverages,12/10/2018,5111381,407.98,William White Meats Ltd
Childrens Services,Children's Social Care,Support Service and Management Costs,Schools Catering,Kitchen Supplies - Food and Beverages,12/10/2018,5111389,489.09,William White Meats Ltd
Childrens Services,Children's Social Care,Support Service and Management Costs,Schools Catering,Kitchen Supplies - Food and Beverages,12/10/2018,5111390,999.01,William White Meats Ltd
Childrens Services,Cultural and Related Services,Culture & Heritage,Arts-Park Events,Events & Exhibition Supplies,12/10/2018,5111551,400.00,ICE Risk Management
Childrens Services,Children's Social Care,Support Service and Management Costs,Sch. Meals A/c - Bow School,Kitchen Supplies - Food and Beverages,12/10/2018,5113929,907.20,Tiffin Sandwiches
Childrens Services,Children's Social Care,Support Service and Management Costs,Sch. Meals A/c - C.F.S. Upper (Harley Grove),Catering - Hospitality,12/10/2018,5113930,729.00,Tiffin Sandwiches
Childrens Services,Children's Social Care,Support Service and Management Costs,Sch. Meals A/c - George Green,Kitchen Supplies - Food and Beverages,12/10/2018,5113931,648.00,Tiffin Sandwiches
Childrens Services,Children's Social Care,Support Service and Management Costs,Sch. Meals A/c - Langdon Park,Kitchen Supplies - Food and Beverages,12/10/2018,5113932,550.80,Tiffin Sandwiches
Childrens Services,Children's Social Care,Support Service and Management Costs,Sch. Meals A/c - Morpeth,Kitchen Supplies - Food and Beverages,12/10/2018,5113933,"1,165.35",Tiffin Sandwiches
Childrens Services,Children's Social Care,Support Service and Management Costs,Sch. Meals A/c - Oaklands,Kitchen Supplies - Food and Beverages,12/10/2018,5113934,699.03,Tiffin Sandwiches
Childrens Services,Children's Social Care,Support Service and Management Costs,Sch. Meals A/c - Raines Foundation,Kitchen Supplies - Food and Beverages,12/10/2018,5113935,324.00,Tiffin Sandwiches
Childrens Services,Children's Social Care,Support Service and Management Costs,Sch. Meals A/c - St. Paul's Way Comm. Trust,Kitchen Supplies - Food and Beverages,12/10/2018,5113936,283.50,Tiffin Sandwiches
Childrens Services,Children's Social Care,Support Service and Management Costs,Sch. Meals A/c - Stepney Green,Kitchen Supplies - Food and Beverages,12/10/2018,5113937,283.50,Tiffin Sandwiches
Childrens Services,Education Services,Early Years,Children Centre Central Team,Medical Requisites,12/10/2018,5114609,435.92,NHS SUPPLY CHAIN
Childrens Services,Education Services,Other Strategic Functions,Auxilary Aids,Social Care - Day Care,12/10/2018,5114625,696.00,No Isolation
Childrens Services,Children's Social Care,Children Looked After,S23-Resi-P&V/OLA-Child Home,Childrens Act Section 23 - Placement Fee,12/10/2018,5115141,"17,748.21",Castle Homes Care Ltd
Childrens Services,Children's Social Care,Children Looked After,LCS/Allowances-Accom,Leaving Care Financial Assistance - Supp Accom/Hous Rents,12/10/2018,5116177,443.57,EMPOWERHOUSE ltd
Childrens Services,Children's Social Care,Children Looked After,LCS/Allowances-Accom,Leaving Care Financial Assistance - Supported Living,12/10/2018,5116177,"1,485.00",EMPOWERHOUSE ltd
Childrens Services,Education Services,Services to Young People and Other Community Learners,Further and Higher Education,Education Trust - Grant,12/10/2018,5116422,"1,200.00",ISLAND ADVICE CENTRE
Childrens Services,Education Services,Early Years,Marner. CC,Community Equipment  Supplies - Non Store Items,12/10/2018,5118050,347.80,Yorkshire Purchasing Organisation
Childrens Services,Education Services,Other Strategic Functions,Special Education Needs DSG,Third Party Payments - Payments to Schools,12/10/2018,5118302,"32,111.68",Cambian Autism Services Ltd
Childrens Services,Children's Social Care,Children Looked After,S23-Resi-P&V/OLA-Boarding Sch,Childrens Act Section 23 - Placement Fee,12/10/2018,5118302,"32,111.68",Cambian Autism Services Ltd
Childrens Services,Education Services,Other Strategic Functions,Special Education Needs DSG,Third Party Payments - Payments to Schools,12/10/2018,5118320,"32,193.50",The Sheiling Special Education Trust
Childrens Services,Children's Social Care,Children Looked After,S23-Resi-P&V/OLA-Boarding Sch,Childrens Act Section 23 - Placement Fee,12/10/2018,5118320,"32,193.50",The Sheiling Special Education Trust
Childrens Services,Children's Social Care,Services for young people,Youth Service Management,Third Party Payments - Voluntary Associations,12/10/2018,5119063,"12,500.00",Tower Project
Childrens Services,Education Services,Other Strategic Functions,Special Education Needs DSG,Third Party Payments - Payments to Schools,12/10/2018,5119667,"37,350.63",Kisimul Group Ltd
Childrens Services,Children's Social Care,Children Looked After,S23-Resi-P&V/OLA-Boarding Sch,Childrens Act Section 23 - Placement Fee,12/10/2018,5119667,"37,350.63",Kisimul Group Ltd
Childrens Services,Children's Social Care,Children Looked After,S23 Fam Pl P&V-F/Care,Childrens Act Section 23 - Placement Fee,12/10/2018,5121032,"4,189.32",BANYA
Childrens Services,Children's Social Care,Family Support Services,CNN Pool: Joint Family Support,Social Care - Homecare,12/10/2018,5121040,558.00,Medstar Domiciliary Care Servies Ltd
Childrens Services,Education Services,Early Years,Wapping CC,Room Hire,12/10/2018,5121047,"1,584.00",RSET - Mulberry & Bigland Green Centre
Childrens Services,Children's Social Care,Family Support Services,IPST S17 NRPF,Childrens Act Section 17 - Other Placements Bed & Breakfast,12/10/2018,5121102,"1,650.00",Finefair Management
Childrens Services,Children's Social Care,Family Support Services,IPST S17 NRPF,Childrens Act Section 17 - Other Placements Bed & Breakfast,12/10/2018,5121103,"2,100.00",Finefair Management
Childrens Services,Children's Social Care,Family Support Services,IPST S17 NRPF,Childrens Act Section 17 - Other Placements Bed & Breakfast,12/10/2018,5121104,"1,710.00",Finefair Management
Childrens Services,Children's Social Care,Family Support Services,IPST S17 NRPF,Childrens Act Section 17 - Other Placements Bed & Breakfast,12/10/2018,5121105,"1,500.00",Finefair Management
Childrens Services,Children's Social Care,Family Support Services,IPST S17 NRPF,Childrens Act Section 17 - Other Placements Bed & Breakfast,12/10/2018,5121106,"2,400.00",Finefair Management
Childrens Services,Children's Social Care,Family Support Services,IPST S17 NRPF,Childrens Act Section 17 - Other Placements Bed & Breakfast,12/10/2018,5121107,"1,200.00",Finefair Management
Childrens Services,Children's Social Care,Family Support Services,IPST S17 NRPF,Childrens Act Section 17 - Other Placements Bed & Breakfast,12/10/2018,5121108,"1,500.00",Finefair Management
Childrens Services,Children's Social Care,Family Support Services,IPST S17 NRPF,Childrens Act Section 17 - Other Placements Bed & Breakfast,12/10/2018,5121109,"1,500.00",Finefair Management
Childrens Services,Children's Social Care,Service Strategy,FSP Sect 17 - Team 4,Childrens Act Section 17 - Other Placements Bed & Breakfast,12/10/2018,5121110,"2,550.00",Finefair Management
Childrens Services,Children's Social Care,Family Support Services,IPST S17 NRPF,Childrens Act Section 17 - Other Placements Bed & Breakfast,12/10/2018,5121111,"4,250.00",Finefair Management
Childrens Services,Cultural and Related Services,Open Spaces,Victoria Park,Events & Exhibition Supplies,12/10/2018,5121280,300.00,REDACTED SECTION 40 FOI ACT
Childrens Services,Children's Social Care,Children's and Young People's Safety,FSP Sect 17 - Team 10,Childrens Act Section 17 - Spec Pymnts Legal,12/10/2018,5121819,595.00,Foreign and Commonwealth Office
Childrens Services,Children's Social Care,Support Service and Management Costs,Schools Catering,Kitchen Supplies - Food and Beverages,15/10/2018,5106836,351.11,Thomas Ridley & Son Ltd
Childrens Services,Children's Social Care,Support Service and Management Costs,Schools Catering,Kitchen Supplies - Food and Beverages,15/10/2018,5106837,839.32,Thomas Ridley & Son Ltd
Childrens Services,Children's Social Care,Support Service and Management Costs,Schools Catering,Kitchen Supplies - Food and Beverages,15/10/2018,5106838,"1,281.38",Thomas Ridley & Son Ltd
Childrens Services,Children's Social Care,Support Service and Management Costs,Schools Catering,Kitchen Supplies - Food and Beverages,15/10/2018,5106839,999.73,Thomas Ridley & Son Ltd
Childrens Services,Children's Social Care,Support Service and Management Costs,Schools Catering,Kitchen Supplies - Food and Beverages,15/10/2018,5106842,384.25,Thomas Ridley & Son Ltd
Childrens Services,Children's Social Care,Support Service and Management Costs,Schools Catering,Kitchen Supplies - Food and Beverages,15/10/2018,5106846,362.10,Thomas Ridley & Son Ltd
Childrens Services,Children's Social Care,Support Service and Management Costs,Schools Catering,Kitchen Supplies - Food and Beverages,15/10/2018,5106847,320.47,Thomas Ridley & Son Ltd
Childrens Services,Children's Social Care,Support Service and Management Costs,Schools Catering,Kitchen Supplies - Food and Beverages,15/10/2018,5106848,663.34,Thomas Ridley & Son Ltd
Childrens Services,Children's Social Care,Support Service and Management Costs,Schools Catering,Kitchen Supplies - Food and Beverages,15/10/2018,5106849,427.00,Thomas Ridley & Son Ltd
Childrens Services,Children's Social Care,Support Service and Management Costs,Schools Catering,Kitchen Supplies - Food and Beverages,15/10/2018,5106850,409.74,Thomas Ridley & Son Ltd
Childrens Services,Children's Social Care,Support Service and Management Costs,Schools Catering,Kitchen Supplies - Food and Beverages,15/10/2018,5107721,"1,099.87",Thomas Ridley & Son Ltd
Childrens Services,Children's Social Care,Support Service and Management Costs,Schools Catering,Kitchen Supplies - Food and Beverages,15/10/2018,5107725,484.36,Thomas Ridley & Son Ltd
Childrens Services,Children's Social Care,Support Service and Management Costs,Schools Catering,Kitchen Supplies - Food and Beverages,15/10/2018,5107726,386.30,Thomas Ridley & Son Ltd
Childrens Services,Children's Social Care,Support Service and Management Costs,Schools Catering,Kitchen Supplies - Food and Beverages,15/10/2018,5107727,481.53,Thomas Ridley & Son Ltd
Childrens Services,Children's Social Care,Support Service and Management Costs,Schools Catering,Kitchen Supplies - Food and Beverages,15/10/2018,5107728,341.42,Thomas Ridley & Son Ltd
Childrens Services,Children's Social Care,Support Service and Management Costs,Schools Catering,Kitchen Supplies - Food and Beverages,15/10/2018,5107748,284.20,Prescott-Thomas LTD.
Childrens Services,Children's Social Care,Support Service and Management Costs,Schools Catering,Kitchen Supplies - Food and Beverages,15/10/2018,5107754,327.19,Prescott-Thomas LTD.
Childrens Services,Children's Social Care,Support Service and Management Costs,Schools Catering,Kitchen Supplies - Food and Beverages,15/10/2018,5107759,368.17,Prescott-Thomas LTD.
Childrens Services,Children's Social Care,Support Service and Management Costs,Schools Catering,Kitchen Supplies - Food and Beverages,15/10/2018,5107781,415.53,Prescott-Thomas LTD.
Childrens Services,Children's Social Care,Support Service and Management Costs,Schools Catering,Kitchen Supplies - Food and Beverages,15/10/2018,5107789,250.61,Prescott-Thomas LTD.
Childrens Services,Children's Social Care,Support Service and Management Costs,Swanlea,Kitchen Supplies - Food and Beverages,15/10/2018,5107794,279.54,Prescott-Thomas LTD.
Childrens Services,Cultural and Related Services,Open Spaces,Parks & Open Spaces Man&Admin,Repairs and Maintenance - Responsive - Buildings,15/10/2018,5108875,"2,204.00",JC Coster (Metalworks) Ltd
Childrens Services,Education Services,Other Strategic Functions,Support for Learning Serv DSG,Education & Training - Non Staff Tuition Fees,15/10/2018,5108880,295.00,Pearson Education Ltd
Childrens Services,Education Services,Other Strategic Functions,High Needs LBTH Mainstream Schs,Services - Professional Fees - Consultants Fees,15/10/2018,5108933,"23,200.00",Chrow Solutions Ltd
Childrens Services,Children's Social Care,Children Looked After,S23-Other-Mother & Baby Unit,Childrens Act Section 23 - Placement Fee,15/10/2018,5108979,"1,428.55",Real Life
Childrens Services,Children's Social Care,Children Looked After,S23-Other-Semi-Ind. Unit,Childrens Act Section 23 - Placement Fee,15/10/2018,5108981,925.00,Real Life
Childrens Services,Children's Social Care,Support Service and Management Costs,Schools Catering,Kitchen Supplies - Food and Beverages,15/10/2018,5108993,643.80,Thomas Ridley & Son Ltd
Childrens Services,Children's Social Care,Support Service and Management Costs,Schools Catering,Kitchen Supplies - Food and Beverages,15/10/2018,5108995,646.45,Thomas Ridley & Son Ltd
Childrens Services,Children's Social Care,Support Service and Management Costs,Schools Catering,Kitchen Supplies - Food and Beverages,15/10/2018,5108998,595.27,Thomas Ridley & Son Ltd
Childrens Services,Children's Social Care,Support Service and Management Costs,Schools Catering,Kitchen Supplies - Food and Beverages,15/10/2018,5109000,485.45,Thomas Ridley & Son Ltd
Childrens Services,Children's Social Care,Support Service and Management Costs,Schools Catering,Kitchen Supplies - Food and Beverages,15/10/2018,5109003,609.63,Thomas Ridley & Son Ltd
Childrens Services,Children's Social Care,Support Service and Management Costs,Schools Catering,Kitchen Supplies - Food and Beverages,15/10/2018,5109004,722.22,Thomas Ridley & Son Ltd
Childrens Services,Children's Social Care,Support Service and Management Costs,Schools Catering,Kitchen Supplies - Food and Beverages,15/10/2018,5109005,392.06,Thomas Ridley & Son Ltd
Childrens Services,Children's Social Care,Support Service and Management Costs,Schools Catering,Kitchen Supplies - Food and Beverages,15/10/2018,5109007,415.21,Thomas Ridley & Son Ltd
Childrens Services,Children's Social Care,Support Service and Management Costs,Schools Catering,Kitchen Supplies - Food and Beverages,15/10/2018,5109008,346.47,Thomas Ridley & Son Ltd
Childrens Services,Children's Social Care,Support Service and Management Costs,Schools Catering,Kitchen Supplies - Food and Beverages,15/10/2018,5109009,317.85,Thomas Ridley & Son Ltd
Childrens Services,Children's Social Care,Support Service and Management Costs,Sch. Meals A/c - Central Production Unit,Kitchen Supplies - Food and Beverages,15/10/2018,5109010,"1,733.88",Thomas Ridley & Son Ltd
Childrens Services,Children's Social Care,Support Service and Management Costs,Welfare Catering,Kitchen Supplies - Food and Beverages,15/10/2018,5109011,618.53,Thomas Ridley & Son Ltd
Childrens Services,Children's Social Care,Support Service and Management Costs,Schools Catering,Kitchen Supplies - Food and Beverages,15/10/2018,5109013,498.04,Thomas Ridley & Son Ltd
Childrens Services,Children's Social Care,Support Service and Management Costs,Schools Catering,Kitchen Supplies - Food and Beverages,15/10/2018,5109014,860.86,Thomas Ridley & Son Ltd
Childrens Services,Children's Social Care,Support Service and Management Costs,Schools Catering,Kitchen Supplies - Food and Beverages,15/10/2018,5109015,282.80,Thomas Ridley & Son Ltd
Childrens Services,Children's Social Care,Support Service and Management Costs,Schools Catering,Kitchen Supplies - Food and Beverages,15/10/2018,5109016,731.49,Thomas Ridley & Son Ltd
Childrens Services,Children's Social Care,Support Service and Management Costs,Schools Catering,Kitchen Supplies - Food and Beverages,15/10/2018,5109020,507.99,Thomas Ridley & Son Ltd
Childrens Services,Children's Social Care,Support Service and Management Costs,Schools Catering,Kitchen Supplies - Food and Beverages,15/10/2018,5109022,599.87,Thomas Ridley & Son Ltd
Childrens Services,Children's Social Care,Support Service and Management Costs,Schools Catering,Kitchen Supplies - Food and Beverages,15/10/2018,5109023,451.50,Thomas Ridley & Son Ltd
Childrens Services,Children's Social Care,Support Service and Management Costs,Schools Catering,Kitchen Supplies - Food and Beverages,15/10/2018,5109024,663.31,Thomas Ridley & Son Ltd
Childrens Services,Children's Social Care,Support Service and Management Costs,Schools Catering,Kitchen Supplies - Food and Beverages,15/10/2018,5109025,287.14,Thomas Ridley & Son Ltd
Childrens Services,Children's Social Care,Support Service and Management Costs,Schools Catering,Kitchen Supplies - Food and Beverages,15/10/2018,5109027,397.99,Thomas Ridley & Son Ltd
Childrens Services,Children's Social Care,Support Service and Management Costs,Schools Catering,Kitchen Supplies - Food and Beverages,15/10/2018,5109028,265.13,Thomas Ridley & Son Ltd
Childrens Services,Children's Social Care,Support Service and Management Costs,Schools Catering,Kitchen Supplies - Food and Beverages,15/10/2018,5109029,287.99,Thomas Ridley & Son Ltd
Childrens Services,Children's Social Care,Support Service and Management Costs,Schools Catering,Kitchen Supplies - Food and Beverages,15/10/2018,5109030,437.32,Thomas Ridley & Son Ltd
Childrens Services,Children's Social Care,Support Service and Management Costs,Schools Catering,Kitchen Supplies - Food and Beverages,15/10/2018,5109031,461.87,Thomas Ridley & Son Ltd
Childrens Services,Children's Social Care,Support Service and Management Costs,Schools Catering,Kitchen Supplies - Food and Beverages,15/10/2018,5109033,477.28,Thomas Ridley & Son Ltd
Childrens Services,Children's Social Care,Support Service and Management Costs,Swanlea,Kitchen Supplies - Food and Beverages,15/10/2018,5109034,"1,146.61",Thomas Ridley & Son Ltd
Childrens Services,Children's Social Care,Support Service and Management Costs,Schools Catering,Kitchen Supplies - Food and Beverages,15/10/2018,5109035,345.39,Thomas Ridley & Son Ltd
Childrens Services,Children's Social Care,Support Service and Management Costs,Schools Catering,Kitchen Supplies - Food and Beverages,15/10/2018,5109036,306.12,Thomas Ridley & Son Ltd
Childrens Services,Children's Social Care,Support Service and Management Costs,Schools Catering,Kitchen Supplies - Food and Beverages,15/10/2018,5109038,373.21,Thomas Ridley & Son Ltd
Childrens Services,Children's Social Care,Support Service and Management Costs,Schools Catering,Kitchen Supplies - Food and Beverages,15/10/2018,5109039,701.89,Thomas Ridley & Son Ltd
Childrens Services,Children's Social Care,Support Service and Management Costs,Schools Catering,Kitchen Supplies - Food and Beverages,15/10/2018,5109041,330.44,Thomas Ridley & Son Ltd
Childrens Services,Children's Social Care,Service Strategy,CSC Childrens Resources M & A,Training Expenses - Staff External Training (UK Based),15/10/2018,5109044,525.00,L.A. Training
Childrens Services,Education Services,Early Years,Children Centre Central Team,Third Party Payments - Voluntary Associations,15/10/2018,5109046,"6,248.50",Toyhouse
Childrens Services,Children's Social Care,Support Service and Management Costs,Schools Catering,Kitchen Supplies - Food and Beverages,15/10/2018,5109056,285.50,Prescott-Thomas LTD.
Childrens Services,Children's Social Care,Support Service and Management Costs,Sch. Meals A/c - Central Production Unit,Kitchen Supplies - Food and Beverages,15/10/2018,5109057,259.40,Prescott-Thomas LTD.
Childrens Services,Children's Social Care,Support Service and Management Costs,Schools Catering,Kitchen Supplies - Food and Beverages,15/10/2018,5109079,306.89,Prescott-Thomas LTD.
Childrens Services,Cultural and Related Services,Open Spaces,Parks & Open Spaces Man&Admin,Repairs and Maintenance - Responsive - General,15/10/2018,5109784,350.00,Eales Shutters Ltd
Childrens Services,Children's Social Care,Services for young people,Youth Service Management,Room Hire,15/10/2018,5110799,750.00,Collingwood Estate TRA
Childrens Services,Children's Social Care,Support Service and Management Costs,Schools Catering,Kitchen Supplies - Food and Beverages,15/10/2018,5111392,288.34,William White Meats Ltd
Childrens Services,Children's Social Care,Support Service and Management Costs,Sch. Meals A/c - Central Production Unit,Kitchen Supplies - Food and Beverages,15/10/2018,5111404,488.66,William White Meats Ltd
Childrens Services,Children's Social Care,Support Service and Management Costs,Schools Catering,Kitchen Supplies - Food and Beverages,15/10/2018,5111412,399.40,William White Meats Ltd
Childrens Services,Education Services,Early Years,Central Nursery LSAs,Third Party Payments - Payments to Schools,15/10/2018,5111558,"16,500.00",Easy Steps Limited
Childrens Services,Cultural and Related Services,Open Spaces,Mile End Park,Repairs and Maintenance - Responsive - Buildings,15/10/2018,5111563,790.00,J&L Coster (Drainage) Ltd
Childrens Services,Cultural and Related Services,Recreation & Sport,Recreational Services Central,Computing - Purchase of Hardware,15/10/2018,5113071,326.38,Specialist Computer Centres PLC
Childrens Services,Children's Social Care,Children Looked After,Virtual School PPG,Meeting Expenses,15/10/2018,5113888,860.00,the royal foundation of st katharine
Childrens Services,Children's Social Care,Children Looked After,S23-Other-Semi-Ind. Unit,Childrens Act Section 23 - Placement Fee,15/10/2018,5113942,"3,471.43",Explore Independence Ltd
Childrens Services,Children's Social Care,Children Looked After,S23-Other-Semi-Ind. Unit,Childrens Act Section 23 - Placement Fee,15/10/2018,5113943,340.00,Explore Independence Ltd
Childrens Services,Education Services,Early Years,Meath Gardens CC,Computing - Purchase of Hardware,15/10/2018,5114044,852.80,Specialist Computer Centres PLC
Childrens Services,Education Services,Early Years,John Smith CC,Computing - Purchase of Software,15/10/2018,5114046,963.74,Specialist Computer Centres PLC
Childrens Services,Cultural and Related Services,Open Spaces,Mile End Park,Events & Exhibition Supplies,15/10/2018,5114048,412.56,A P Security (North) LTD
Childrens Services,Cultural and Related Services,Open Spaces,Mile End Park,Events & Exhibition Supplies,15/10/2018,5114049,267.40,A P Security (North) LTD
Childrens Services,Cultural and Related Services,Open Spaces,Mile End Park,Events & Exhibition Supplies,15/10/2018,5114050,315.84,A P Security (North) LTD
Childrens Services,Education Services,Other Strategic Functions,Music Trading Account,Office Furniture/Equipment,15/10/2018,5114082,780.00,Unique Office Solutions
Childrens Services,Education Services,Other Strategic Functions,Support for Learning Serv DSG,Education & Training - Non Staff Tuition Fees,15/10/2018,5114590,465.25,Pearson Education Ltd
Childrens Services,Children's Social Care,Children Looked After,S23 Fam Pl P&V-F/Care,Childrens Act Section 23 - Placement Fee,15/10/2018,5118012,"3,044.40",Children First Fostering Agency LTD
Childrens Services,Children's Social Care,Children Looked After,S23 Fam Pl P&V-F/Care,Childrens Act Section 23 - Placement Fee,15/10/2018,5118013,"3,044.40",Children First Fostering Agency LTD
Childrens Services,Children's Social Care,Children Looked After,S23 Fam Pl P&V-F/Care,Childrens Act Section 23 - Placement Fee,15/10/2018,5118014,"3,071.40",Children First Fostering Agency LTD
Childrens Services,Education Services,Other Strategic Functions,Music Trading Account,Educational/Training Supplies - Arts & Crafts,15/10/2018,5118016,310.50,LMS Music Supplies
Childrens Services,Education Services,Other Strategic Functions,Music Trading Account,Third Party Payments - Voluntary Associations,15/10/2018,5119675,"1,211.00",UPSTAGE PERFORMANCE GROUP
Childrens Services,Education Services,Other Strategic Functions,SEN External Travel,Non Staff Transport Costs - Reimbursement,15/10/2018,5121020,"3,360.00",Mile End Car Hire Limited
Childrens Services,Children's Social Care,Children Looked After,S23 Fam Pl In-Hse-S/Term F/C,Childrens Act Section 23 - All Contact Expenses,15/10/2018,5121877,658.00,Mile End Car Hire Limited
Childrens Services,Children's Social Care,Children Looked After,S23 Fam Pl In-Hse-S/Term F/C,Childrens Act Section 23 - All Contact Expenses,15/10/2018,5121879,420.00,Mile End Car Hire Limited
Childrens Services,Children's Social Care,Children Looked After,S23 Fam Pl In-Hse-S/Term F/C,Childrens Act Section 23 - Medical Expenses,15/10/2018,5121916,282.64,E4 Law Limited T/A Lextox
Childrens Services,Children's Social Care,Children Looked After,S23 Fam Pl P&V-F/Care,Childrens Act Section 23 - Placement Fee,15/10/2018,5121977,"6,343.20",Synergy Fostering Ltd
Childrens Services,Education Services,Early Years,Marner. CC,Repairs and Maintenance - Responsive - Repair & Maintenance,15/10/2018,5121981,785.00,G A Harpers LTD
Childrens Services,Education Services,Early Years,Marner. CC,Repairs and Maintenance - Responsive - Repair & Maintenance,15/10/2018,5121982,290.00,G A Harpers LTD
Childrens Services,Children's Social Care,Children Looked After,S23-Resi-P&V/OLA-Child Home,Childrens Act Section 23 - All Contact Expenses,15/10/2018,5122258,956.10,CHILDREN WITH DISABILITIES
Childrens Services,Children's Social Care,Children Looked After,Leaving Care-UASC,Leaving Care Financial Assistance - Reg Plan Maint L-Allow,17/10/2018,5103627,256.86,Pangea Support Services
Childrens Services,Children's Social Care,Children Looked After,Leaving Care-UASC,Leaving Care Financial Assistance - Supp Accom/Hous Rents,17/10/2018,5103627,"4,406.43",Pangea Support Services
Childrens Services,Children's Social Care,Children Looked After,Leaving Care-UASC,Leaving Care Financial Assistance - Reg Plan Maint Travel A,17/10/2018,5103630,256.86,Pangea Support Services
Childrens Services,Children's Social Care,Children Looked After,Leaving Care-UASC,Leaving Care Financial Assistance - Supp Accom/Hous Rents,17/10/2018,5103630,"1,107.14",Pangea Support Services
Childrens Services,Children's Social Care,Children Looked After,Leaving Care-UASC,Leaving Care Financial Assistance - Supp Accom/Hous Rents,17/10/2018,5103640,"1,107.14",Pangea Support Services
Childrens Services,Children's Social Care,Children Looked After,LCS/Allowances-Accom,Leaving Care Financial Assistance - Supp Accom/Hous Rents,17/10/2018,5103642,"1,107.14",Pangea Support Services
Childrens Services,Children's Social Care,Children Looked After,LCS/Allowances-Accom,Leaving Care Financial Assistance - Supported Living,17/10/2018,5103642,332.14,Pangea Support Services
Childrens Services,Children's Social Care,Children Looked After,Leaving Care-UASC,Leaving Care Financial Assistance - Reg Plan Maint Travel A,17/10/2018,5103645,256.86,Pangea Support Services
Childrens Services,Children's Social Care,Children Looked After,Leaving Care-UASC,Leaving Care Financial Assistance - Supp Accom/Hous Rents,17/10/2018,5103645,"1,107.14",Pangea Support Services
Childrens Services,Children's Social Care,Children Looked After,Leaving Care-UASC,Leaving Care Financial Assistance - Supp Accom/Hous Rents,17/10/2018,5103646,"1,107.14",Pangea Support Services
Childrens Services,Children's Social Care,Support Service and Management Costs,Schools Catering,Kitchen Supplies - Food and Beverages,17/10/2018,5109840,824.51,Thomas Ridley & Son Ltd
Childrens Services,Children's Social Care,Support Service and Management Costs,Schools Catering,Kitchen Supplies - Food and Beverages,17/10/2018,5109841,534.07,Thomas Ridley & Son Ltd
Childrens Services,Children's Social Care,Support Service and Management Costs,Schools Catering,Kitchen Supplies - Food and Beverages,17/10/2018,5109843,738.59,Thomas Ridley & Son Ltd
Childrens Services,Children's Social Care,Support Service and Management Costs,Schools Catering,Kitchen Supplies - Food and Beverages,17/10/2018,5109844,794.22,Thomas Ridley & Son Ltd
Childrens Services,Children's Social Care,Support Service and Management Costs,Schools Catering,Kitchen Supplies - Food and Beverages,17/10/2018,5109847,323.10,Thomas Ridley & Son Ltd
Childrens Services,Children's Social Care,Support Service and Management Costs,Schools Catering,Kitchen Supplies - Food and Beverages,17/10/2018,5109848,712.14,Thomas Ridley & Son Ltd
Childrens Services,Children's Social Care,Support Service and Management Costs,Schools Catering,Kitchen Supplies - Food and Beverages,17/10/2018,5109851,405.08,Thomas Ridley & Son Ltd
Childrens Services,Children's Social Care,Support Service and Management Costs,Schools Catering,Kitchen Supplies - Food and Beverages,17/10/2018,5109852,325.56,Thomas Ridley & Son Ltd
Childrens Services,Children's Social Care,Support Service and Management Costs,Schools Catering,Kitchen Supplies - Food and Beverages,17/10/2018,5109853,548.29,Thomas Ridley & Son Ltd
Childrens Services,Children's Social Care,Support Service and Management Costs,Schools Catering,Kitchen Supplies - Food and Beverages,17/10/2018,5109856,551.52,Thomas Ridley & Son Ltd
Childrens Services,Children's Social Care,Support Service and Management Costs,Schools Catering,Kitchen Supplies - Food and Beverages,17/10/2018,5109857,754.51,Thomas Ridley & Son Ltd
Childrens Services,Children's Social Care,Support Service and Management Costs,Schools Catering,Kitchen Supplies - Food and Beverages,17/10/2018,5109858,931.27,Thomas Ridley & Son Ltd
Childrens Services,Children's Social Care,Support Service and Management Costs,Schools Catering,Kitchen Supplies - Food and Beverages,17/10/2018,5109859,393.79,Thomas Ridley & Son Ltd
Childrens Services,Children's Social Care,Support Service and Management Costs,Schools Catering,Kitchen Supplies - Food and Beverages,17/10/2018,5109860,380.16,Thomas Ridley & Son Ltd
Childrens Services,Children's Social Care,Support Service and Management Costs,Schools Catering,Kitchen Supplies - Food and Beverages,17/10/2018,5109862,316.83,Thomas Ridley & Son Ltd
Childrens Services,Children's Social Care,Support Service and Management Costs,Schools Catering,Kitchen Supplies - Food and Beverages,17/10/2018,5109863,964.65,Thomas Ridley & Son Ltd
Childrens Services,Children's Social Care,Support Service and Management Costs,Schools Catering,Kitchen Supplies - Food and Beverages,17/10/2018,5109865,512.35,Thomas Ridley & Son Ltd
Childrens Services,Children's Social Care,Support Service and Management Costs,Schools Catering,Kitchen Supplies - Food and Beverages,17/10/2018,5109866,394.99,Thomas Ridley & Son Ltd
Childrens Services,Children's Social Care,Support Service and Management Costs,Schools Catering,Kitchen Supplies - Food and Beverages,17/10/2018,5109867,377.89,Thomas Ridley & Son Ltd
Childrens Services,Children's Social Care,Support Service and Management Costs,Schools Catering,Kitchen Supplies - Food and Beverages,17/10/2018,5109868,577.63,Thomas Ridley & Son Ltd
Childrens Services,Children's Social Care,Support Service and Management Costs,Schools Catering,Kitchen Supplies - Food and Beverages,17/10/2018,5109869,483.78,Thomas Ridley & Son Ltd
Childrens Services,Children's Social Care,Support Service and Management Costs,Schools Catering,Kitchen Supplies - Food and Beverages,17/10/2018,5109870,311.48,Thomas Ridley & Son Ltd
Childrens Services,Children's Social Care,Support Service and Management Costs,Schools Catering,Kitchen Supplies - Food and Beverages,17/10/2018,5109872,444.27,Thomas Ridley & Son Ltd
Childrens Services,Children's Social Care,Support Service and Management Costs,Sch. Meals A/c - Central Production Unit,Kitchen Supplies - Food and Beverages,17/10/2018,5109874,"1,178.83",Thomas Ridley & Son Ltd
Childrens Services,Children's Social Care,Support Service and Management Costs,Schools Catering,Kitchen Supplies - Food and Beverages,17/10/2018,5109877,572.98,Thomas Ridley & Son Ltd
Childrens Services,Children's Social Care,Support Service and Management Costs,Schools Catering,Kitchen Supplies - Food and Beverages,17/10/2018,5109878,424.95,Thomas Ridley & Son Ltd
Childrens Services,Children's Social Care,Support Service and Management Costs,Schools Catering,Kitchen Supplies - Food and Beverages,17/10/2018,5109879,541.01,Thomas Ridley & Son Ltd
Childrens Services,Children's Social Care,Support Service and Management Costs,Schools Catering,Kitchen Supplies - Food and Beverages,17/10/2018,5109882,459.90,Thomas Ridley & Son Ltd
Childrens Services,Children's Social Care,Support Service and Management Costs,Schools Catering,Kitchen Supplies - Food and Beverages,17/10/2018,5109885,939.44,Thomas Ridley & Son Ltd
Childrens Services,Children's Social Care,Support Service and Management Costs,Schools Catering,Kitchen Supplies - Food and Beverages,17/10/2018,5109887,317.60,Thomas Ridley & Son Ltd
Childrens Services,Cultural and Related Services,Open Spaces,Mile End Park,Repairs and Maintenance - Responsive - Buildings,17/10/2018,5110493,450.00,JC Coster (Metalworks) Ltd
Childrens Services,Education Services,Early Years,Isle of Dogs. CC,Repairs and Maintenance - Responsive - Repair & Maintenance,17/10/2018,5110494,250.00,JC Coster (Metalworks) Ltd
Childrens Services,Education Services,Early Years,Isle of Dogs. CC,Repairs and Maintenance - Responsive - Repair & Maintenance,17/10/2018,5110494,300.00,JC Coster (Metalworks) Ltd
Childrens Services,Education Services,Early Years,Isle of Dogs. CC,Repairs and Maintenance - Responsive - Repair & Maintenance,17/10/2018,5110494,"22,400.00",JC Coster (Metalworks) Ltd
Childrens Services,Education Services,Early Years,Isle of Dogs. CC,Repairs and Maintenance - Responsive - Repair & Maintenance,17/10/2018,5110494,750.00,JC Coster (Metalworks) Ltd
Childrens Services,Education Services,Other Strategic Functions,High Needs Other Boroughs,Third Party Payments - Payments to Schools,17/10/2018,5110567,"8,000.00",BARRINGTON PRIMARY SCHOOL
Childrens Services,Children's Social Care,Support Service and Management Costs,Schools Catering,Kitchen Supplies - Food and Beverages,17/10/2018,5110631,315.46,Thomas Ridley & Son Ltd
Childrens Services,Children's Social Care,Support Service and Management Costs,Schools Catering,Kitchen Supplies - Food and Beverages,17/10/2018,5110632,371.03,Thomas Ridley & Son Ltd
Childrens Services,Children's Social Care,Support Service and Management Costs,Schools Catering,Kitchen Supplies - Food and Beverages,17/10/2018,5110633,626.13,Thomas Ridley & Son Ltd
Childrens Services,Children's Social Care,Support Service and Management Costs,Swanlea,Kitchen Supplies - Food and Beverages,17/10/2018,5110636,259.35,Thomas Ridley & Son Ltd
Childrens Services,Children's Social Care,Support Service and Management Costs,Schools Catering,Kitchen Supplies - Food and Beverages,17/10/2018,5110639,352.81,Thomas Ridley & Son Ltd
Childrens Services,Children's Social Care,Support Service and Management Costs,Schools Catering,Kitchen Supplies - Food and Beverages,17/10/2018,5110640,291.31,Thomas Ridley & Son Ltd
Childrens Services,Children's Social Care,Support Service and Management Costs,Schools Catering,Kitchen Supplies - Food and Beverages,17/10/2018,5110641,325.97,Thomas Ridley & Son Ltd
Childrens Services,Children's Social Care,Support Service and Management Costs,Schools Catering,Kitchen Supplies - Food and Beverages,17/10/2018,5110643,298.15,Thomas Ridley & Son Ltd
Childrens Services,Children's Social Care,Support Service and Management Costs,Schools Catering,Kitchen Supplies - Food and Beverages,17/10/2018,5110645,697.09,Thomas Ridley & Son Ltd
Childrens Services,Children's Social Care,Support Service and Management Costs,Schools Catering,Kitchen Supplies - Food and Beverages,17/10/2018,5110647,914.82,Thomas Ridley & Son Ltd
Childrens Services,Children's Social Care,Support Service and Management Costs,Schools Catering,Kitchen Supplies - Food and Beverages,17/10/2018,5110648,653.89,Thomas Ridley & Son Ltd
Childrens Services,Children's Social Care,Support Service and Management Costs,Schools Catering,Kitchen Supplies - Food and Beverages,17/10/2018,5110649,437.61,Thomas Ridley & Son Ltd
Childrens Services,Children's Social Care,Support Service and Management Costs,Schools Catering,Kitchen Supplies - Food and Beverages,17/10/2018,5110650,997.54,Thomas Ridley & Son Ltd
Childrens Services,Children's Social Care,Support Service and Management Costs,Sch. Meals A/c - Central Production Unit,Kitchen Supplies - Food and Beverages,17/10/2018,5110653,705.92,Thomas Ridley & Son Ltd
Childrens Services,Children's Social Care,Support Service and Management Costs,Schools Catering,Kitchen Supplies - Food and Beverages,17/10/2018,5111396,447.83,William White Meats Ltd
Childrens Services,Children's Social Care,Support Service and Management Costs,Schools Catering,Kitchen Supplies - Food and Beverages,17/10/2018,5111398,291.86,William White Meats Ltd
Childrens Services,Children's Social Care,Support Service and Management Costs,Schools Catering,Kitchen Supplies - Food and Beverages,17/10/2018,5111401,307.25,William White Meats Ltd
Childrens Services,Children's Social Care,Support Service and Management Costs,Schools Catering,Kitchen Supplies - Food and Beverages,17/10/2018,5111402,273.19,William White Meats Ltd
Childrens Services,Children's Social Care,Support Service and Management Costs,Welfare Catering,Kitchen Supplies - Food and Beverages,17/10/2018,5111423,264.03,William White Meats Ltd
Childrens Services,Children's Social Care,Support Service and Management Costs,Schools Catering,Kitchen Supplies - Food and Beverages,17/10/2018,5111429,413.35,William White Meats Ltd
Childrens Services,Children's Social Care,Service Strategy,CSC Childrens Resources M & A,Training Expenses - Staff External Training (UK Based),17/10/2018,5111526,"1,800.00",Jackie Harrop Ltd
Childrens Services,Education Services,Other Strategic Functions,High Needs Other Boroughs,Third Party Payments - Payments to Schools,17/10/2018,5111544,"15,666.66",Belmont Park Special School
Childrens Services,Education Services,Other Strategic Functions,High Needs Other Boroughs,Third Party Payments - Payments to Schools,17/10/2018,5111545,"8,416.66",Belmont Park Special School
Childrens Services,Children's Social Care,Children Looked After,Virtual School PPG,Agency Staff - Associations,17/10/2018,5111579,"1,009.80",Academics ltd
Childrens Services,Children's Social Care,Children Looked After,Virtual School PPG,Agency Staff - Associations,17/10/2018,5111580,"1,262.25",Academics ltd
Childrens Services,Children's Social Care,Children Looked After,Virtual School PPG,Agency Staff - Associations,17/10/2018,5111581,504.90,Academics ltd
Childrens Services,Children's Social Care,Children Looked After,Virtual School PPG,Agency Staff - Associations,17/10/2018,5111582,757.35,Academics ltd
Childrens Services,Children's Social Care,Children Looked After,Virtual School PPG,Agency Staff - Associations,17/10/2018,5111583,"1,262.25",Academics ltd
Childrens Services,Children's Social Care,Children Looked After,Virtual School PPG,Agency Staff - Associations,17/10/2018,5111584,757.35,Academics ltd
Childrens Services,Education Services,Other Strategic Functions,BHLPS (Budget Holding Lead Professional Scheme),Non Staff Transport Costs - Client Transport Costs,17/10/2018,5112969,900.00,Mile End Car Hire Limited
Childrens Services,Children's Social Care,Support Service and Management Costs,Welfare Catering,Kitchen Supplies - Food and Beverages,17/10/2018,5113056,644.98,Raj Foods LTD
Childrens Services,Children's Social Care,Support Service and Management Costs,Welfare Catering,Kitchen Supplies - Food and Beverages,17/10/2018,5113057,716.40,Raj Foods LTD
Childrens Services,Education Services,Other Strategic Functions,High Needs Other Boroughs,Third Party Payments - Payments to Schools,17/10/2018,5113890,"4,315.67",Clore Tikva School
Childrens Services,Education Services,Other Strategic Functions,High Needs Other Boroughs,Third Party Payments - Payments to Schools,17/10/2018,5113891,"5,514.73",Clore Tikva School
Childrens Services,Children's Social Care,Support Service and Management Costs,Schools Catering,Subscriptions - Associations,17/10/2018,5114690,"1,045.00",THE SOIL ASSOCIATION
Childrens Services,Children's Social Care,Support Service and Management Costs,Schools Catering,Repairs and Maintenance - Responsive - General,17/10/2018,5116198,642.09,Lambourne Refrigeration
Childrens Services,Children's Social Care,Support Service and Management Costs,Schools Catering,Materials - Cleaning Materials,17/10/2018,5117226,343.25,The Maintenance Supply Co Ltd
Childrens Services,Children's Social Care,Services for young people,Youth Service Management,Fixtures and Fittings - Purchases - Security,17/10/2018,5118002,"2,175.00",Openview Security Solutions Ltd
Childrens Services,Education Services,Other Strategic Functions,High Needs Other Boroughs,Third Party Payments - Payments to Schools,17/10/2018,5118254,"10,581.88",Blanche Neville School
Childrens Services,Education Services,Other Strategic Functions,High Needs Other Boroughs,Third Party Payments - Payments to Schools,17/10/2018,5118255,"15,846.88",Blanche Neville School
Childrens Services,Education Services,Other Strategic Functions,High Needs Other Boroughs,Third Party Payments - Payments to Schools,17/10/2018,5118256,"15,846.88",Blanche Neville School
Childrens Services,Education Services,Other Strategic Functions,Parents Advice Centre,Stationery,17/10/2018,5118576,507.50,Love2Reward
Childrens Services,Children's Social Care,Commissioning and Social Work,Advice and Assessment Section 17,Childrens Act Section 17 - Clothing Grants,17/10/2018,5118655,250.00,SOCIAL SERVICES CHEVIOT HOUSE
Childrens Services,Children's Social Care,Commissioning and Social Work,Advice and Assessment Section 17,Childrens Act Section 17 - Food Grants,17/10/2018,5118655,"1,590.70",SOCIAL SERVICES CHEVIOT HOUSE
Childrens Services,Cultural and Related Services,Open Spaces,Victoria Park,Tools and Equipment - Purchase,17/10/2018,5119466,463.73,Groundsman Supplies
Childrens Services,Education Services,Other Strategic Functions,Information & Support Services,Training Expenses - Staff External Training (UK Based),17/10/2018,5119531,"1,748.00",ADASS
Childrens Services,Children's Social Care,Commissioning and Social Work,Advice and Assessment Section 17,Childrens Act Section 17 - Non-Contact Taxi Costs,17/10/2018,5119542,"3,760.00",Right Choice
Childrens Services,Cultural and Related Services,Open Spaces,Victoria Park,Events & Exhibition Supplies,17/10/2018,5119567,650.00,The Great Big Tree Climbing Co Ltd
Childrens Services,Children's Social Care,Family Support Services,CNN Pool: Joint Family Support,Childrens Act Section 17 - Non-Contact Taxi Costs,17/10/2018,5121890,"2,520.00",Mile End Car Hire Limited
Childrens Services,Children's Social Care,Family Support Services,IPST S17 NRPF,Childrens Act Section 17 - Other Placements Bed & Breakfast,17/10/2018,5121925,266.00,Apolonia Property Services (Exodus Housing)
Childrens Services,Children's Social Care,Children Looked After,S23 Fam Pl In-Hse-S/Term F/C,Childrens Act Section 23 - Interpreting/Translation,17/10/2018,5121945,669.00,Oncall Interpreters LTD
Childrens Services,Education Services,Other Strategic Functions,Special Education Needs DSG,Third Party Payments - Payments to Schools,17/10/2018,5121975,"29,333.33",Transitional Care LTD
Childrens Services,Children's Social Care,Family Support Services,CNN Pool: Children Direct Paym,Social Care - Direct Payments,17/10/2018,5122253,"1,988.55",DH TOWER HAMLETS
Childrens Services,Education Services,Early Years,Chrisp St,Educational/Training Supplies - Resources,17/10/2018,5122645,400.00,DHB Oral Healthcare
Childrens Services,Children's Social Care,Children Looked After,S23 Fam Pl In-Hse-Perm F/Care,Childrens Act Section 23 - Commissioned Services,17/10/2018,5122675,300.00,Anchor Teaching Ltd
Childrens Services,Children's Social Care,Children Looked After,Leaving Care-UASC,Leaving Care Financial Assistance - Reg Plan Maint L-Allow,17/10/2018,5122727,814.29,Pangea Support Services
Childrens Services,Children's Social Care,Children Looked After,Leaving Care-UASC,Leaving Care Financial Assistance - Supp Accom/Hous Rents,17/10/2018,5122727,"1,050.00",Pangea Support Services
Childrens Services,Children's Social Care,Children Looked After,Leaving Care-UASC,Leaving Care Financial Assistance - Supported Living,17/10/2018,5122727,348.00,Pangea Support Services
Childrens Services,Children's Social Care,Children Looked After,Leaving Care-UASC,Leaving Care Financial Assistance - Supp Accom/Hous Rents,17/10/2018,5122728,"1,107.14",Pangea Support Services
Childrens Services,Children's Social Care,Children Looked After,Leaving Care-UASC,Leaving Care Financial Assistance - Supported Living,17/10/2018,5122728,331.14,Pangea Support Services
Childrens Services,Children's Social Care,Children Looked After,Leaving Care-UASC,Leaving Care Financial Assistance - Supp Accom/Hous Rents,17/10/2018,5122729,"1,050.00",Pangea Support Services
Childrens Services,Children's Social Care,Children Looked After,Leaving Care-UASC,Leaving Care Financial Assistance - Reg Plan Maint L-Allow,17/10/2018,5122730,256.86,Pangea Support Services
Childrens Services,Children's Social Care,Children Looked After,Leaving Care-UASC,Leaving Care Financial Assistance - Supp Accom/Hous Rents,17/10/2018,5122730,"1,107.14",Pangea Support Services
Childrens Services,Children's Social Care,Children Looked After,Virtual School PPG,Training Expenses - Staff External Training (UK Based),17/10/2018,5122772,"4,600.00",Kate Cairns Associates Ltd
Childrens Services,Education Services,Other Strategic Functions,BHLPS (Budget Holding Lead Professional Scheme),Non Staff Transport Costs - Client Transport Costs,17/10/2018,5122919,"2,280.00",Mile End Car Hire Limited
Childrens Services,Children's Social Care,Children Looked After,S23 Fam Pl P&V-F/Care,Childrens Act Section 23 - Placement Fee,17/10/2018,5122988,784.00,Swiis Foster Care Limited
Childrens Services,Cultural and Related Services,Recreation & Sport,Sports Development,Recreational Activities,19/10/2018,5091704,"12,225.00",Our Parks Ltd
Childrens Services,Children's Social Care,Services for young people,Youth Service Management,Uniforms & Clothing,19/10/2018,5107651,708.24,SMI Group
Childrens Services,Adult Social Care,Support Service and Management Costs,Org Development L&D Training,Training Expenses - Staff External Training (UK Based),19/10/2018,5109737,"1,630.00",Huntersjoy Ltd
Childrens Services,Children's Social Care,Children Looked After,LCS/Allowances-Accom,Leaving Care Financial Assistance - Supp Accom/Hous Rents,19/10/2018,5110506,"2,571.42",Alpha Care Service Ltd
Childrens Services,Children's Social Care,Children Looked After,LCS/Allowances-Accom,Leaving Care Financial Assistance - Supported Living,19/10/2018,5110506,"1,285.71",Alpha Care Service Ltd
Childrens Services,Children's Social Care,Children Looked After,LCS/Allowances-Accom,Leaving Care Financial Assistance - Supp Accom/Hous Rents,19/10/2018,5110507,"2,571.42",Alpha Care Service Ltd
Childrens Services,Children's Social Care,Children Looked After,LCS/Allowances-Accom,Leaving Care Financial Assistance - Supported Living,19/10/2018,5110507,"1,285.71",Alpha Care Service Ltd
Childrens Services,Children's Social Care,Children Looked After,S23-Other-Semi-Ind. Unit,Childrens Act Section 23 - Placement Fee,19/10/2018,5110508,"3,857.14",Alpha Care Service Ltd
Childrens Services,Children's Social Care,Family Support Services,Short Breaks and Family Support,Third Party Payments - Voluntary Associations,19/10/2018,5110517,"132,500.00",QALB Centre Short Break Services
Childrens Services,Children's Social Care,Family Support Services,Short Breaks and Family Support,Third Party Payments - Voluntary Associations,19/10/2018,5110518,"130,000.00",QALB Centre Short Break Services
Childrens Services,Adult Social Care,Support Service and Management Costs,Org Development L&D Training,Training Expenses - Staff External Training (UK Based),19/10/2018,5110802,"1,630.00",Huntersjoy Ltd
Childrens Services,Children's Social Care,Children Looked After,Leaving Care-UASC,Leaving Care Financial Assistance - Supported Living,19/10/2018,5110878,"3,570.60",Newhaven 16 Plus
Childrens Services,Children's Social Care,Support Service and Management Costs,Schools Catering,Kitchen Supplies - Food and Beverages,19/10/2018,5110888,291.83,Thomas Ridley & Son Ltd
Childrens Services,Children's Social Care,Support Service and Management Costs,Welfare Catering,Kitchen Supplies - Food and Beverages,19/10/2018,5110889,297.05,Thomas Ridley & Son Ltd
Childrens Services,Children's Social Care,Support Service and Management Costs,Sch. Meals A/c - Central Production Unit,Kitchen Supplies - Food and Beverages,19/10/2018,5110890,"1,223.84",Thomas Ridley & Son Ltd
Childrens Services,Children's Social Care,Support Service and Management Costs,Schools Catering,Kitchen Supplies - Food and Beverages,19/10/2018,5110893,590.18,Thomas Ridley & Son Ltd
Childrens Services,Children's Social Care,Support Service and Management Costs,Schools Catering,Kitchen Supplies - Food and Beverages,19/10/2018,5110895,270.27,Thomas Ridley & Son Ltd
Childrens Services,Children's Social Care,Support Service and Management Costs,Schools Catering,Kitchen Supplies - Food and Beverages,19/10/2018,5110898,377.78,Thomas Ridley & Son Ltd
Childrens Services,Children's Social Care,Support Service and Management Costs,Schools Catering,Kitchen Supplies - Food and Beverages,19/10/2018,5110899,371.54,Thomas Ridley & Son Ltd
Childrens Services,Children's Social Care,Support Service and Management Costs,Schools Catering,Kitchen Supplies - Food and Beverages,19/10/2018,5110900,376.46,Thomas Ridley & Son Ltd
Childrens Services,Children's Social Care,Support Service and Management Costs,Schools Catering,Kitchen Supplies - Food and Beverages,19/10/2018,5110902,283.40,Thomas Ridley & Son Ltd
Childrens Services,Children's Social Care,Support Service and Management Costs,Schools Catering,Kitchen Supplies - Food and Beverages,19/10/2018,5110903,377.73,Thomas Ridley & Son Ltd
Childrens Services,Children's Social Care,Support Service and Management Costs,Schools Catering,Kitchen Supplies - Food and Beverages,19/10/2018,5110906,654.81,Thomas Ridley & Son Ltd
Childrens Services,Children's Social Care,Support Service and Management Costs,Schools Catering,Kitchen Supplies - Food and Beverages,19/10/2018,5110907,264.51,Thomas Ridley & Son Ltd
Childrens Services,Children's Social Care,Support Service and Management Costs,Schools Catering,Kitchen Supplies - Food and Beverages,19/10/2018,5110908,361.50,Thomas Ridley & Son Ltd
Childrens Services,Children's Social Care,Support Service and Management Costs,Schools Catering,Kitchen Supplies - Food and Beverages,19/10/2018,5110909,539.06,Thomas Ridley & Son Ltd
Childrens Services,Children's Social Care,Support Service and Management Costs,Schools Catering,Kitchen Supplies - Food and Beverages,19/10/2018,5110910,328.26,Thomas Ridley & Son Ltd
Childrens Services,Children's Social Care,Support Service and Management Costs,Schools Catering,Kitchen Supplies - Food and Beverages,19/10/2018,5110911,295.16,Thomas Ridley & Son Ltd
Childrens Services,Children's Social Care,Support Service and Management Costs,Schools Catering,Kitchen Supplies - Food and Beverages,19/10/2018,5110912,338.60,Thomas Ridley & Son Ltd
Childrens Services,Children's Social Care,Support Service and Management Costs,Schools Catering,Kitchen Supplies - Food and Beverages,19/10/2018,5110913,545.59,Thomas Ridley & Son Ltd
Childrens Services,Children's Social Care,Support Service and Management Costs,Schools Catering,Kitchen Supplies - Food and Beverages,19/10/2018,5110914,298.59,Thomas Ridley & Son Ltd
Childrens Services,Children's Social Care,Support Service and Management Costs,Schools Catering,Kitchen Supplies - Food and Beverages,19/10/2018,5110915,494.62,Thomas Ridley & Son Ltd
Childrens Services,Children's Social Care,Support Service and Management Costs,Schools Catering,Kitchen Supplies - Food and Beverages,19/10/2018,5110916,261.41,Thomas Ridley & Son Ltd
Childrens Services,Children's Social Care,Support Service and Management Costs,Schools Catering,Kitchen Supplies - Food and Beverages,19/10/2018,5110918,608.96,Thomas Ridley & Son Ltd
Childrens Services,Children's Social Care,Support Service and Management Costs,Schools Catering,Kitchen Supplies - Food and Beverages,19/10/2018,5110919,853.84,Thomas Ridley & Son Ltd
Childrens Services,Children's Social Care,Support Service and Management Costs,Schools Catering,Kitchen Supplies - Food and Beverages,19/10/2018,5110920,284.98,Thomas Ridley & Son Ltd
Childrens Services,Children's Social Care,Support Service and Management Costs,Schools Catering,Kitchen Supplies - Food and Beverages,19/10/2018,5110921,359.92,Thomas Ridley & Son Ltd
Childrens Services,Children's Social Care,Support Service and Management Costs,Schools Catering,Kitchen Supplies - Food and Beverages,19/10/2018,5110924,257.29,Thomas Ridley & Son Ltd
Childrens Services,Children's Social Care,Support Service and Management Costs,Schools Catering,Kitchen Supplies - Food and Beverages,19/10/2018,5110926,323.62,Thomas Ridley & Son Ltd
Childrens Services,Children's Social Care,Support Service and Management Costs,Schools Catering,Kitchen Supplies - Food and Beverages,19/10/2018,5110927,697.40,Thomas Ridley & Son Ltd
Childrens Services,Children's Social Care,Support Service and Management Costs,Schools Catering,Kitchen Supplies - Food and Beverages,19/10/2018,5110928,534.54,Thomas Ridley & Son Ltd
Childrens Services,Children's Social Care,Support Service and Management Costs,Schools Catering,Kitchen Supplies - Food and Beverages,19/10/2018,5110929,702.54,Thomas Ridley & Son Ltd
Childrens Services,Children's Social Care,Support Service and Management Costs,Schools Catering,Kitchen Supplies - Food and Beverages,19/10/2018,5110932,286.99,Thomas Ridley & Son Ltd
Childrens Services,Children's Social Care,Support Service and Management Costs,Schools Catering,Kitchen Supplies - Food and Beverages,19/10/2018,5110933,255.83,Thomas Ridley & Son Ltd
Childrens Services,Children's Social Care,Support Service and Management Costs,Schools Catering,Kitchen Supplies - Food and Beverages,19/10/2018,5111338,367.28,William White Meats Ltd
Childrens Services,Children's Social Care,Support Service and Management Costs,Schools Catering,Kitchen Supplies - Food and Beverages,19/10/2018,5111406,396.50,William White Meats Ltd
Childrens Services,Children's Social Care,Support Service and Management Costs,Schools Catering,Kitchen Supplies - Food and Beverages,19/10/2018,5111408,902.62,William White Meats Ltd
Childrens Services,Children's Social Care,Support Service and Management Costs,Schools Catering,Kitchen Supplies - Food and Beverages,19/10/2018,5111419,251.67,William White Meats Ltd
Childrens Services,Children's Social Care,Support Service and Management Costs,Schools Catering,Kitchen Supplies - Food and Beverages,19/10/2018,5111421,326.24,William White Meats Ltd
Childrens Services,Children's Social Care,Support Service and Management Costs,Welfare Catering,Kitchen Supplies - Food and Beverages,19/10/2018,5111424,281.66,William White Meats Ltd
Childrens Services,Children's Social Care,Support Service and Management Costs,Schools Catering,Kitchen Supplies - Food and Beverages,19/10/2018,5111425,312.39,William White Meats Ltd
Childrens Services,Children's Social Care,Support Service and Management Costs,Schools Catering,Kitchen Supplies - Food and Beverages,19/10/2018,5111427,535.28,William White Meats Ltd
Childrens Services,Children's Social Care,Support Service and Management Costs,Schools Catering,Kitchen Supplies - Food and Beverages,19/10/2018,5111430,576.40,William White Meats Ltd
Childrens Services,Children's Social Care,Support Service and Management Costs,Schools Catering,Kitchen Supplies - Food and Beverages,19/10/2018,5111433,439.32,William White Meats Ltd
Childrens Services,Children's Social Care,Support Service and Management Costs,Schools Catering,Kitchen Supplies - Food and Beverages,19/10/2018,5111434,264.90,William White Meats Ltd
Childrens Services,Children's Social Care,Support Service and Management Costs,Schools Catering,Kitchen Supplies - Food and Beverages,19/10/2018,5111435,341.66,William White Meats Ltd
Childrens Services,Children's Social Care,Support Service and Management Costs,Schools Catering,Kitchen Supplies - Food and Beverages,19/10/2018,5111440,324.07,William White Meats Ltd
Childrens Services,Children's Social Care,Support Service and Management Costs,Schools Catering,Kitchen Supplies - Food and Beverages,19/10/2018,5111441,302.59,William White Meats Ltd
Childrens Services,Children's Social Care,Support Service and Management Costs,Schools Catering,Kitchen Supplies - Food and Beverages,19/10/2018,5111444,413.35,William White Meats Ltd
Childrens Services,Children's Social Care,Support Service and Management Costs,Schools Catering,Kitchen Supplies - Food and Beverages,19/10/2018,5111447,642.99,William White Meats Ltd
Childrens Services,Children's Social Care,Support Service and Management Costs,Schools Catering,Kitchen Supplies - Food and Beverages,19/10/2018,5111448,311.16,William White Meats Ltd
Childrens Services,Children's Social Care,Support Service and Management Costs,Schools Catering,Kitchen Supplies - Food and Beverages,19/10/2018,5111451,502.72,William White Meats Ltd
Childrens Services,Children's Social Care,Support Service and Management Costs,Schools Catering,Kitchen Supplies - Food and Beverages,19/10/2018,5111452,629.28,William White Meats Ltd
Childrens Services,Children's Social Care,Support Service and Management Costs,Schools Catering,Kitchen Supplies - Food and Beverages,19/10/2018,5111456,387.58,William White Meats Ltd
Childrens Services,Children's Social Care,Support Service and Management Costs,Schools Catering,Kitchen Supplies - Food and Beverages,19/10/2018,5111459,663.18,William White Meats Ltd
Childrens Services,Children's Social Care,Support Service and Management Costs,Schools Catering,Kitchen Supplies - Food and Beverages,19/10/2018,5111461,305.00,William White Meats Ltd
Childrens Services,Children's Social Care,Support Service and Management Costs,Schools Catering,Kitchen Supplies - Food and Beverages,19/10/2018,5111462,273.56,William White Meats Ltd
Childrens Services,Children's Social Care,Support Service and Management Costs,Schools Catering,Kitchen Supplies - Food and Beverages,19/10/2018,5111464,372.18,William White Meats Ltd
Childrens Services,Children's Social Care,Support Service and Management Costs,Schools Catering,Kitchen Supplies - Food and Beverages,19/10/2018,5111465,346.80,William White Meats Ltd
Childrens Services,Children's Social Care,Support Service and Management Costs,Swanlea,Kitchen Supplies - Food and Beverages,19/10/2018,5111467,746.01,William White Meats Ltd
Childrens Services,Children's Social Care,Support Service and Management Costs,Schools Catering,Kitchen Supplies - Food and Beverages,19/10/2018,5111468,289.04,William White Meats Ltd
Childrens Services,Children's Social Care,Support Service and Management Costs,Schools Catering,Kitchen Supplies - Food and Beverages,19/10/2018,5111469,396.50,William White Meats Ltd
Childrens Services,Children's Social Care,Support Service and Management Costs,Schools Catering,Kitchen Supplies - Food and Beverages,19/10/2018,5111472,396.17,William White Meats Ltd
Childrens Services,Children's Social Care,Support Service and Management Costs,Sch. Meals A/c - Central Production Unit,Kitchen Supplies - Food and Beverages,19/10/2018,5111476,"1,223.98",William White Meats Ltd
Childrens Services,Children's Social Care,Support Service and Management Costs,Schools Catering,Kitchen Supplies - Food and Beverages,19/10/2018,5111481,336.52,William White Meats Ltd
Childrens Services,Education Services,Other Strategic Functions,High Needs Other Boroughs,Third Party Payments - Payments to Schools,19/10/2018,5113892,"8,631.75",The London Nautical School
Childrens Services,Education Services,Other Strategic Functions,High Needs Other Boroughs,Third Party Payments - Payments to Schools,19/10/2018,5113893,"7,480.85",The London Nautical School
Childrens Services,Children's Social Care,Children Looked After,LCS/Allowances-Accom,Leaving Care Financial Assistance - Supp Accom/Hous Rents,19/10/2018,5114063,929.10,Newhaven 16 Plus
Childrens Services,Children's Social Care,Children Looked After,LCS/Allowances-Accom,Leaving Care Financial Assistance - Supp Accom/Hous Rents,19/10/2018,5114065,-727.20,Newhaven 16 Plus
Childrens Services,Children's Social Care,Children Looked After,Leaving Care-UASC,Leaving Care Financial Assistance - Supported Living,19/10/2018,5114067,999.30,Newhaven 16 Plus
Childrens Services,Children's Social Care,Children Looked After,LCS/Allowances-Accom,Leaving Care Financial Assistance - Supp Accom/Hous Rents,19/10/2018,5114068,929.10,Newhaven 16 Plus
Childrens Services,Children's Social Care,Children Looked After,LCS/Allowances-Accom,Leaving Care Financial Assistance - Supp Accom/Hous Rents,19/10/2018,5114079,"1,071.30",Newhaven 16 Plus
Childrens Services,Education Services,Services to Young People and Other Community Learners,Further and Higher Education,Education Trust - Grant,19/10/2018,5114627,"4,000.00",University of Oxford
Childrens Services,Children's Social Care,Children Looked After,S23 Fam Pl P&V-F/Care,Childrens Act Section 23 - Placement Fee,19/10/2018,5114642,"4,050.00",St Christopher's Fellowship
Childrens Services,Children's Social Care,Children Looked After,S23 Fam Pl P&V-F/Care,Childrens Act Section 23 - Placement Fee,19/10/2018,5114643,"4,500.00",St Christopher's Fellowship
Childrens Services,Children's Social Care,Support Service and Management Costs,Sch. Meals A/c - Bow School,Kitchen Supplies - Food and Beverages,19/10/2018,5114810,931.50,Tiffin Sandwiches
Childrens Services,Children's Social Care,Support Service and Management Costs,Sch. Meals A/c - C.F.S. Upper (Harley Grove),Catering - Hospitality,19/10/2018,5114811,729.00,Tiffin Sandwiches
Childrens Services,Children's Social Care,Support Service and Management Costs,Sch. Meals A/c - George Green,Kitchen Supplies - Food and Beverages,19/10/2018,5114812,668.25,Tiffin Sandwiches
Childrens Services,Children's Social Care,Support Service and Management Costs,Sch. Meals A/c - Langdon Park,Kitchen Supplies - Food and Beverages,19/10/2018,5114813,648.00,Tiffin Sandwiches
Childrens Services,Children's Social Care,Support Service and Management Costs,Sch. Meals A/c - Morpeth,Kitchen Supplies - Food and Beverages,19/10/2018,5114814,"1,238.28",Tiffin Sandwiches
Childrens Services,Children's Social Care,Support Service and Management Costs,Sch. Meals A/c - Oaklands,Kitchen Supplies - Food and Beverages,19/10/2018,5114815,672.30,Tiffin Sandwiches
Childrens Services,Children's Social Care,Support Service and Management Costs,Sch. Meals A/c - Raines Foundation,Kitchen Supplies - Food and Beverages,19/10/2018,5114816,295.65,Tiffin Sandwiches
Childrens Services,Children's Social Care,Support Service and Management Costs,Sch. Meals A/c - St. Paul's Way Comm. Trust,Kitchen Supplies - Food and Beverages,19/10/2018,5114817,465.75,Tiffin Sandwiches
Childrens Services,Children's Social Care,Support Service and Management Costs,Sch. Meals A/c - Stepney Green,Kitchen Supplies - Food and Beverages,19/10/2018,5114818,283.50,Tiffin Sandwiches
Childrens Services,Children's Social Care,Support Service and Management Costs,"Mulberry Caf�		",Kitchen Supplies - Food and Beverages,19/10/2018,5114819,363.58,Tiffin Sandwiches
Childrens Services,Education Services,Early Years,Overland CC,Grounds Maintenance - Contract - Horticultural Maintenance,19/10/2018,5114842,396.90,Yorkshire Purchasing Organisation
Childrens Services,Education Services,Early Years,Marner. CC,Community Equipment  Supplies - Non Store Items,19/10/2018,5114843,336.15,Yorkshire Purchasing Organisation
Childrens Services,Children's Social Care,Support Service and Management Costs,Schools Catering,Kitchen Supplies - Food and Beverages,19/10/2018,5114993,278.99,William White Meats Ltd
Childrens Services,Children's Social Care,Support Service and Management Costs,Schools Catering,Kitchen Supplies - Food and Beverages,19/10/2018,5114995,285.85,William White Meats Ltd
Childrens Services,Children's Social Care,Support Service and Management Costs,Schools Catering,Kitchen Supplies - Food and Beverages,19/10/2018,5114996,708.75,William White Meats Ltd
Childrens Services,Children's Social Care,Support Service and Management Costs,Schools Catering,Kitchen Supplies - Food and Beverages,19/10/2018,5114999,262.03,William White Meats Ltd
Childrens Services,Children's Social Care,Support Service and Management Costs,Schools Catering,Kitchen Supplies - Food and Beverages,19/10/2018,5115002,291.22,William White Meats Ltd
Childrens Services,Children's Social Care,Support Service and Management Costs,Schools Catering,Kitchen Supplies - Food and Beverages,19/10/2018,5115003,869.53,William White Meats Ltd
Childrens Services,Children's Social Care,Support Service and Management Costs,Schools Catering,Kitchen Supplies - Food and Beverages,19/10/2018,5115025,304.62,William White Meats Ltd
Childrens Services,Children's Social Care,Support Service and Management Costs,Schools Catering,Kitchen Supplies - Food and Beverages,19/10/2018,5115027,385.63,William White Meats Ltd
Childrens Services,Children's Social Care,Support Service and Management Costs,Schools Catering,Kitchen Supplies - Food and Beverages,19/10/2018,5115028,473.98,William White Meats Ltd
Childrens Services,Children's Social Care,Support Service and Management Costs,Schools Catering,Kitchen Supplies - Food and Beverages,19/10/2018,5115036,305.67,William White Meats Ltd
Childrens Services,Children's Social Care,Support Service and Management Costs,Schools Catering,Kitchen Supplies - Food and Beverages,19/10/2018,5115037,292.86,William White Meats Ltd
Childrens Services,Children's Social Care,Support Service and Management Costs,Schools Catering,Kitchen Supplies - Food and Beverages,19/10/2018,5115042,715.90,William White Meats Ltd
Childrens Services,Children's Social Care,Support Service and Management Costs,Schools Catering,Kitchen Supplies - Food and Beverages,19/10/2018,5115043,356.62,William White Meats Ltd
Childrens Services,Children's Social Care,Support Service and Management Costs,Schools Catering,Kitchen Supplies - Food and Beverages,19/10/2018,5115044,657.58,William White Meats Ltd
Childrens Services,Children's Social Care,Support Service and Management Costs,Schools Catering,Kitchen Supplies - Food and Beverages,19/10/2018,5115047,543.08,William White Meats Ltd
Childrens Services,Children's Social Care,Support Service and Management Costs,Schools Catering,Kitchen Supplies - Food and Beverages,19/10/2018,5115053,355.42,William White Meats Ltd
Childrens Services,Children's Social Care,Support Service and Management Costs,Schools Catering,Kitchen Supplies - Food and Beverages,19/10/2018,5115055,277.46,William White Meats Ltd
Childrens Services,Children's Social Care,Support Service and Management Costs,Schools Catering,Kitchen Supplies - Food and Beverages,19/10/2018,5115057,408.77,William White Meats Ltd
Childrens Services,Education Services,Early Years,Children Centre Central Team,Medical Requisites,19/10/2018,5115193,257.85,NHS SUPPLY CHAIN
Childrens Services,Education Services,Early Years,John Smith CC,Educational/Training Supplies - Arts & Crafts,19/10/2018,5117279,"1,419.05",Eduzone Ltd
Childrens Services,Education Services,Other Strategic Functions,High Needs FE Colleges,Third Party Payments - Payments to Schools,19/10/2018,5119565,"15,213.33",Albemarle Independent College
Childrens Services,Children's Social Care,Service Strategy,CSC Childrens Resources M & A,Social Care - Day Care,19/10/2018,5121037,652.66,The Refugee Council
Childrens Services,Cultural and Related Services,Open Spaces,Mile End Park,Water Services - Metered,19/10/2018,5121235,"1,594.31",CASTLE WATER
Childrens Services,Children's Social Care,Children Looked After,LCS/Allowances-Accom,Leaving Care Financial Assistance - Reg Plan Maint L-Allow,19/10/2018,5121699,256.86,Green Harvest Capital Consulting Ltd
Childrens Services,Children's Social Care,Children Looked After,LCS/Allowances-Accom,Leaving Care Financial Assistance - Supp Accom/Hous Rents,19/10/2018,5121699,"4,650.00",Green Harvest Capital Consulting Ltd
Childrens Services,Education Services,Other Strategic Functions,Schools Library,Events & Exhibition Supplies,19/10/2018,5121769,"4,850.00",The Poetry Society
Childrens Services,Children's Social Care,Children Looked After,LCS/Allowances-Accom,Non Staff Transport Costs - Client Transport Costs,19/10/2018,5121889,256.00,Mile End Car Hire Limited
Childrens Services,Education Services,Secondary Schools,PFI Hldg Account-Mulberry Scho,Payments to Private Contractors - Other Contractors,19/10/2018,5121983,"7,555.56",D4E Mulberry LTD
Childrens Services,Children's Social Care,Children Looked After,S23 Fam Pl In-Hse-Placed Home,Childrens Act Section 23 - Non-Contact Taxi Costs,19/10/2018,5122920,798.00,Mile End Car Hire Limited
Childrens Services,Children's Social Care,Family Support Services,CNN Pool: Joint Family Support,Non Staff Transport Costs - Taxi Hire,19/10/2018,5122922,440.00,Mile End Car Hire Limited
Childrens Services,Cultural and Related Services,Recreation & Sport,Mayors Cup,Third Party Payments - Voluntary Associations,19/10/2018,5123054,"1,440.00",INNER LONDON AMATURE FOOTBALL LEAGUE
Childrens Services,Children's Social Care,Children Looked After,Virtual School PPG,Third Party Payments - Payments to Schools,19/10/2018,5123125,500.00,William de Ferrers School
Childrens Services,No Service Specified,No Division Specified,Capital-Minor Works (SC),Other External Fees - Consultants Fees,19/10/2018,5125132,492.00,Pellings LLP
Childrens Services,Cultural and Related Services,Open Spaces,Mile End Park,Water Services - Metered,19/10/2018,5125342,502.39,CASTLE WATER
Childrens Services,Cultural and Related Services,Open Spaces,Victoria Park,Water Services - Metered,19/10/2018,5125343,864.81,CASTLE WATER
Childrens Services,Children's Social Care,Children Looked After,S23-Resi-P&V/OLA-Sec Acc-Wel,Childrens Act Section 23 - Non-Contact Trans/Travel Costs,19/10/2018,5125357,311.64,PERSONAL SECURITY SERVICES LTD
Childrens Services,Children's Social Care,Children Looked After,S23-Resi-P&V/OLA-Sec Acc-Wel,Childrens Act Section 23 - Non-Contact Trans/Travel Costs,19/10/2018,5125358,992.47,PERSONAL SECURITY SERVICES LTD
Childrens Services,Children's Social Care,Children Looked After,S23-Resi-P&V/OLA-Sec Acc-Wel,Childrens Act Section 23 - Non-Contact Trans/Travel Costs,19/10/2018,5125359,"1,571.11",PERSONAL SECURITY SERVICES LTD
Childrens Services,Children's Social Care,Children Looked After,S23-Resi-P&V/OLA-Sec Acc-Wel,Childrens Act Section 23 - Non-Contact Trans/Travel Costs,19/10/2018,5125360,"4,568.50",PERSONAL SECURITY SERVICES LTD
Childrens Services,Children's Social Care,Children Looked After,S23-Resi-P&V/OLA-Sec Acc-Wel,Childrens Act Section 23 - Non-Contact Trans/Travel Costs,19/10/2018,5125361,275.55,PERSONAL SECURITY SERVICES LTD
Childrens Services,Children's Social Care,Children Looked After,S23-Resi-P&V/OLA-Sec Acc-Wel,Childrens Act Section 23 - Non-Contact Trans/Travel Costs,19/10/2018,5125362,"1,040.45",PERSONAL SECURITY SERVICES LTD
Childrens Services,Children's Social Care,Children Looked After,S23-Resi-P&V/OLA-Sec Acc-Wel,Childrens Act Section 23 - Non-Contact Trans/Travel Costs,19/10/2018,5125363,348.76,PERSONAL SECURITY SERVICES LTD
Childrens Services,Children's Social Care,Children Looked After,S23-Resi-P&V/OLA-Sec Acc-Wel,Childrens Act Section 23 - Non-Contact Trans/Travel Costs,19/10/2018,5125364,"1,602.03",PERSONAL SECURITY SERVICES LTD
Childrens Services,Children's Social Care,Children Looked After,S23-Resi-P&V/OLA-Sec Acc-Wel,Childrens Act Section 23 - Non-Contact Trans/Travel Costs,19/10/2018,5125365,"2,097.99",PERSONAL SECURITY SERVICES LTD
